{"text_format":"1","workbook":"xlsx","n_sheets":2,"sheets":["Template","Moves"],"not_rendered":{"charts":0,"images":0,"macros":1,"external_links":0,"defined_names":26,"comments":0,"pivot_tables":0},"unopened":[],"bounds":{"document_bytes":16777216,"sheet_cells":100000,"rows_first":2000,"rows_last":500,"rows_between":2000,"halvings":0,"cell_chars":16384,"cell_head_chars":4096},"cells_cut":0,"cells_raw":0,"read":"whole","date_system":"1900"}

{"sheet":"Template","index":0,"n_rows":158,"n_cols":111,"rows_kept":158,"cut":false,"hidden":false,"merged":[[4,8,4,9],[4,0,4,1],[4,3,4,4],[5,0,5,1],[6,0,7,1],[6,3,6,5],[4,5,4,7],[6,62,6,69],[6,70,6,77],[6,78,6,85],[6,86,6,93],[18,3,18,5],[18,6,18,9],[6,14,6,21],[6,22,6,29],[6,30,6,37],[6,38,6,45],[6,46,6,53],[6,54,6,61],[6,6,6,9],[19,0,19,1],[19,3,19,5],[19,6,19,9],[20,0,20,1],[20,3,20,5],[20,6,20,9],[21,0,21,1],[21,3,21,5],[21,6,21,9],[22,0,22,1],[22,3,22,5],[22,6,22,9],[23,0,23,1],[23,3,23,5],[23,6,23,9],[24,0,24,1],[24,3,24,5],[24,6,24,9],[25,0,25,1],[25,3,25,5],[25,6,25,9],[26,0,26,1],[26,3,26,5],[26,6,26,9],[35,3,35,5],[35,6,35,9],[27,0,27,1],[27,3,27,5],[27,6,27,9],[28,0,28,1],[28,3,28,5],[28,6,28,9],[29,0,29,1],[29,3,29,5],[29,6,29,10],[34,3,34,5],[34,6,34,9]]}
[]
[]
["Intermediate Intention Sheet"]
[]
["Gymnast Name:",null,"Gender:",null,null," Gymnast No:",null,null,null,null,"Club:"]
[]
["ELEMENTS",null,"EXECUTION","DIFFICULTY",null,null,"GROUP",null,null,null,"SPECIAL REQUIREMENTS","BONUS",null,null,"Validation 1",null,null,null,null,null,null,null,"Validation 2",null,null,null,null,null,null,null,"Validation 3",null,null,null,null,null,null,null,"Validation 4",null,null,null,null,null,null,null,"Validation 5",null,null,null,null,null,null,null,"Validation 6",null,null,null,null,null,null,null,"Validation 7",null,null,null,null,null,null,null,"Validation 8",null,null,null,null,null,null,null,"Validation 9",null,null,null,null,null,null,null,"Validation 10",null,null,null,null,null,null,null,"G1 B","G1","Girls G2","Boys G2 H","Boys G2","AS","FS","B C","B G","Crt met b4 B"]
[null,null,null,"A","B","C",1,2,3,4,null,null,null,null,"found","list",null,null,null,null,"count if","ofset","found","list",null,null,null,null,"count if","ofset","found","list",null,null,null,null,"count if","ofset","found","list",null,null,null,null,"count if","ofset","found","list",null,null,null,null,"count if","ofset","found","list",null,null,null,null,"count if","ofset","found","list",null,null,null,null,"count if","ofset","found","list",null,null,null,null,"count if","ofset","found","list",null,null,null,null,"count if","ofset","found","list",null,null,null,null,"count if","ofset",null,null,null,null,null,null,null,null,null,null,"A","B",null,1,2,3,4]
[1,null,null,{"$f":"IFERROR(IF(VLOOKUP(B9,Moves!$A$1:$D$151,2,FALSE)=\"A\",\"X\",\" \"),\"\")","v":""},{"$f":"IFERROR(IF(VLOOKUP(B9,Moves!$A$1:$D$151,2,FALSE)=\"B\",\"X\",\" \"),\"\")","v":""},{"$f":"IFERROR(IF(VLOOKUP(B9,Moves!$A$1:$D$151,2,FALSE)=\"C\",\"X\",\" \"),\"\")","v":""},{"$f":"IFERROR(IF(VLOOKUP(B9,Moves!$A$1:$D$151,3,FALSE)=1,\"X\",\" \"),\"\")","v":""},{"$f":"IFERROR(IF(VLOOKUP(B9,Moves!$A$1:$D$151,3,FALSE)=2,\"X\",\" \"),\"\")","v":""},{"$f":"IFERROR(IF(VLOOKUP(B9,Moves!$A$1:$D$151,3,FALSE)=3,\"X\",\" \"),\"\")","v":""},{"$f":"IFERROR(IF(VLOOKUP(B9,Moves!$A$1:$D$151,3,FALSE)=4,\"X\",\" \"),\"\")","v":""},null,null,null,null,{"$f":"IF(ISNUMBER(SEARCH($B$9,P9)),MAX($O$8:O8)+1,0)","v":1},"Straight jump",null,null,{"$f":"IFERROR(VLOOKUP(ROWS($P$9:P9),$O$9:$P$158,2,0),\"\")","v":"Straight jump"},null,{"$f":"COUNTIF(S9:S158,\"?*\")","v":76},{"$f":"OFFSET($S$9,,,COUNTIF($S$9:$S$158,\"?*\"))","v":"Straight jump"},{"$f":"IF(ISNUMBER(SEARCH($B$10,X9)),MAX($W$8:W8)+1,0)","v":1},"Straight jump",null,null,{"$f":"IFERROR(VLOOKUP(ROWS($X$9:X9),$W$9:$X$158,2,0),\"\")","v":"Straight jump"},null,{"$f":"COUNTIF(AA9:AA158,\"?*\")","v":76},{"$f":"OFFSET($AA$9,,,COUNTIF($AA$9:$AA$158,\"?*\"))","v":"Straight jump"},{"$f":"IF(ISNUMBER(SEARCH($B$11,AF9)),MAX($AE$8:AE8)+1,0)","v":1},"Straight jump",null,null,{"$f":"IFERROR(VLOOKUP(ROWS($AF$9:AF9),$AE$9:$AF$158,2,0),\"\")","v":"Straight jump"},null,{"$f":"COUNTIF(AI9:AI158,\"?*\")","v":76},{"$f":"OFFSET($AI$9,,,COUNTIF($AI$9:$AI$158,\"?*\"))","v":"Straight jump"},{"$f":"IF(ISNUMBER(SEARCH($B$12,AN9)),MAX($AM$8:AM8)+1,0)","v":1},"Straight jump",null,null,{"$f":"IFERROR(VLOOKUP(ROWS($AN$9:AN9),$AM$9:$AN$158,2,0),\"\")","v":"Straight jump"},null,{"$f":"COUNTIF(AQ9:AQ158,\"?*\")","v":76},{"$f":"OFFSET($AQ$9,,,COUNTIF($AQ$9:$AQ$158,\"?*\"))","v":"Straight jump"},{"$f":"IF(ISNUMBER(SEARCH($B$13,AV9)),MAX($AU$8:AU8)+1,0)","v":1},"Straight jump",null,null,{"$f":"IFERROR(VLOOKUP(ROWS($AV$9:AV9),$AU$9:$AV$158,2,0),\"\")","v":"Straight jump"},null,{"$f":"COUNTIF(AY9:AY158,\"?*\")","v":76},{"$f":"OFFSET($AY$9,,,COUNTIF($AY$9:$AY$158,\"?*\"))","v":"Straight jump"},{"$f":"IF(ISNUMBER(SEARCH($B$14,BD9)),MAX($BC$8:BC8)+1,0)","v":1},"Straight jump",null,null,{"$f":"IFERROR(VLOOKUP(ROWS($BD$9:BD9),$BC$9:$BD$158,2,0),\"\")","v":"Straight jump"},null,{"$f":"COUNTIF(BG9:BG158,\"?*\")","v":76},{"$f":"OFFSET($BG$9,,,COUNTIF($BG$9:$BG$158,\"?*\"))","v":"Straight jump"},{"$f":"IF(ISNUMBER(SEARCH($B$15,BL9)),MAX($BK$8:BK8)+1,0)","v":1},"Straight jump",null,null,{"$f":"IFERROR(VLOOKUP(ROWS($BL$9:BL9),$BK$9:$BL$158,2,0),\"\")","v":"Straight jump"},null,{"$f":"COUNTIF(BO9:BO158,\"?*\")","v":76},{"$f":"OFFSET($BO$9,,,COUNTIF($BO$9:$BO$158,\"?*\"))","v":"Straight jump"},{"$f":"IF(ISNUMBER(SEARCH($B$16,BT9)),MAX($BS$8:BS8)+1,0)","v":1},"Straight jump",null,null,{"$f":"IFERROR(VLOOKUP(ROWS($BT$9:BT9),$BS$9:$BT$158,2,0),\"\")","v":"Straight jump"},null,{"$f":"COUNTIF(BW9:BW158,\"?*\")","v":76},{"$f":"OFFSET($BW$9,,,COUNTIF($BW$9:$BW$158,\"?*\"))","v":"Straight jump"},{"$f":"IF(ISNUMBER(SEARCH($B$17,CB9)),MAX($CA$8:CA8)+1,0)","v":1},"Straight jump",null,null,{"$f":"IFERROR(VLOOKUP(ROWS($CB$9:CB9),$CA$9:$CB$158,2,0),\"\")","v":"Straight jump"},null,{"$f":"COUNTIF(CE9:CE158,\"?*\")","v":76},{"$f":"OFFSET($CE$9,,,COUNTIF($CE$9:$CE$158,\"?*\"))","v":"Straight jump"},{"$f":"IF(ISNUMBER(SEARCH($B$18,CJ9)),MAX($CI$8:CI8)+1,0)","v":1},"Straight jump",null,null,{"$f":"IFERROR(VLOOKUP(ROWS($CJ$9:CJ9),$CI$9:$CJ$158,2,0),\"\")","v":"Straight jump"},null,{"$f":"COUNTIF(CM9:CM158,\"?*\")","v":76},{"$f":"OFFSET($CM$9,,,COUNTIF($CM$9:$CM$158,\"?*\"))","v":"Straight jump"},{"$f":"IF(D5=\"Male\",\"\",IF(K9<>$K$37,\"\",IF(G9=\"X\",IF(E9=\"X\",\"Yes\",\"No\"),\"No\")))","v":""},{"$f":"IF(K9<>$K$39,\"\",IF(G9=\"X\",\"Yes\",\"No\"))","v":""},{"$f":"IF($D$5=$K$33,IF(K9=$K$38,IF(H9=\"X\",\"Yes\",\"No\"),\"\"),\"\")","v":""},{"$f":"IF($D$5=\"Female\",\"\",IF(K9=$K$45,IF(H9=\"X\",\"Yes\",\"No\"),\"No\"))","v":"No"},{"$f":"IF($D$5=$K$34,IF(K9=$K$44,IF(H9=\"X\",\"Yes\",\"No\"),\"No\"),\"\")","v":""},{"$f":"IF(K9<>\"Acrobatic skill\",\"\",IF(VLOOKUP(B9,Moves!$A$1:$D$151,4,FALSE)=\"\",IF(I9=\"X\",\"Yes\",IF(J9=\"X\",\"Yes\",\"No\")),\"No\"))","v":""},{"$f":"IF(K9<>\"Flight skill\",\"\",IF(J9=\"X\",IF(VLOOKUP(B9,Moves!$A$1:$D$151,4,FALSE)<>\"FS\",\"No\",\"Yes\"),\"No\"))","v":""},{"$f":"IF(L9<>$L$32,\"\",IF(F9=\"X\",IF(G9=\"X\",\"Yes\",IF(H9=\"X\",\"Yes\",IF(I9=\"X\",\"Yes\",\"No\")))))","v":""},{"$f":"IF(CX9<>\"Yes\",\"\",IF(G9=\"X\",1,IF(H9=\"X\",2,IF(I9=\"X\",3,\"No\"))))","v":""},{"$f":"IF(COUNTIF(O9:CY9,\"Yes\")=2,\"No\",\"Yes\")","v":"Yes"},{"$f":"IF(D9=\"X\",IF(L9=\"Bonus - C Skill\",\"No\",\"Yes\"),\"\")","v":""},{"$f":"IF(E9=\"X\",IF(L9=\"Bonus - C Skill\",\"No\",\"Yes\"),\"\")","v":""},null,{"$f":"IF(G9=\"X\",IF(L9=\"Bonus - C Skill\",\"No\",\"Yes\"),\"\")","v":""},{"$f":"IF(H9=\"X\",IF(L9=\"Bonus - C Skill\",\"No\",\"Yes\"),\"\")","v":""},{"$f":"IF(I9=\"X\",IF(L9=\"Bonus - C Skill\",\"No\",\"Yes\"),\"\")","v":""},{"$f":"IF(J9=\"X\",IF(L9=\"Bonus - C Skill\",\"No\",\"Yes\"),\"\")","v":""}]
[2,null,null,{"$f":"IFERROR(IF(VLOOKUP(B10,Moves!$A$1:$D$151,2,FALSE)=\"A\",\"X\",\" \"),\"\")","v":""},{"$f":"IFERROR(IF(VLOOKUP(B10,Moves!$A$1:$D$151,2,FALSE)=\"B\",\"X\",\" \"),\"\")","v":""},{"$f":"IFERROR(IF(VLOOKUP(B10,Moves!$A$1:$D$151,2,FALSE)=\"C\",\"X\",\" \"),\"\")","v":""},{"$f":"IFERROR(IF(VLOOKUP(B10,Moves!$A$1:$D$151,3,FALSE)=1,\"X\",\" \"),\"\")","v":""},{"$f":"IFERROR(IF(VLOOKUP(B10,Moves!$A$1:$D$151,3,FALSE)=2,\"X\",\" \"),\"\")","v":""},{"$f":"IFERROR(IF(VLOOKUP(B10,Moves!$A$1:$D$151,3,FALSE)=3,\"X\",\" \"),\"\")","v":""},{"$f":"IFERROR(IF(VLOOKUP(B10,Moves!$A$1:$D$151,3,FALSE)=4,\"X\",\" \"),\"\")","v":""},null,null,null,null,{"$f":"IF(ISNUMBER(SEARCH($B$9,P10)),MAX($O$8:O9)+1,0)","v":2},"Jump ½ turn ",null,null,{"$f":"IFERROR(VLOOKUP(ROWS($P$9:P10),$O$9:$P$158,2,0),\"\")","v":"Jump ½ turn "},null,null,null,{"$f":"IF(ISNUMBER(SEARCH($B$10,X10)),MAX($W$8:W9)+1,0)","v":2},"Jump ½ turn ",null,null,{"$f":"IFERROR(VLOOKUP(ROWS($X$9:X10),$W$9:$X$158,2,0),\"\")","v":"Jump ½ turn "},null,null,null,{"$f":"IF(ISNUMBER(SEARCH($B$11,AF10)),MAX($AE$8:AE9)+1,0)","v":2},"Jump ½ turn ",null,null,{"$f":"IFERROR(VLOOKUP(ROWS($AF$9:AF10),$AE$9:$AF$158,2,0),\"\")","v":"Jump ½ turn "},null,null,null,{"$f":"IF(ISNUMBER(SEARCH($B$12,AN10)),MAX($AM$8:AM9)+1,0)","v":2},"Jump ½ turn ",null,null,{"$f":"IFERROR(VLOOKUP(ROWS($AN$9:AN10),$AM$9:$AN$158,2,0),\"\")","v":"Jump ½ turn "},null,null,null,{"$f":"IF(ISNUMBER(SEARCH($B$13,AV10)),MAX($AU$8:AU9)+1,0)","v":2},"Jump ½ turn ",null,null,{"$f":"IFERROR(VLOOKUP(ROWS($AV$9:AV10),$AU$9:$AV$158,2,0),\"\")","v":"Jump ½ turn "},null,null,null,{"$f":"IF(ISNUMBER(SEARCH($B$14,BD10)),MAX($BC$8:BC9)+1,0)","v":2},"Jump ½ turn ",null,null,{"$f":"IFERROR(VLOOKUP(ROWS($BD$9:BD10),$BC$9:$BD$158,2,0),\"\")","v":"Jump ½ turn "},null,null,null,{"$f":"IF(ISNUMBER(SEARCH($B$15,BL10)),MAX($BK$8:BK9)+1,0)","v":2},"Jump ½ turn ",null,null,{"$f":"IFERROR(VLOOKUP(ROWS($BL$9:BL10),$BK$9:$BL$158,2,0),\"\")","v":"Jump ½ turn "},null,null,null,{"$f":"IF(ISNUMBER(SEARCH($B$16,BT10)),MAX($BS$8:BS9)+1,0)","v":2},"Jump ½ turn ",null,null,{"$f":"IFERROR(VLOOKUP(ROWS($BT$9:BT10),$BS$9:$BT$158,2,0),\"\")","v":"Jump ½ turn "},null,null,null,{"$f":"IF(ISNUMBER(SEARCH($B$17,CB10)),MAX($CA$8:CA9)+1,0)","v":2},"Jump ½ turn ",null,null,{"$f":"IFERROR(VLOOKUP(ROWS($CB$9:CB10),$CA$9:$CB$158,2,0),\"\")","v":"Jump ½ turn "},null,null,null,{"$f":"IF(ISNUMBER(SEARCH($B$18,CJ10)),MAX($CI$8:CI9)+1,0)","v":2},"Jump ½ turn ",null,null,{"$f":"IFERROR(VLOOKUP(ROWS($CJ$9:CJ10),$CI$9:$CJ$158,2,0),\"\")","v":"Jump ½ turn "},null,null,null,{"$f":"IF(D6=\"Male\",\"\",IF(K10<>$K$37,\"\",IF(G10=\"X\",IF(E10=\"X\",\"Yes\",\"No\"),\"No\")))","v":""},{"$f":"IF(K10<>$K$39,\"\",IF(G10=\"X\",\"Yes\",\"No\"))","v":""},{"$f":"IF($D$5=$K$33,IF(K10=$K$38,IF(H10=\"X\",\"Yes\",\"No\"),\"\"),\"\")","v":""},"No","",{"$f":"IF(K10<>\"Acrobatic skill\",\"\",IF(VLOOKUP(B10,Moves!$A$1:$D$151,4,FALSE)=\"\",IF(I10=\"X\",\"Yes\",IF(J10=\"X\",\"Yes\",\"No\")),\"No\"))","v":""},{"$f":"IF(K10<>\"Flight skill\",\"\",IF(J10=\"X\",IF(VLOOKUP(B10,Moves!$A$1:$D$151,4,FALSE)<>\"FS\",\"No\",\"Yes\"),\"No\"))","v":""},"",{"$f":"IF(CX10<>\"Yes\",\"\",IF(G10=\"X\",1,IF(H10=\"X\",2,IF(I10=\"X\",3,\"No\"))))","v":""},{"$f":"IF(COUNTIF(O10:CY10,\"Yes\")=2,\"No\",\"Yes\")","v":"Yes"},{"$f":"IF(D10=\"X\",IF(L10=\"Bonus - C Skill\",\"No\",\"Yes\"),\"\")","v":""},{"$f":"IF(E10=\"X\",IF(L10=\"Bonus - C Skill\",\"No\",\"Yes\"),\"\")","v":""},null,{"$f":"IF(G10=\"X\",IF(L10=\"Bonus - C Skill\",\"No\",\"Yes\"),\"\")","v":""},{"$f":"IF(H10=\"X\",IF(L10=\"Bonus - C Skill\",\"No\",\"Yes\"),\"\")","v":""},{"$f":"IF(I10=\"X\",IF(L10=\"Bonus - C Skill\",\"No\",\"Yes\"),\"\")","v":""},{"$f":"IF(J10=\"X\",IF(L10=\"Bonus - C Skill\",\"No\",\"Yes\"),\"\")","v":""}]
[3,null,null,{"$f":"IFERROR(IF(VLOOKUP(B11,Moves!$A$1:$D$151,2,FALSE)=\"A\",\"X\",\" \"),\"\")","v":""},{"$f":"IFERROR(IF(VLOOKUP(B11,Moves!$A$1:$D$151,2,FALSE)=\"B\",\"X\",\" \"),\"\")","v":""},{"$f":"IFERROR(IF(VLOOKUP(B11,Moves!$A$1:$D$151,2,FALSE)=\"C\",\"X\",\" \"),\"\")","v":""},{"$f":"IFERROR(IF(VLOOKUP(B11,Moves!$A$1:$D$151,3,FALSE)=1,\"X\",\" \"),\"\")","v":""},{"$f":"IFERROR(IF(VLOOKUP(B11,Moves!$A$1:$D$151,3,FALSE)=2,\"X\",\" \"),\"\")","v":""},{"$f":"IFERROR(IF(VLOOKUP(B11,Moves!$A$1:$D$151,3,FALSE)=3,\"X\",\" \"),\"\")","v":""},{"$f":"IFERROR(IF(VLOOKUP(B11,Moves!$A$1:$D$151,3,FALSE)=4,\"X\",\" \"),\"\")","v":""},null,null,null,null,{"$f":"IF(ISNUMBER(SEARCH($B$9,P11)),MAX($O$8:O10)+1,0)","v":3},"Star jump ",null,null,{"$f":"IFERROR(VLOOKUP(ROWS($P$9:P11),$O$9:$P$158,2,0),\"\")","v":"Star jump "},null,null,null,{"$f":"IF(ISNUMBER(SEARCH($B$10,X11)),MAX($W$8:W10)+1,0)","v":3},"Star jump ",null,null,{"$f":"IFERROR(VLOOKUP(ROWS($X$9:X11),$W$9:$X$158,2,0),\"\")","v":"Star jump "},null,null,null,{"$f":"IF(ISNUMBER(SEARCH($B$11,AF11)),MAX($AE$8:AE10)+1,0)","v":3},"Star jump ",null,null,{"$f":"IFERROR(VLOOKUP(ROWS($AF$9:AF11),$AE$9:$AF$158,2,0),\"\")","v":"Star jump "},null,null,null,{"$f":"IF(ISNUMBER(SEARCH($B$12,AN11)),MAX($AM$8:AM10)+1,0)","v":3},"Star jump ",null,null,{"$f":"IFERROR(VLOOKUP(ROWS($AN$9:AN11),$AM$9:$AN$158,2,0),\"\")","v":"Star jump "},null,null,null,{"$f":"IF(ISNUMBER(SEARCH($B$13,AV11)),MAX($AU$8:AU10)+1,0)","v":3},"Star jump ",null,null,{"$f":"IFERROR(VLOOKUP(ROWS($AV$9:AV11),$AU$9:$AV$158,2,0),\"\")","v":"Star jump "},null,null,null,{"$f":"IF(ISNUMBER(SEARCH($B$14,BD11)),MAX($BC$8:BC10)+1,0)","v":3},"Star jump ",null,null,{"$f":"IFERROR(VLOOKUP(ROWS($BD$9:BD11),$BC$9:$BD$158,2,0),\"\")","v":"Star jump "},null,null,null,{"$f":"IF(ISNUMBER(SEARCH($B$15,BL11)),MAX($BK$8:BK10)+1,0)","v":3},"Star jump ",null,null,{"$f":"IFERROR(VLOOKUP(ROWS($BL$9:BL11),$BK$9:$BL$158,2,0),\"\")","v":"Star jump "},null,null,null,{"$f":"IF(ISNUMBER(SEARCH($B$16,BT11)),MAX($BS$8:BS10)+1,0)","v":3},"Star jump ",null,null,{"$f":"IFERROR(VLOOKUP(ROWS($BT$9:BT11),$BS$9:$BT$158,2,0),\"\")","v":"Star jump "},null,null,null,{"$f":"IF(ISNUMBER(SEARCH($B$17,CB11)),MAX($CA$8:CA10)+1,0)","v":3},"Star jump ",null,null,{"$f":"IFERROR(VLOOKUP(ROWS($CB$9:CB11),$CA$9:$CB$158,2,0),\"\")","v":"Star jump "},null,null,null,{"$f":"IF(ISNUMBER(SEARCH($B$18,CJ11)),MAX($CI$8:CI10)+1,0)","v":3},"Star jump ",null,null,{"$f":"IFERROR(VLOOKUP(ROWS($CJ$9:CJ11),$CI$9:$CJ$158,2,0),\"\")","v":"Star jump "},null,null,null,"","","","No","",{"$f":"IF(K11<>\"Acrobatic skill\",\"\",IF(VLOOKUP(B11,Moves!$A$1:$D$151,4,FALSE)=\"\",IF(I11=\"X\",\"Yes\",IF(J11=\"X\",\"Yes\",\"No\")),\"No\"))","v":""},{"$f":"IF(K11<>\"Flight skill\",\"\",IF(J11=\"X\",IF(VLOOKUP(B11,Moves!$A$1:$D$151,4,FALSE)<>\"FS\",\"No\",\"Yes\"),\"No\"))","v":""},"","","Yes","","",null,"","","",""]
[4,null,null,{"$f":"IFERROR(IF(VLOOKUP(B12,Moves!$A$1:$D$151,2,FALSE)=\"A\",\"X\",\" \"),\"\")","v":""},{"$f":"IFERROR(IF(VLOOKUP(B12,Moves!$A$1:$D$151,2,FALSE)=\"B\",\"X\",\" \"),\"\")","v":""},{"$f":"IFERROR(IF(VLOOKUP(B12,Moves!$A$1:$D$151,2,FALSE)=\"C\",\"X\",\" \"),\"\")","v":""},{"$f":"IFERROR(IF(VLOOKUP(B12,Moves!$A$1:$D$151,3,FALSE)=1,\"X\",\" \"),\"\")","v":""},{"$f":"IFERROR(IF(VLOOKUP(B12,Moves!$A$1:$D$151,3,FALSE)=2,\"X\",\" \"),\"\")","v":""},{"$f":"IFERROR(IF(VLOOKUP(B12,Moves!$A$1:$D$151,3,FALSE)=3,\"X\",\" \"),\"\")","v":""},{"$f":"IFERROR(IF(VLOOKUP(B12,Moves!$A$1:$D$151,3,FALSE)=4,\"X\",\" \"),\"\")","v":""},null,null,null,null,{"$f":"IF(ISNUMBER(SEARCH($B$9,P12)),MAX($O$8:O11)+1,0)","v":4},"Tuck jump",null,null,{"$f":"IFERROR(VLOOKUP(ROWS($P$9:P12),$O$9:$P$158,2,0),\"\")","v":"Tuck jump"},null,null,null,{"$f":"IF(ISNUMBER(SEARCH($B$10,X12)),MAX($W$8:W11)+1,0)","v":4},"Tuck jump",null,null,{"$f":"IFERROR(VLOOKUP(ROWS($X$9:X12),$W$9:$X$158,2,0),\"\")","v":"Tuck jump"},null,null,null,{"$f":"IF(ISNUMBER(SEARCH($B$11,AF12)),MAX($AE$8:AE11)+1,0)","v":4},"Tuck jump",null,null,{"$f":"IFERROR(VLOOKUP(ROWS($AF$9:AF12),$AE$9:$AF$158,2,0),\"\")","v":"Tuck jump"},null,null,null,{"$f":"IF(ISNUMBER(SEARCH($B$12,AN12)),MAX($AM$8:AM11)+1,0)","v":4},"Tuck jump",null,null,{"$f":"IFERROR(VLOOKUP(ROWS($AN$9:AN12),$AM$9:$AN$158,2,0),\"\")","v":"Tuck jump"},null,null,null,{"$f":"IF(ISNUMBER(SEARCH($B$13,AV12)),MAX($AU$8:AU11)+1,0)","v":4},"Tuck jump",null,null,{"$f":"IFERROR(VLOOKUP(ROWS($AV$9:AV12),$AU$9:$AV$158,2,0),\"\")","v":"Tuck jump"},null,null,null,{"$f":"IF(ISNUMBER(SEARCH($B$14,BD12)),MAX($BC$8:BC11)+1,0)","v":4},"Tuck jump",null,null,{"$f":"IFERROR(VLOOKUP(ROWS($BD$9:BD12),$BC$9:$BD$158,2,0),\"\")","v":"Tuck jump"},null,null,null,{"$f":"IF(ISNUMBER(SEARCH($B$15,BL12)),MAX($BK$8:BK11)+1,0)","v":4},"Tuck jump",null,null,{"$f":"IFERROR(VLOOKUP(ROWS($BL$9:BL12),$BK$9:$BL$158,2,0),\"\")","v":"Tuck jump"},null,null,null,{"$f":"IF(ISNUMBER(SEARCH($B$16,BT12)),MAX($BS$8:BS11)+1,0)","v":4},"Tuck jump",null,null,{"$f":"IFERROR(VLOOKUP(ROWS($BT$9:BT12),$BS$9:$BT$158,2,0),\"\")","v":"Tuck jump"},null,null,null,{"$f":"IF(ISNUMBER(SEARCH($B$17,CB12)),MAX($CA$8:CA11)+1,0)","v":4},"Tuck jump",null,null,{"$f":"IFERROR(VLOOKUP(ROWS($CB$9:CB12),$CA$9:$CB$158,2,0),\"\")","v":"Tuck jump"},null,null,null,{"$f":"IF(ISNUMBER(SEARCH($B$18,CJ12)),MAX($CI$8:CI11)+1,0)","v":4},"Tuck jump",null,null,{"$f":"IFERROR(VLOOKUP(ROWS($CJ$9:CJ12),$CI$9:$CJ$158,2,0),\"\")","v":"Tuck jump"},null,null,null,"","","","No","",{"$f":"IF(K12<>\"Acrobatic skill\",\"\",IF(VLOOKUP(B12,Moves!$A$1:$D$151,4,FALSE)=\"\",IF(I12=\"X\",\"Yes\",IF(J12=\"X\",\"Yes\",\"No\")),\"No\"))","v":""},{"$f":"IF(K12<>\"Flight skill\",\"\",IF(J12=\"X\",IF(VLOOKUP(B12,Moves!$A$1:$D$151,4,FALSE)<>\"FS\",\"No\",\"Yes\"),\"No\"))","v":""},"","","Yes","","",null,"","","",""]
[5,null,null,{"$f":"IFERROR(IF(VLOOKUP(B13,Moves!$A$1:$D$151,2,FALSE)=\"A\",\"X\",\" \"),\"\")","v":""},{"$f":"IFERROR(IF(VLOOKUP(B13,Moves!$A$1:$D$151,2,FALSE)=\"B\",\"X\",\" \"),\"\")","v":""},{"$f":"IFERROR(IF(VLOOKUP(B13,Moves!$A$1:$D$151,2,FALSE)=\"C\",\"X\",\" \"),\"\")","v":""},{"$f":"IFERROR(IF(VLOOKUP(B13,Moves!$A$1:$D$151,3,FALSE)=1,\"X\",\" \"),\"\")","v":""},{"$f":"IFERROR(IF(VLOOKUP(B13,Moves!$A$1:$D$151,3,FALSE)=2,\"X\",\" \"),\"\")","v":""},{"$f":"IFERROR(IF(VLOOKUP(B13,Moves!$A$1:$D$151,3,FALSE)=3,\"X\",\" \"),\"\")","v":""},{"$f":"IFERROR(IF(VLOOKUP(B13,Moves!$A$1:$D$151,3,FALSE)=4,\"X\",\" \"),\"\")","v":""},null,null,null,null,{"$f":"IF(ISNUMBER(SEARCH($B$9,P13)),MAX($O$8:O12)+1,0)","v":5},"2 x dynamic 1/2 turns on knees",null,null,{"$f":"IFERROR(VLOOKUP(ROWS($P$9:P13),$O$9:$P$158,2,0),\"\")","v":"2 x dynamic 1/2 turns on knees"},null,null,null,{"$f":"IF(ISNUMBER(SEARCH($B$10,X13)),MAX($W$8:W12)+1,0)","v":5},"2 x dynamic 1/2 turns on knees",null,null,{"$f":"IFERROR(VLOOKUP(ROWS($X$9:X13),$W$9:$X$158,2,0),\"\")","v":"2 x dynamic 1/2 turns on knees"},null,null,null,{"$f":"IF(ISNUMBER(SEARCH($B$11,AF13)),MAX($AE$8:AE12)+1,0)","v":5},"2 x dynamic 1/2 turns on knees",null,null,{"$f":"IFERROR(VLOOKUP(ROWS($AF$9:AF13),$AE$9:$AF$158,2,0),\"\")","v":"2 x dynamic 1/2 turns on knees"},null,null,null,{"$f":"IF(ISNUMBER(SEARCH($B$12,AN13)),MAX($AM$8:AM12)+1,0)","v":5},"2 x dynamic 1/2 turns on knees",null,null,{"$f":"IFERROR(VLOOKUP(ROWS($AN$9:AN13),$AM$9:$AN$158,2,0),\"\")","v":"2 x dynamic 1/2 turns on knees"},null,null,null,{"$f":"IF(ISNUMBER(SEARCH($B$13,AV13)),MAX($AU$8:AU12)+1,0)","v":5},"2 x dynamic 1/2 turns on knees",null,null,{"$f":"IFERROR(VLOOKUP(ROWS($AV$9:AV13),$AU$9:$AV$158,2,0),\"\")","v":"2 x dynamic 1/2 turns on knees"},null,null,null,{"$f":"IF(ISNUMBER(SEARCH($B$14,BD13)),MAX($BC$8:BC12)+1,0)","v":5},"2 x dynamic 1/2 turns on knees",null,null,{"$f":"IFERROR(VLOOKUP(ROWS($BD$9:BD13),$BC$9:$BD$158,2,0),\"\")","v":"2 x dynamic 1/2 turns on knees"},null,null,null,{"$f":"IF(ISNUMBER(SEARCH($B$15,BL13)),MAX($BK$8:BK12)+1,0)","v":5},"2 x dynamic 1/2 turns on knees",null,null,{"$f":"IFERROR(VLOOKUP(ROWS($BL$9:BL13),$BK$9:$BL$158,2,0),\"\")","v":"2 x dynamic 1/2 turns on knees"},null,null,null,{"$f":"IF(ISNUMBER(SEARCH($B$16,BT13)),MAX($BS$8:BS12)+1,0)","v":5},"2 x dynamic 1/2 turns on knees",null,null,{"$f":"IFERROR(VLOOKUP(ROWS($BT$9:BT13),$BS$9:$BT$158,2,0),\"\")","v":"2 x dynamic 1/2 turns on knees"},null,null,null,{"$f":"IF(ISNUMBER(SEARCH($B$17,CB13)),MAX($CA$8:CA12)+1,0)","v":5},"2 x dynamic 1/2 turns on knees",null,null,{"$f":"IFERROR(VLOOKUP(ROWS($CB$9:CB13),$CA$9:$CB$158,2,0),\"\")","v":"2 x dynamic 1/2 turns on knees"},null,null,null,{"$f":"IF(ISNUMBER(SEARCH($B$18,CJ13)),MAX($CI$8:CI12)+1,0)","v":5},"2 x dynamic 1/2 turns on knees",null,null,{"$f":"IFERROR(VLOOKUP(ROWS($CJ$9:CJ13),$CI$9:$CJ$158,2,0),\"\")","v":"2 x dynamic 1/2 turns on knees"},null,null,null,"","","","No","",{"$f":"IF(K13<>\"Acrobatic skill\",\"\",IF(VLOOKUP(B13,Moves!$A$1:$D$151,4,FALSE)=\"\",IF(I13=\"X\",\"Yes\",IF(J13=\"X\",\"Yes\",\"No\")),\"No\"))","v":""},{"$f":"IF(K13<>\"Flight skill\",\"\",IF(J13=\"X\",IF(VLOOKUP(B13,Moves!$A$1:$D$151,4,FALSE)<>\"FS\",\"No\",\"Yes\"),\"No\"))","v":""},"","","Yes","","",null,"","","",""]
[6,null,null,{"$f":"IFERROR(IF(VLOOKUP(B14,Moves!$A$1:$D$151,2,FALSE)=\"A\",\"X\",\" \"),\"\")","v":""},{"$f":"IFERROR(IF(VLOOKUP(B14,Moves!$A$1:$D$151,2,FALSE)=\"B\",\"X\",\" \"),\"\")","v":""},{"$f":"IFERROR(IF(VLOOKUP(B14,Moves!$A$1:$D$151,2,FALSE)=\"C\",\"X\",\" \"),\"\")","v":""},{"$f":"IFERROR(IF(VLOOKUP(B14,Moves!$A$1:$D$151,3,FALSE)=1,\"X\",\" \"),\"\")","v":""},{"$f":"IFERROR(IF(VLOOKUP(B14,Moves!$A$1:$D$151,3,FALSE)=2,\"X\",\" \"),\"\")","v":""},{"$f":"IFERROR(IF(VLOOKUP(B14,Moves!$A$1:$D$151,3,FALSE)=3,\"X\",\" \"),\"\")","v":""},{"$f":"IFERROR(IF(VLOOKUP(B14,Moves!$A$1:$D$151,3,FALSE)=4,\"X\",\" \"),\"\")","v":""},null,null,null,null,{"$f":"IF(ISNUMBER(SEARCH($B$9,P14)),MAX($O$8:O13)+1,0)","v":6},"1 leg balance ",null,null,{"$f":"IFERROR(VLOOKUP(ROWS($P$9:P14),$O$9:$P$158,2,0),\"\")","v":"1 leg balance "},null,null,null,{"$f":"IF(ISNUMBER(SEARCH($B$10,X14)),MAX($W$8:W13)+1,0)","v":6},"1 leg balance ",null,null,{"$f":"IFERROR(VLOOKUP(ROWS($X$9:X14),$W$9:$X$158,2,0),\"\")","v":"1 leg balance "},null,null,null,{"$f":"IF(ISNUMBER(SEARCH($B$11,AF14)),MAX($AE$8:AE13)+1,0)","v":6},"1 leg balance ",null,null,{"$f":"IFERROR(VLOOKUP(ROWS($AF$9:AF14),$AE$9:$AF$158,2,0),\"\")","v":"1 leg balance "},null,null,null,{"$f":"IF(ISNUMBER(SEARCH($B$12,AN14)),MAX($AM$8:AM13)+1,0)","v":6},"1 leg balance ",null,null,{"$f":"IFERROR(VLOOKUP(ROWS($AN$9:AN14),$AM$9:$AN$158,2,0),\"\")","v":"1 leg balance "},null,null,null,{"$f":"IF(ISNUMBER(SEARCH($B$13,AV14)),MAX($AU$8:AU13)+1,0)","v":6},"1 leg balance ",null,null,{"$f":"IFERROR(VLOOKUP(ROWS($AV$9:AV14),$AU$9:$AV$158,2,0),\"\")","v":"1 leg balance "},null,null,null,{"$f":"IF(ISNUMBER(SEARCH($B$14,BD14)),MAX($BC$8:BC13)+1,0)","v":6},"1 leg balance ",null,null,{"$f":"IFERROR(VLOOKUP(ROWS($BD$9:BD14),$BC$9:$BD$158,2,0),\"\")","v":"1 leg balance "},null,null,null,{"$f":"IF(ISNUMBER(SEARCH($B$15,BL14)),MAX($BK$8:BK13)+1,0)","v":6},"1 leg balance ",null,null,{"$f":"IFERROR(VLOOKUP(ROWS($BL$9:BL14),$BK$9:$BL$158,2,0),\"\")","v":"1 leg balance "},null,null,null,{"$f":"IF(ISNUMBER(SEARCH($B$16,BT14)),MAX($BS$8:BS13)+1,0)","v":6},"1 leg balance ",null,null,{"$f":"IFERROR(VLOOKUP(ROWS($BT$9:BT14),$BS$9:$BT$158,2,0),\"\")","v":"1 leg balance "},null,null,null,{"$f":"IF(ISNUMBER(SEARCH($B$17,CB14)),MAX($CA$8:CA13)+1,0)","v":6},"1 leg balance ",null,null,{"$f":"IFERROR(VLOOKUP(ROWS($CB$9:CB14),$CA$9:$CB$158,2,0),\"\")","v":"1 leg balance "},null,null,null,{"$f":"IF(ISNUMBER(SEARCH($B$18,CJ14)),MAX($CI$8:CI13)+1,0)","v":6},"1 leg balance ",null,null,{"$f":"IFERROR(VLOOKUP(ROWS($CJ$9:CJ14),$CI$9:$CJ$158,2,0),\"\")","v":"1 leg balance "},null,null,null,"","","","No","",{"$f":"IF(K14<>\"Acrobatic skill\",\"\",IF(VLOOKUP(B14,Moves!$A$1:$D$151,4,FALSE)=\"\",IF(I14=\"X\",\"Yes\",IF(J14=\"X\",\"Yes\",\"No\")),\"No\"))","v":""},{"$f":"IF(K14<>\"Flight skill\",\"\",IF(J14=\"X\",IF(VLOOKUP(B14,Moves!$A$1:$D$151,4,FALSE)<>\"FS\",\"No\",\"Yes\"),\"No\"))","v":""},"","","Yes","","",null,"","","",""]
[7,null,null,{"$f":"IFERROR(IF(VLOOKUP(B15,Moves!$A$1:$D$151,2,FALSE)=\"A\",\"X\",\" \"),\"\")","v":""},{"$f":"IFERROR(IF(VLOOKUP(B15,Moves!$A$1:$D$151,2,FALSE)=\"B\",\"X\",\" \"),\"\")","v":""},{"$f":"IFERROR(IF(VLOOKUP(B15,Moves!$A$1:$D$151,2,FALSE)=\"C\",\"X\",\" \"),\"\")","v":""},{"$f":"IFERROR(IF(VLOOKUP(B15,Moves!$A$1:$D$151,3,FALSE)=1,\"X\",\" \"),\"\")","v":""},{"$f":"IFERROR(IF(VLOOKUP(B15,Moves!$A$1:$D$151,3,FALSE)=2,\"X\",\" \"),\"\")","v":""},{"$f":"IFERROR(IF(VLOOKUP(B15,Moves!$A$1:$D$151,3,FALSE)=3,\"X\",\" \"),\"\")","v":""},{"$f":"IFERROR(IF(VLOOKUP(B15,Moves!$A$1:$D$151,3,FALSE)=4,\"X\",\" \"),\"\")","v":""},null,null,null,null,{"$f":"IF(ISNUMBER(SEARCH($B$9,P15)),MAX($O$8:O14)+1,0)","v":7},"Splits (F or S) ",null,null,{"$f":"IFERROR(VLOOKUP(ROWS($P$9:P15),$O$9:$P$158,2,0),\"\")","v":"Splits (F or S) "},null,null,null,{"$f":"IF(ISNUMBER(SEARCH($B$10,X15)),MAX($W$8:W14)+1,0)","v":7},"Splits (F or S) ",null,null,{"$f":"IFERROR(VLOOKUP(ROWS($X$9:X15),$W$9:$X$158,2,0),\"\")","v":"Splits (F or S) "},null,null,null,{"$f":"IF(ISNUMBER(SEARCH($B$11,AF15)),MAX($AE$8:AE14)+1,0)","v":7},"Splits (F or S) ",null,null,{"$f":"IFERROR(VLOOKUP(ROWS($AF$9:AF15),$AE$9:$AF$158,2,0),\"\")","v":"Splits (F or S) "},null,null,null,{"$f":"IF(ISNUMBER(SEARCH($B$12,AN15)),MAX($AM$8:AM14)+1,0)","v":7},"Splits (F or S) ",null,null,{"$f":"IFERROR(VLOOKUP(ROWS($AN$9:AN15),$AM$9:$AN$158,2,0),\"\")","v":"Splits (F or S) "},null,null,null,{"$f":"IF(ISNUMBER(SEARCH($B$13,AV15)),MAX($AU$8:AU14)+1,0)","v":7},"Splits (F or S) ",null,null,{"$f":"IFERROR(VLOOKUP(ROWS($AV$9:AV15),$AU$9:$AV$158,2,0),\"\")","v":"Splits (F or S) "},null,null,null,{"$f":"IF(ISNUMBER(SEARCH($B$14,BD15)),MAX($BC$8:BC14)+1,0)","v":7},"Splits (F or S) ",null,null,{"$f":"IFERROR(VLOOKUP(ROWS($BD$9:BD15),$BC$9:$BD$158,2,0),\"\")","v":"Splits (F or S) "},null,null,null,{"$f":"IF(ISNUMBER(SEARCH($B$15,BL15)),MAX($BK$8:BK14)+1,0)","v":7},"Splits (F or S) ",null,null,{"$f":"IFERROR(VLOOKUP(ROWS($BL$9:BL15),$BK$9:$BL$158,2,0),\"\")","v":"Splits (F or S) "},null,null,null,{"$f":"IF(ISNUMBER(SEARCH($B$16,BT15)),MAX($BS$8:BS14)+1,0)","v":7},"Splits (F or S) ",null,null,{"$f":"IFERROR(VLOOKUP(ROWS($BT$9:BT15),$BS$9:$BT$158,2,0),\"\")","v":"Splits (F or S) "},null,null,null,{"$f":"IF(ISNUMBER(SEARCH($B$17,CB15)),MAX($CA$8:CA14)+1,0)","v":7},"Splits (F or S) ",null,null,{"$f":"IFERROR(VLOOKUP(ROWS($CB$9:CB15),$CA$9:$CB$158,2,0),\"\")","v":"Splits (F or S) "},null,null,null,{"$f":"IF(ISNUMBER(SEARCH($B$18,CJ15)),MAX($CI$8:CI14)+1,0)","v":7},"Splits (F or S) ",null,null,{"$f":"IFERROR(VLOOKUP(ROWS($CJ$9:CJ15),$CI$9:$CJ$158,2,0),\"\")","v":"Splits (F or S) "},null,null,null,"","","","No","",{"$f":"IF(K15<>\"Acrobatic skill\",\"\",IF(VLOOKUP(B15,Moves!$A$1:$D$151,4,FALSE)=\"\",IF(I15=\"X\",\"Yes\",IF(J15=\"X\",\"Yes\",\"No\")),\"No\"))","v":""},{"$f":"IF(K15<>\"Flight skill\",\"\",IF(J15=\"X\",IF(VLOOKUP(B15,Moves!$A$1:$D$151,4,FALSE)<>\"FS\",\"No\",\"Yes\"),\"No\"))","v":""},"","","Yes","","",null,"","","",""]
[8,null,null,{"$f":"IFERROR(IF(VLOOKUP(B16,Moves!$A$1:$D$151,2,FALSE)=\"A\",\"X\",\" \"),\"\")","v":""},{"$f":"IFERROR(IF(VLOOKUP(B16,Moves!$A$1:$D$151,2,FALSE)=\"B\",\"X\",\" \"),\"\")","v":""},{"$f":"IFERROR(IF(VLOOKUP(B16,Moves!$A$1:$D$151,2,FALSE)=\"C\",\"X\",\" \"),\"\")","v":""},{"$f":"IFERROR(IF(VLOOKUP(B16,Moves!$A$1:$D$151,3,FALSE)=1,\"X\",\" \"),\"\")","v":""},{"$f":"IFERROR(IF(VLOOKUP(B16,Moves!$A$1:$D$151,3,FALSE)=2,\"X\",\" \"),\"\")","v":""},{"$f":"IFERROR(IF(VLOOKUP(B16,Moves!$A$1:$D$151,3,FALSE)=3,\"X\",\" \"),\"\")","v":""},{"$f":"IFERROR(IF(VLOOKUP(B16,Moves!$A$1:$D$151,3,FALSE)=4,\"X\",\" \"),\"\")","v":""},null,null,null,null,{"$f":"IF(ISNUMBER(SEARCH($B$9,P16)),MAX($O$8:O15)+1,0)","v":8},"Japana (up to 45⁰ chest)",null,null,{"$f":"IFERROR(VLOOKUP(ROWS($P$9:P16),$O$9:$P$158,2,0),\"\")","v":"Japana (up to 45⁰ chest)"},null,null,null,{"$f":"IF(ISNUMBER(SEARCH($B$10,X16)),MAX($W$8:W15)+1,0)","v":8},"Japana (up to 45⁰ chest)",null,null,{"$f":"IFERROR(VLOOKUP(ROWS($X$9:X16),$W$9:$X$158,2,0),\"\")","v":"Japana (up to 45⁰ chest)"},null,null,null,{"$f":"IF(ISNUMBER(SEARCH($B$11,AF16)),MAX($AE$8:AE15)+1,0)","v":8},"Japana (up to 45⁰ chest)",null,null,{"$f":"IFERROR(VLOOKUP(ROWS($AF$9:AF16),$AE$9:$AF$158,2,0),\"\")","v":"Japana (up to 45⁰ chest)"},null,null,null,{"$f":"IF(ISNUMBER(SEARCH($B$12,AN16)),MAX($AM$8:AM15)+1,0)","v":8},"Japana (up to 45⁰ chest)",null,null,{"$f":"IFERROR(VLOOKUP(ROWS($AN$9:AN16),$AM$9:$AN$158,2,0),\"\")","v":"Japana (up to 45⁰ chest)"},null,null,null,{"$f":"IF(ISNUMBER(SEARCH($B$13,AV16)),MAX($AU$8:AU15)+1,0)","v":8},"Japana (up to 45⁰ chest)",null,null,{"$f":"IFERROR(VLOOKUP(ROWS($AV$9:AV16),$AU$9:$AV$158,2,0),\"\")","v":"Japana (up to 45⁰ chest)"},null,null,null,{"$f":"IF(ISNUMBER(SEARCH($B$14,BD16)),MAX($BC$8:BC15)+1,0)","v":8},"Japana (up to 45⁰ chest)",null,null,{"$f":"IFERROR(VLOOKUP(ROWS($BD$9:BD16),$BC$9:$BD$158,2,0),\"\")","v":"Japana (up to 45⁰ chest)"},null,null,null,{"$f":"IF(ISNUMBER(SEARCH($B$15,BL16)),MAX($BK$8:BK15)+1,0)","v":8},"Japana (up to 45⁰ chest)",null,null,{"$f":"IFERROR(VLOOKUP(ROWS($BL$9:BL16),$BK$9:$BL$158,2,0),\"\")","v":"Japana (up to 45⁰ chest)"},null,null,null,{"$f":"IF(ISNUMBER(SEARCH($B$16,BT16)),MAX($BS$8:BS15)+1,0)","v":8},"Japana (up to 45⁰ chest)",null,null,{"$f":"IFERROR(VLOOKUP(ROWS($BT$9:BT16),$BS$9:$BT$158,2,0),\"\")","v":"Japana (up to 45⁰ chest)"},null,null,null,{"$f":"IF(ISNUMBER(SEARCH($B$17,CB16)),MAX($CA$8:CA15)+1,0)","v":8},"Japana (up to 45⁰ chest)",null,null,{"$f":"IFERROR(VLOOKUP(ROWS($CB$9:CB16),$CA$9:$CB$158,2,0),\"\")","v":"Japana (up to 45⁰ chest)"},null,null,null,{"$f":"IF(ISNUMBER(SEARCH($B$18,CJ16)),MAX($CI$8:CI15)+1,0)","v":8},"Japana (up to 45⁰ chest)",null,null,{"$f":"IFERROR(VLOOKUP(ROWS($CJ$9:CJ16),$CI$9:$CJ$158,2,0),\"\")","v":"Japana (up to 45⁰ chest)"},null,null,null,"","","","No","",{"$f":"IF(K16<>\"Acrobatic skill\",\"\",IF(VLOOKUP(B16,Moves!$A$1:$D$151,4,FALSE)=\"\",IF(I16=\"X\",\"Yes\",IF(J16=\"X\",\"Yes\",\"No\")),\"No\"))","v":""},{"$f":"IF(K16<>\"Flight skill\",\"\",IF(J16=\"X\",IF(VLOOKUP(B16,Moves!$A$1:$D$151,4,FALSE)<>\"FS\",\"No\",\"Yes\"),\"No\"))","v":""},"","","Yes","","",null,"","","",""]
[9,null,null,{"$f":"IFERROR(IF(VLOOKUP(B17,Moves!$A$1:$D$151,2,FALSE)=\"A\",\"X\",\" \"),\"\")","v":""},{"$f":"IFERROR(IF(VLOOKUP(B17,Moves!$A$1:$D$151,2,FALSE)=\"B\",\"X\",\" \"),\"\")","v":""},{"$f":"IFERROR(IF(VLOOKUP(B17,Moves!$A$1:$D$151,2,FALSE)=\"C\",\"X\",\" \"),\"\")","v":""},{"$f":"IFERROR(IF(VLOOKUP(B17,Moves!$A$1:$D$151,3,FALSE)=1,\"X\",\" \"),\"\")","v":""},{"$f":"IFERROR(IF(VLOOKUP(B17,Moves!$A$1:$D$151,3,FALSE)=2,\"X\",\" \"),\"\")","v":""},{"$f":"IFERROR(IF(VLOOKUP(B17,Moves!$A$1:$D$151,3,FALSE)=3,\"X\",\" \"),\"\")","v":""},{"$f":"IFERROR(IF(VLOOKUP(B17,Moves!$A$1:$D$151,3,FALSE)=4,\"X\",\" \"),\"\")","v":""},null,null,null,null,{"$f":"IF(ISNUMBER(SEARCH($B$9,P17)),MAX($O$8:O16)+1,0)","v":9},"D Shape",null,null,{"$f":"IFERROR(VLOOKUP(ROWS($P$9:P17),$O$9:$P$158,2,0),\"\")","v":"D Shape"},null,null,null,{"$f":"IF(ISNUMBER(SEARCH($B$10,X17)),MAX($W$8:W16)+1,0)","v":9},"D Shape",null,null,{"$f":"IFERROR(VLOOKUP(ROWS($X$9:X17),$W$9:$X$158,2,0),\"\")","v":"D Shape"},null,null,null,{"$f":"IF(ISNUMBER(SEARCH($B$11,AF17)),MAX($AE$8:AE16)+1,0)","v":9},"D Shape",null,null,{"$f":"IFERROR(VLOOKUP(ROWS($AF$9:AF17),$AE$9:$AF$158,2,0),\"\")","v":"D Shape"},null,null,null,{"$f":"IF(ISNUMBER(SEARCH($B$12,AN17)),MAX($AM$8:AM16)+1,0)","v":9},"D Shape",null,null,{"$f":"IFERROR(VLOOKUP(ROWS($AN$9:AN17),$AM$9:$AN$158,2,0),\"\")","v":"D Shape"},null,null,null,{"$f":"IF(ISNUMBER(SEARCH($B$13,AV17)),MAX($AU$8:AU16)+1,0)","v":9},"D Shape",null,null,{"$f":"IFERROR(VLOOKUP(ROWS($AV$9:AV17),$AU$9:$AV$158,2,0),\"\")","v":"D Shape"},null,null,null,{"$f":"IF(ISNUMBER(SEARCH($B$14,BD17)),MAX($BC$8:BC16)+1,0)","v":9},"D Shape",null,null,{"$f":"IFERROR(VLOOKUP(ROWS($BD$9:BD17),$BC$9:$BD$158,2,0),\"\")","v":"D Shape"},null,null,null,{"$f":"IF(ISNUMBER(SEARCH($B$15,BL17)),MAX($BK$8:BK16)+1,0)","v":9},"D Shape",null,null,{"$f":"IFERROR(VLOOKUP(ROWS($BL$9:BL17),$BK$9:$BL$158,2,0),\"\")","v":"D Shape"},null,null,null,{"$f":"IF(ISNUMBER(SEARCH($B$16,BT17)),MAX($BS$8:BS16)+1,0)","v":9},"D Shape",null,null,{"$f":"IFERROR(VLOOKUP(ROWS($BT$9:BT17),$BS$9:$BT$158,2,0),\"\")","v":"D Shape"},null,null,null,{"$f":"IF(ISNUMBER(SEARCH($B$17,CB17)),MAX($CA$8:CA16)+1,0)","v":9},"D Shape",null,null,{"$f":"IFERROR(VLOOKUP(ROWS($CB$9:CB17),$CA$9:$CB$158,2,0),\"\")","v":"D Shape"},null,null,null,{"$f":"IF(ISNUMBER(SEARCH($B$18,CJ17)),MAX($CI$8:CI16)+1,0)","v":9},"D Shape",null,null,{"$f":"IFERROR(VLOOKUP(ROWS($CJ$9:CJ17),$CI$9:$CJ$158,2,0),\"\")","v":"D Shape"},null,null,null,"","","","No","",{"$f":"IF(K17<>\"Acrobatic skill\",\"\",IF(VLOOKUP(B17,Moves!$A$1:$D$151,4,FALSE)=\"\",IF(I17=\"X\",\"Yes\",IF(J17=\"X\",\"Yes\",\"No\")),\"No\"))","v":""},{"$f":"IF(K17<>\"Flight skill\",\"\",IF(J17=\"X\",IF(VLOOKUP(B17,Moves!$A$1:$D$151,4,FALSE)<>\"FS\",\"No\",\"Yes\"),\"No\"))","v":""},"","","Yes","","",null,"","","",""]
[10,null,null,{"$f":"IFERROR(IF(VLOOKUP(B18,Moves!$A$1:$D$151,2,FALSE)=\"A\",\"X\",\" \"),\"\")","v":""},{"$f":"IFERROR(IF(VLOOKUP(B18,Moves!$A$1:$D$151,2,FALSE)=\"B\",\"X\",\" \"),\"\")","v":""},{"$f":"IFERROR(IF(VLOOKUP(B18,Moves!$A$1:$D$151,2,FALSE)=\"C\",\"X\",\" \"),\"\")","v":""},{"$f":"IFERROR(IF(VLOOKUP(B18,Moves!$A$1:$D$151,3,FALSE)=1,\"X\",\" \"),\"\")","v":""},{"$f":"IFERROR(IF(VLOOKUP(B18,Moves!$A$1:$D$151,3,FALSE)=2,\"X\",\" \"),\"\")","v":""},{"$f":"IFERROR(IF(VLOOKUP(B18,Moves!$A$1:$D$151,3,FALSE)=3,\"X\",\" \"),\"\")","v":""},{"$f":"IFERROR(IF(VLOOKUP(B18,Moves!$A$1:$D$151,3,FALSE)=4,\"X\",\" \"),\"\")","v":""},null,null,null,null,{"$f":"IF(ISNUMBER(SEARCH($B$9,P18)),MAX($O$8:O17)+1,0)","v":10},"F or B support (lower or push up) ",null,null,{"$f":"IFERROR(VLOOKUP(ROWS($P$9:P18),$O$9:$P$158,2,0),\"\")","v":"F or B support (lower or push up) "},null,null,null,{"$f":"IF(ISNUMBER(SEARCH($B$10,X18)),MAX($W$8:W17)+1,0)","v":10},"F or B support (lower or push up) ",null,null,{"$f":"IFERROR(VLOOKUP(ROWS($X$9:X18),$W$9:$X$158,2,0),\"\")","v":"F or B support (lower or push up) "},null,null,null,{"$f":"IF(ISNUMBER(SEARCH($B$11,AF18)),MAX($AE$8:AE17)+1,0)","v":10},"F or B support (lower or push up) ",null,null,{"$f":"IFERROR(VLOOKUP(ROWS($AF$9:AF18),$AE$9:$AF$158,2,0),\"\")","v":"F or B support (lower or push up) "},null,null,null,{"$f":"IF(ISNUMBER(SEARCH($B$12,AN18)),MAX($AM$8:AM17)+1,0)","v":10},"F or B support (lower or push up) ",null,null,{"$f":"IFERROR(VLOOKUP(ROWS($AN$9:AN18),$AM$9:$AN$158,2,0),\"\")","v":"F or B support (lower or push up) "},null,null,null,{"$f":"IF(ISNUMBER(SEARCH($B$13,AV18)),MAX($AU$8:AU17)+1,0)","v":10},"F or B support (lower or push up) ",null,null,{"$f":"IFERROR(VLOOKUP(ROWS($AV$9:AV18),$AU$9:$AV$158,2,0),\"\")","v":"F or B support (lower or push up) "},null,null,null,{"$f":"IF(ISNUMBER(SEARCH($B$14,BD18)),MAX($BC$8:BC17)+1,0)","v":10},"F or B support (lower or push up) ",null,null,{"$f":"IFERROR(VLOOKUP(ROWS($BD$9:BD18),$BC$9:$BD$158,2,0),\"\")","v":"F or B support (lower or push up) "},null,null,null,{"$f":"IF(ISNUMBER(SEARCH($B$15,BL18)),MAX($BK$8:BK17)+1,0)","v":10},"F or B support (lower or push up) ",null,null,{"$f":"IFERROR(VLOOKUP(ROWS($BL$9:BL18),$BK$9:$BL$158,2,0),\"\")","v":"F or B support (lower or push up) "},null,null,null,{"$f":"IF(ISNUMBER(SEARCH($B$16,BT18)),MAX($BS$8:BS17)+1,0)","v":10},"F or B support (lower or push up) ",null,null,{"$f":"IFERROR(VLOOKUP(ROWS($BT$9:BT18),$BS$9:$BT$158,2,0),\"\")","v":"F or B support (lower or push up) "},null,null,null,{"$f":"IF(ISNUMBER(SEARCH($B$17,CB18)),MAX($CA$8:CA17)+1,0)","v":10},"F or B support (lower or push up) ",null,null,{"$f":"IFERROR(VLOOKUP(ROWS($CB$9:CB18),$CA$9:$CB$158,2,0),\"\")","v":"F or B support (lower or push up) "},null,null,null,{"$f":"IF(ISNUMBER(SEARCH($B$18,CJ18)),MAX($CI$8:CI17)+1,0)","v":10},"F or B support (lower or push up) ",null,null,{"$f":"IFERROR(VLOOKUP(ROWS($CJ$9:CJ18),$CI$9:$CJ$158,2,0),\"\")","v":"F or B support (lower or push up) "},null,null,null,"","","","No","",{"$f":"IF(K18<>\"Acrobatic skill\",\"\",IF(VLOOKUP(B18,Moves!$A$1:$D$151,4,FALSE)=\"\",IF(I18=\"X\",\"Yes\",IF(J18=\"X\",\"Yes\",\"No\")),\"No\"))","v":""},{"$f":"IF(K18<>\"Flight skill\",\"\",IF(J18=\"X\",IF(VLOOKUP(B18,Moves!$A$1:$D$151,4,FALSE)<>\"FS\",\"No\",\"Yes\"),\"No\"))","v":""},"","","Yes","","",null,"","","",""]
[null,null,null,null,null,null,null,null,null,null,null,null,null,null,{"$f":"IF(ISNUMBER(SEARCH($B$9,P19)),MAX($O$8:O18)+1,0)","v":11},"F Support turn to B Support",null,null,{"$f":"IFERROR(VLOOKUP(ROWS($P$9:P19),$O$9:$P$158,2,0),\"\")","v":"F Support turn to B Support"},null,null,null,{"$f":"IF(ISNUMBER(SEARCH($B$10,X19)),MAX($W$8:W18)+1,0)","v":11},"F Support turn to B Support",null,null,{"$f":"IFERROR(VLOOKUP(ROWS($X$9:X19),$W$9:$X$158,2,0),\"\")","v":"F Support turn to B Support"},null,null,null,{"$f":"IF(ISNUMBER(SEARCH($B$11,AF19)),MAX($AE$8:AE18)+1,0)","v":11},"F Support turn to B Support",null,null,{"$f":"IFERROR(VLOOKUP(ROWS($AF$9:AF19),$AE$9:$AF$158,2,0),\"\")","v":"F Support turn to B Support"},null,null,null,{"$f":"IF(ISNUMBER(SEARCH($B$12,AN19)),MAX($AM$8:AM18)+1,0)","v":11},"F Support turn to B Support",null,null,{"$f":"IFERROR(VLOOKUP(ROWS($AN$9:AN19),$AM$9:$AN$158,2,0),\"\")","v":"F Support turn to B Support"},null,null,null,{"$f":"IF(ISNUMBER(SEARCH($B$13,AV19)),MAX($AU$8:AU18)+1,0)","v":11},"F Support turn to B Support",null,null,{"$f":"IFERROR(VLOOKUP(ROWS($AV$9:AV19),$AU$9:$AV$158,2,0),\"\")","v":"F Support turn to B Support"},null,null,null,{"$f":"IF(ISNUMBER(SEARCH($B$14,BD19)),MAX($BC$8:BC18)+1,0)","v":11},"F Support turn to B Support",null,null,{"$f":"IFERROR(VLOOKUP(ROWS($BD$9:BD19),$BC$9:$BD$158,2,0),\"\")","v":"F Support turn to B Support"},null,null,null,{"$f":"IF(ISNUMBER(SEARCH($B$15,BL19)),MAX($BK$8:BK18)+1,0)","v":11},"F Support turn to B Support",null,null,{"$f":"IFERROR(VLOOKUP(ROWS($BL$9:BL19),$BK$9:$BL$158,2,0),\"\")","v":"F Support turn to B Support"},null,null,null,{"$f":"IF(ISNUMBER(SEARCH($B$16,BT19)),MAX($BS$8:BS18)+1,0)","v":11},"F Support turn to B Support",null,null,{"$f":"IFERROR(VLOOKUP(ROWS($BT$9:BT19),$BS$9:$BT$158,2,0),\"\")","v":"F Support turn to B Support"},null,null,null,{"$f":"IF(ISNUMBER(SEARCH($B$17,CB19)),MAX($CA$8:CA18)+1,0)","v":11},"F Support turn to B Support",null,null,{"$f":"IFERROR(VLOOKUP(ROWS($CB$9:CB19),$CA$9:$CB$158,2,0),\"\")","v":"F Support turn to B Support"},null,null,null,{"$f":"IF(ISNUMBER(SEARCH($B$18,CJ19)),MAX($CI$8:CI18)+1,0)","v":11},"F Support turn to B Support",null,null,{"$f":"IFERROR(VLOOKUP(ROWS($CJ$9:CJ19),$CI$9:$CJ$158,2,0),\"\")","v":"F Support turn to B Support"},null,null,null,null,null,null,null,null,null,{"$f":"IF(K19<>\"Flight skill\",\"\",IF(J19=\"X\",IF(VLOOKUP(B19,Moves!$A$1:$D$151,4,FALSE)<>\"FS\",\"No\",\"Yes\"),\"No\"))","v":""},null,{"$f":"IF(ISERROR(MODE($CY$9:$CY$18)),\"Yes\",\"No\")","v":"Yes"}]
["Judges Section",null,null,"Difficulty",null,null,"Group Content",null,null,null,null,null,null,null,{"$f":"IF(ISNUMBER(SEARCH($B$9,P20)),MAX($O$8:O19)+1,0)","v":12},"Piked V sit (hand supp.)",null,null,{"$f":"IFERROR(VLOOKUP(ROWS($P$9:P20),$O$9:$P$158,2,0),\"\")","v":"Piked V sit (hand supp.)"},null,null,null,{"$f":"IF(ISNUMBER(SEARCH($B$10,X20)),MAX($W$8:W19)+1,0)","v":12},"Piked V sit (hand supp.)",null,null,{"$f":"IFERROR(VLOOKUP(ROWS($X$9:X20),$W$9:$X$158,2,0),\"\")","v":"Piked V sit (hand supp.)"},null,null,null,{"$f":"IF(ISNUMBER(SEARCH($B$11,AF20)),MAX($AE$8:AE19)+1,0)","v":12},"Piked V sit (hand supp.)",null,null,{"$f":"IFERROR(VLOOKUP(ROWS($AF$9:AF20),$AE$9:$AF$158,2,0),\"\")","v":"Piked V sit (hand supp.)"},null,null,null,{"$f":"IF(ISNUMBER(SEARCH($B$12,AN20)),MAX($AM$8:AM19)+1,0)","v":12},"Piked V sit (hand supp.)",null,null,{"$f":"IFERROR(VLOOKUP(ROWS($AN$9:AN20),$AM$9:$AN$158,2,0),\"\")","v":"Piked V sit (hand supp.)"},null,null,null,{"$f":"IF(ISNUMBER(SEARCH($B$13,AV20)),MAX($AU$8:AU19)+1,0)","v":12},"Piked V sit (hand supp.)",null,null,{"$f":"IFERROR(VLOOKUP(ROWS($AV$9:AV20),$AU$9:$AV$158,2,0),\"\")","v":"Piked V sit (hand supp.)"},null,null,null,{"$f":"IF(ISNUMBER(SEARCH($B$14,BD20)),MAX($BC$8:BC19)+1,0)","v":12},"Piked V sit (hand supp.)",null,null,{"$f":"IFERROR(VLOOKUP(ROWS($BD$9:BD20),$BC$9:$BD$158,2,0),\"\")","v":"Piked V sit (hand supp.)"},null,null,null,{"$f":"IF(ISNUMBER(SEARCH($B$15,BL20)),MAX($BK$8:BK19)+1,0)","v":12},"Piked V sit (hand supp.)",null,null,{"$f":"IFERROR(VLOOKUP(ROWS($BL$9:BL20),$BK$9:$BL$158,2,0),\"\")","v":"Piked V sit (hand supp.)"},null,null,null,{"$f":"IF(ISNUMBER(SEARCH($B$16,BT20)),MAX($BS$8:BS19)+1,0)","v":12},"Piked V sit (hand supp.)",null,null,{"$f":"IFERROR(VLOOKUP(ROWS($BT$9:BT20),$BS$9:$BT$158,2,0),\"\")","v":"Piked V sit (hand supp.)"},null,null,null,{"$f":"IF(ISNUMBER(SEARCH($B$17,CB20)),MAX($CA$8:CA19)+1,0)","v":12},"Piked V sit (hand supp.)",null,null,{"$f":"IFERROR(VLOOKUP(ROWS($CB$9:CB20),$CA$9:$CB$158,2,0),\"\")","v":"Piked V sit (hand supp.)"},null,null,null,{"$f":"IF(ISNUMBER(SEARCH($B$18,CJ20)),MAX($CI$8:CI19)+1,0)","v":12},"Piked V sit (hand supp.)",null,null,{"$f":"IFERROR(VLOOKUP(ROWS($CJ$9:CJ20),$CI$9:$CJ$158,2,0),\"\")","v":"Piked V sit (hand supp.)"}]
[null,null,null,"4 x A = 0.80",null,null,"2 x Grp 1",null,null,null,"1 = 0.20","C Skill Gp  1, 2 or 3 = 0.50      ",null,null,{"$f":"IF(ISNUMBER(SEARCH($B$9,P21)),MAX($O$8:O20)+1,0)","v":13},"½ lever (1 foot on floor)",null,null,{"$f":"IFERROR(VLOOKUP(ROWS($P$9:P21),$O$9:$P$158,2,0),\"\")","v":"½ lever (1 foot on floor)"},null,null,null,{"$f":"IF(ISNUMBER(SEARCH($B$10,X21)),MAX($W$8:W20)+1,0)","v":13},"½ lever (1 foot on floor)",null,null,{"$f":"IFERROR(VLOOKUP(ROWS($X$9:X21),$W$9:$X$158,2,0),\"\")","v":"½ lever (1 foot on floor)"},null,null,null,{"$f":"IF(ISNUMBER(SEARCH($B$11,AF21)),MAX($AE$8:AE20)+1,0)","v":13},"½ lever (1 foot on floor)",null,null,{"$f":"IFERROR(VLOOKUP(ROWS($AF$9:AF21),$AE$9:$AF$158,2,0),\"\")","v":"½ lever (1 foot on floor)"},null,null,null,{"$f":"IF(ISNUMBER(SEARCH($B$12,AN21)),MAX($AM$8:AM20)+1,0)","v":13},"½ lever (1 foot on floor)",null,null,{"$f":"IFERROR(VLOOKUP(ROWS($AN$9:AN21),$AM$9:$AN$158,2,0),\"\")","v":"½ lever (1 foot on floor)"},null,null,null,{"$f":"IF(ISNUMBER(SEARCH($B$13,AV21)),MAX($AU$8:AU20)+1,0)","v":13},"½ lever (1 foot on floor)",null,null,{"$f":"IFERROR(VLOOKUP(ROWS($AV$9:AV21),$AU$9:$AV$158,2,0),\"\")","v":"½ lever (1 foot on floor)"},null,null,null,{"$f":"IF(ISNUMBER(SEARCH($B$14,BD21)),MAX($BC$8:BC20)+1,0)","v":13},"½ lever (1 foot on floor)",null,null,{"$f":"IFERROR(VLOOKUP(ROWS($BD$9:BD21),$BC$9:$BD$158,2,0),\"\")","v":"½ lever (1 foot on floor)"},null,null,null,{"$f":"IF(ISNUMBER(SEARCH($B$15,BL21)),MAX($BK$8:BK20)+1,0)","v":13},"½ lever (1 foot on floor)",null,null,{"$f":"IFERROR(VLOOKUP(ROWS($BL$9:BL21),$BK$9:$BL$158,2,0),\"\")","v":"½ lever (1 foot on floor)"},null,null,null,{"$f":"IF(ISNUMBER(SEARCH($B$16,BT21)),MAX($BS$8:BS20)+1,0)","v":13},"½ lever (1 foot on floor)",null,null,{"$f":"IFERROR(VLOOKUP(ROWS($BT$9:BT21),$BS$9:$BT$158,2,0),\"\")","v":"½ lever (1 foot on floor)"},null,null,null,{"$f":"IF(ISNUMBER(SEARCH($B$17,CB21)),MAX($CA$8:CA20)+1,0)","v":13},"½ lever (1 foot on floor)",null,null,{"$f":"IFERROR(VLOOKUP(ROWS($CB$9:CB21),$CA$9:$CB$158,2,0),\"\")","v":"½ lever (1 foot on floor)"},null,null,null,{"$f":"IF(ISNUMBER(SEARCH($B$18,CJ21)),MAX($CI$8:CI20)+1,0)","v":13},"½ lever (1 foot on floor)",null,null,{"$f":"IFERROR(VLOOKUP(ROWS($CJ$9:CJ21),$CI$9:$CJ$158,2,0),\"\")","v":"½ lever (1 foot on floor)"}]
[null,null,null,"4 x B = 1.20",null,null,"2 x Grp 2",null,null,null,"2 = 0.20","C Skill Gp  1, 2 or 3 = 0.50      ",null,null,{"$f":"IF(ISNUMBER(SEARCH($B$9,P22)),MAX($O$8:O21)+1,0)","v":14},"Shoulder stand (hip supp)",null,null,{"$f":"IFERROR(VLOOKUP(ROWS($P$9:P22),$O$9:$P$158,2,0),\"\")","v":"Shoulder stand (hip supp)"},null,null,null,{"$f":"IF(ISNUMBER(SEARCH($B$10,X22)),MAX($W$8:W21)+1,0)","v":14},"Shoulder stand (hip supp)",null,null,{"$f":"IFERROR(VLOOKUP(ROWS($X$9:X22),$W$9:$X$158,2,0),\"\")","v":"Shoulder stand (hip supp)"},null,null,null,{"$f":"IF(ISNUMBER(SEARCH($B$11,AF22)),MAX($AE$8:AE21)+1,0)","v":14},"Shoulder stand (hip supp)",null,null,{"$f":"IFERROR(VLOOKUP(ROWS($AF$9:AF22),$AE$9:$AF$158,2,0),\"\")","v":"Shoulder stand (hip supp)"},null,null,null,{"$f":"IF(ISNUMBER(SEARCH($B$12,AN22)),MAX($AM$8:AM21)+1,0)","v":14},"Shoulder stand (hip supp)",null,null,{"$f":"IFERROR(VLOOKUP(ROWS($AN$9:AN22),$AM$9:$AN$158,2,0),\"\")","v":"Shoulder stand (hip supp)"},null,null,null,{"$f":"IF(ISNUMBER(SEARCH($B$13,AV22)),MAX(AU$8:$AW21)+1,0)","v":14},"Shoulder stand (hip supp)",null,null,{"$f":"IFERROR(VLOOKUP(ROWS($AV$9:AV22),$AU$9:$AV$158,2,0),\"\")","v":"Shoulder stand (hip supp)"},null,null,null,{"$f":"IF(ISNUMBER(SEARCH($B$14,BD22)),MAX(BC$8:$BE21)+1,0)","v":14},"Shoulder stand (hip supp)",null,null,{"$f":"IFERROR(VLOOKUP(ROWS($BD$9:BD22),$BC$9:$BD$158,2,0),\"\")","v":"Shoulder stand (hip supp)"},null,null,null,{"$f":"IF(ISNUMBER(SEARCH($B$15,BL22)),MAX(BK$8:$BM21)+1,0)","v":14},"Shoulder stand (hip supp)",null,null,{"$f":"IFERROR(VLOOKUP(ROWS($BL$9:BL22),$BK$9:$BL$158,2,0),\"\")","v":"Shoulder stand (hip supp)"},null,null,null,{"$f":"IF(ISNUMBER(SEARCH($B$16,BT22)),MAX(BS$8:$BU21)+1,0)","v":14},"Shoulder stand (hip supp)",null,null,{"$f":"IFERROR(VLOOKUP(ROWS($BT$9:BT22),$BS$9:$BT$158,2,0),\"\")","v":"Shoulder stand (hip supp)"},null,null,null,{"$f":"IF(ISNUMBER(SEARCH($B$17,CB22)),MAX(CA$8:$CC21)+1,0)","v":14},"Shoulder stand (hip supp)",null,null,{"$f":"IFERROR(VLOOKUP(ROWS($CB$9:CB22),$CA$9:$CB$158,2,0),\"\")","v":"Shoulder stand (hip supp)"},null,null,null,{"$f":"IF(ISNUMBER(SEARCH($B$18,CJ22)),MAX(CI$8:$CK21)+1,0)","v":14},"Shoulder stand (hip supp)",null,null,{"$f":"IFERROR(VLOOKUP(ROWS($CJ$9:CJ22),$CI$9:$CJ$158,2,0),\"\")","v":"Shoulder stand (hip supp)"}]
[null,null,null,null,null,null,"2 x Grp 3",null,null,null,"3 = 0.20","Must be from different",null,null,{"$f":"IF(ISNUMBER(SEARCH($B$9,P23)),MAX($O$8:O22)+1,0)","v":15},"Forward Roll ",null,null,{"$f":"IFERROR(VLOOKUP(ROWS($P$9:P23),$O$9:$P$158,2,0),\"\")","v":"Forward Roll "},null,null,null,{"$f":"IF(ISNUMBER(SEARCH($B$10,X23)),MAX($W$8:W22)+1,0)","v":15},"Forward Roll ",null,null,{"$f":"IFERROR(VLOOKUP(ROWS($X$9:X23),$W$9:$X$158,2,0),\"\")","v":"Forward Roll "},null,null,null,{"$f":"IF(ISNUMBER(SEARCH($B$11,AF23)),MAX($AE$8:AE22)+1,0)","v":15},"Forward Roll ",null,null,{"$f":"IFERROR(VLOOKUP(ROWS($AF$9:AF23),$AE$9:$AF$158,2,0),\"\")","v":"Forward Roll "},null,null,null,{"$f":"IF(ISNUMBER(SEARCH($B$12,AN23)),MAX($AM$8:AM22)+1,0)","v":15},"Forward Roll ",null,null,{"$f":"IFERROR(VLOOKUP(ROWS($AN$9:AN23),$AM$9:$AN$158,2,0),\"\")","v":"Forward Roll "},null,null,null,{"$f":"IF(ISNUMBER(SEARCH($B$13,AV23)),MAX(AU$8:$AW22)+1,0)","v":15},"Forward Roll ",null,null,{"$f":"IFERROR(VLOOKUP(ROWS($AV$9:AV23),$AU$9:$AV$158,2,0),\"\")","v":"Forward Roll "},null,null,null,{"$f":"IF(ISNUMBER(SEARCH($B$14,BD23)),MAX(BC$8:$BE22)+1,0)","v":15},"Forward Roll ",null,null,{"$f":"IFERROR(VLOOKUP(ROWS($BD$9:BD23),$BC$9:$BD$158,2,0),\"\")","v":"Forward Roll "},null,null,null,{"$f":"IF(ISNUMBER(SEARCH($B$15,BL23)),MAX(BK$8:$BM22)+1,0)","v":15},"Forward Roll ",null,null,{"$f":"IFERROR(VLOOKUP(ROWS($BL$9:BL23),$BK$9:$BL$158,2,0),\"\")","v":"Forward Roll "},null,null,null,{"$f":"IF(ISNUMBER(SEARCH($B$16,BT23)),MAX(BS$8:$BU22)+1,0)","v":15},"Forward Roll ",null,null,{"$f":"IFERROR(VLOOKUP(ROWS($BT$9:BT23),$BS$9:$BT$158,2,0),\"\")","v":"Forward Roll "},null,null,null,{"$f":"IF(ISNUMBER(SEARCH($B$17,CB23)),MAX(CA$8:$CC22)+1,0)","v":15},"Forward Roll ",null,null,{"$f":"IFERROR(VLOOKUP(ROWS($CB$9:CB23),$CA$9:$CB$158,2,0),\"\")","v":"Forward Roll "},null,null,null,{"$f":"IF(ISNUMBER(SEARCH($B$18,CJ23)),MAX(CI$8:$CK22)+1,0)","v":15},"Forward Roll ",null,null,{"$f":"IFERROR(VLOOKUP(ROWS($CJ$9:CJ23),$CI$9:$CJ$158,2,0),\"\")","v":"Forward Roll "}]
[null,null,null,null,null,null,"2 x Grp 4",null,null,null,"4 = 0.20","groups",null,null,{"$f":"IF(ISNUMBER(SEARCH($B$9,P24)),MAX($O$8:O23)+1,0)","v":16},"Back Roll & to straddle",null,null,{"$f":"IFERROR(VLOOKUP(ROWS($P$9:P24),$O$9:$P$158,2,0),\"\")","v":"Back Roll & to straddle"},null,null,null,{"$f":"IF(ISNUMBER(SEARCH($B$10,X24)),MAX($W$8:W23)+1,0)","v":16},"Back Roll & to straddle",null,null,{"$f":"IFERROR(VLOOKUP(ROWS($X$9:X24),$W$9:$X$158,2,0),\"\")","v":"Back Roll & to straddle"},null,null,null,{"$f":"IF(ISNUMBER(SEARCH($B$11,AF24)),MAX($AE$8:AE23)+1,0)","v":16},"Back Roll & to straddle",null,null,{"$f":"IFERROR(VLOOKUP(ROWS($AF$9:AF24),$AE$9:$AF$158,2,0),\"\")","v":"Back Roll & to straddle"},null,null,null,{"$f":"IF(ISNUMBER(SEARCH($B$12,AN24)),MAX($AM$8:AM23)+1,0)","v":16},"Back Roll & to straddle",null,null,{"$f":"IFERROR(VLOOKUP(ROWS($AN$9:AN24),$AM$9:$AN$158,2,0),\"\")","v":"Back Roll & to straddle"},null,null,null,{"$f":"IF(ISNUMBER(SEARCH($B$13,AV24)),MAX(AU$8:$AW23)+1,0)","v":16},"Back Roll & to straddle",null,null,{"$f":"IFERROR(VLOOKUP(ROWS($AV$9:AV24),$AU$9:$AV$158,2,0),\"\")","v":"Back Roll & to straddle"},null,null,null,{"$f":"IF(ISNUMBER(SEARCH($B$14,BD24)),MAX(BC$8:$BE23)+1,0)","v":16},"Back Roll & to straddle",null,null,{"$f":"IFERROR(VLOOKUP(ROWS($BD$9:BD24),$BC$9:$BD$158,2,0),\"\")","v":"Back Roll & to straddle"},null,null,null,{"$f":"IF(ISNUMBER(SEARCH($B$15,BL24)),MAX(BK$8:$BM23)+1,0)","v":16},"Back Roll & to straddle",null,null,{"$f":"IFERROR(VLOOKUP(ROWS($BL$9:BL24),$BK$9:$BL$158,2,0),\"\")","v":"Back Roll & to straddle"},null,null,null,{"$f":"IF(ISNUMBER(SEARCH($B$16,BT24)),MAX(BS$8:$BU23)+1,0)","v":16},"Back Roll & to straddle",null,null,{"$f":"IFERROR(VLOOKUP(ROWS($BT$9:BT24),$BS$9:$BT$158,2,0),\"\")","v":"Back Roll & to straddle"},null,null,null,{"$f":"IF(ISNUMBER(SEARCH($B$17,CB24)),MAX(CA$8:$CC23)+1,0)","v":16},"Back Roll & to straddle",null,null,{"$f":"IFERROR(VLOOKUP(ROWS($CB$9:CB24),$CA$9:$CB$158,2,0),\"\")","v":"Back Roll & to straddle"},null,null,null,{"$f":"IF(ISNUMBER(SEARCH($B$18,CJ24)),MAX(CI$8:$CK23)+1,0)","v":16},"Back Roll & to straddle",null,null,{"$f":"IFERROR(VLOOKUP(ROWS($CJ$9:CJ24),$CI$9:$CJ$158,2,0),\"\")","v":"Back Roll & to straddle"}]
[null,null,null,null,null,null,null,null,null,null,"5 = 0.20",null,null,null,{"$f":"IF(ISNUMBER(SEARCH($B$9,P25)),MAX($O$8:O24)+1,0)","v":17},"Circle (‘teddy bear’) roll",null,null,{"$f":"IFERROR(VLOOKUP(ROWS($P$9:P25),$O$9:$P$158,2,0),\"\")","v":"Circle (‘teddy bear’) roll"},null,null,null,{"$f":"IF(ISNUMBER(SEARCH($B$10,X25)),MAX($W$8:W24)+1,0)","v":17},"Circle (‘teddy bear’) roll",null,null,{"$f":"IFERROR(VLOOKUP(ROWS($X$9:X25),$W$9:$X$158,2,0),\"\")","v":"Circle (‘teddy bear’) roll"},null,null,null,{"$f":"IF(ISNUMBER(SEARCH($B$11,AF25)),MAX($AE$8:AE24)+1,0)","v":17},"Circle (‘teddy bear’) roll",null,null,{"$f":"IFERROR(VLOOKUP(ROWS($AF$9:AF25),$AE$9:$AF$158,2,0),\"\")","v":"Circle (‘teddy bear’) roll"},null,null,null,{"$f":"IF(ISNUMBER(SEARCH($B$12,AN25)),MAX($AM$8:AM24)+1,0)","v":17},"Circle (‘teddy bear’) roll",null,null,{"$f":"IFERROR(VLOOKUP(ROWS($AN$9:AN25),$AM$9:$AN$158,2,0),\"\")","v":"Circle (‘teddy bear’) roll"},null,null,null,{"$f":"IF(ISNUMBER(SEARCH($B$13,AV25)),MAX(AU$8:$AW24)+1,0)","v":17},"Circle (‘teddy bear’) roll",null,null,{"$f":"IFERROR(VLOOKUP(ROWS($AV$9:AV25),$AU$9:$AV$158,2,0),\"\")","v":"Circle (‘teddy bear’) roll"},null,null,null,{"$f":"IF(ISNUMBER(SEARCH($B$14,BD25)),MAX(BC$8:$BE24)+1,0)","v":17},"Circle (‘teddy bear’) roll",null,null,{"$f":"IFERROR(VLOOKUP(ROWS($BD$9:BD25),$BC$9:$BD$158,2,0),\"\")","v":"Circle (‘teddy bear’) roll"},null,null,null,{"$f":"IF(ISNUMBER(SEARCH($B$15,BL25)),MAX(BK$8:$BM24)+1,0)","v":17},"Circle (‘teddy bear’) roll",null,null,{"$f":"IFERROR(VLOOKUP(ROWS($BL$9:BL25),$BK$9:$BL$158,2,0),\"\")","v":"Circle (‘teddy bear’) roll"},null,null,null,{"$f":"IF(ISNUMBER(SEARCH($B$16,BT25)),MAX(BS$8:$BU24)+1,0)","v":17},"Circle (‘teddy bear’) roll",null,null,{"$f":"IFERROR(VLOOKUP(ROWS($BT$9:BT25),$BS$9:$BT$158,2,0),\"\")","v":"Circle (‘teddy bear’) roll"},null,null,null,{"$f":"IF(ISNUMBER(SEARCH($B$17,CB25)),MAX(CA$8:$CC24)+1,0)","v":17},"Circle (‘teddy bear’) roll",null,null,{"$f":"IFERROR(VLOOKUP(ROWS($CB$9:CB25),$CA$9:$CB$158,2,0),\"\")","v":"Circle (‘teddy bear’) roll"},null,null,null,{"$f":"IF(ISNUMBER(SEARCH($B$18,CJ25)),MAX(CI$8:$CK24)+1,0)","v":17},"Circle (‘teddy bear’) roll",null,null,{"$f":"IFERROR(VLOOKUP(ROWS($CJ$9:CJ25),$CI$9:$CJ$158,2,0),\"\")","v":"Circle (‘teddy bear’) roll"}]
[null,null,null,"Total = 2.00",null,null,null,null,null,null,"Total = 1.00","Total = 1.00",null,null,{"$f":"IF(ISNUMBER(SEARCH($B$9,P26)),MAX($O$8:O25)+1,0)","v":18},"Side Roll (various shapes)",null,null,{"$f":"IFERROR(VLOOKUP(ROWS($P$9:P26),$O$9:$P$158,2,0),\"\")","v":"Side Roll (various shapes)"},null,null,null,{"$f":"IF(ISNUMBER(SEARCH($B$10,X26)),MAX($W$8:W25)+1,0)","v":18},"Side Roll (various shapes)",null,null,{"$f":"IFERROR(VLOOKUP(ROWS($X$9:X26),$W$9:$X$158,2,0),\"\")","v":"Side Roll (various shapes)"},null,null,null,{"$f":"IF(ISNUMBER(SEARCH($B$11,AF26)),MAX($AE$8:AE25)+1,0)","v":18},"Side Roll (various shapes)",null,null,{"$f":"IFERROR(VLOOKUP(ROWS($AF$9:AF26),$AE$9:$AF$158,2,0),\"\")","v":"Side Roll (various shapes)"},null,null,null,{"$f":"IF(ISNUMBER(SEARCH($B$12,AN26)),MAX($AM$8:AM25)+1,0)","v":18},"Side Roll (various shapes)",null,null,{"$f":"IFERROR(VLOOKUP(ROWS($AN$9:AN26),$AM$9:$AN$158,2,0),\"\")","v":"Side Roll (various shapes)"},null,null,null,{"$f":"IF(ISNUMBER(SEARCH($B$13,AV26)),MAX(AU$8:$AW25)+1,0)","v":18},"Side Roll (various shapes)",null,null,{"$f":"IFERROR(VLOOKUP(ROWS($AV$9:AV26),$AU$9:$AV$158,2,0),\"\")","v":"Side Roll (various shapes)"},null,null,null,{"$f":"IF(ISNUMBER(SEARCH($B$14,BD26)),MAX(BC$8:$BE25)+1,0)","v":18},"Side Roll (various shapes)",null,null,{"$f":"IFERROR(VLOOKUP(ROWS($BD$9:BD26),$BC$9:$BD$158,2,0),\"\")","v":"Side Roll (various shapes)"},null,null,null,{"$f":"IF(ISNUMBER(SEARCH($B$15,BL26)),MAX(BK$8:$BM25)+1,0)","v":18},"Side Roll (various shapes)",null,null,{"$f":"IFERROR(VLOOKUP(ROWS($BL$9:BL26),$BK$9:$BL$158,2,0),\"\")","v":"Side Roll (various shapes)"},null,null,null,{"$f":"IF(ISNUMBER(SEARCH($B$16,BT26)),MAX(BS$8:$BU25)+1,0)","v":18},"Side Roll (various shapes)",null,null,{"$f":"IFERROR(VLOOKUP(ROWS($BT$9:BT26),$BS$9:$BT$158,2,0),\"\")","v":"Side Roll (various shapes)"},null,null,null,{"$f":"IF(ISNUMBER(SEARCH($B$17,CB26)),MAX(CA$8:$CC25)+1,0)","v":18},"Side Roll (various shapes)",null,null,{"$f":"IFERROR(VLOOKUP(ROWS($CB$9:CB26),$CA$9:$CB$158,2,0),\"\")","v":"Side Roll (various shapes)"},null,null,null,{"$f":"IF(ISNUMBER(SEARCH($B$18,CJ26)),MAX(CI$8:$CK25)+1,0)","v":18},"Side Roll (various shapes)",null,null,{"$f":"IFERROR(VLOOKUP(ROWS($CJ$9:CJ26),$CI$9:$CJ$158,2,0),\"\")","v":"Side Roll (various shapes)"}]
[null,null,null,null,null,null,null,null,null,null,null,null,null,null,{"$f":"IF(ISNUMBER(SEARCH($B$9,P27)),MAX($O$8:O26)+1,0)","v":19},"Egg roll (leg shape optional)",null,null,{"$f":"IFERROR(VLOOKUP(ROWS($P$9:P27),$O$9:$P$158,2,0),\"\")","v":"Egg roll (leg shape optional)"},null,null,null,{"$f":"IF(ISNUMBER(SEARCH($B$10,X27)),MAX($W$8:W26)+1,0)","v":19},"Egg roll (leg shape optional)",null,null,{"$f":"IFERROR(VLOOKUP(ROWS($X$9:X27),$W$9:$X$158,2,0),\"\")","v":"Egg roll (leg shape optional)"},null,null,null,{"$f":"IF(ISNUMBER(SEARCH($B$11,AF27)),MAX($AE$8:AE26)+1,0)","v":19},"Egg roll (leg shape optional)",null,null,{"$f":"IFERROR(VLOOKUP(ROWS($AF$9:AF27),$AE$9:$AF$158,2,0),\"\")","v":"Egg roll (leg shape optional)"},null,null,null,{"$f":"IF(ISNUMBER(SEARCH($B$12,AN27)),MAX($AM$8:AM26)+1,0)","v":19},"Egg roll (leg shape optional)",null,null,{"$f":"IFERROR(VLOOKUP(ROWS($AN$9:AN27),$AM$9:$AN$158,2,0),\"\")","v":"Egg roll (leg shape optional)"},null,null,null,{"$f":"IF(ISNUMBER(SEARCH($B$13,AV27)),MAX(AU$8:$AW26)+1,0)","v":19},"Egg roll (leg shape optional)",null,null,{"$f":"IFERROR(VLOOKUP(ROWS($AV$9:AV27),$AU$9:$AV$158,2,0),\"\")","v":"Egg roll (leg shape optional)"},null,null,null,{"$f":"IF(ISNUMBER(SEARCH($B$14,BD27)),MAX(BC$8:$BE26)+1,0)","v":19},"Egg roll (leg shape optional)",null,null,{"$f":"IFERROR(VLOOKUP(ROWS($BD$9:BD27),$BC$9:$BD$158,2,0),\"\")","v":"Egg roll (leg shape optional)"},null,null,null,{"$f":"IF(ISNUMBER(SEARCH($B$15,BL27)),MAX(BK$8:$BM26)+1,0)","v":19},"Egg roll (leg shape optional)",null,null,{"$f":"IFERROR(VLOOKUP(ROWS($BL$9:BL27),$BK$9:$BL$158,2,0),\"\")","v":"Egg roll (leg shape optional)"},null,null,null,{"$f":"IF(ISNUMBER(SEARCH($B$16,BT27)),MAX(BS$8:$BU26)+1,0)","v":19},"Egg roll (leg shape optional)",null,null,{"$f":"IFERROR(VLOOKUP(ROWS($BT$9:BT27),$BS$9:$BT$158,2,0),\"\")","v":"Egg roll (leg shape optional)"},null,null,null,{"$f":"IF(ISNUMBER(SEARCH($B$17,CB27)),MAX(CA$8:$CC26)+1,0)","v":19},"Egg roll (leg shape optional)",null,null,{"$f":"IFERROR(VLOOKUP(ROWS($CB$9:CB27),$CA$9:$CB$158,2,0),\"\")","v":"Egg roll (leg shape optional)"},null,null,null,{"$f":"IF(ISNUMBER(SEARCH($B$18,CJ27)),MAX(CI$8:$CK26)+1,0)","v":19},"Egg roll (leg shape optional)",null,null,{"$f":"IFERROR(VLOOKUP(ROWS($CJ$9:CJ27),$CI$9:$CJ$158,2,0),\"\")","v":"Egg roll (leg shape optional)"}]
["Execution",null,null,5,null,null,null,null,null,null,null,null,null,null,{"$f":"IF(ISNUMBER(SEARCH($B$9,P28)),MAX($O$8:O27)+1,0)","v":20},"Tuck Bunny Hop to Handstand ",null,null,{"$f":"IFERROR(VLOOKUP(ROWS($P$9:P28),$O$9:$P$158,2,0),\"\")","v":"Tuck Bunny Hop to Handstand "},null,null,null,{"$f":"IF(ISNUMBER(SEARCH($B$10,X28)),MAX($W$8:W27)+1,0)","v":20},"Tuck Bunny Hop to Handstand ",null,null,{"$f":"IFERROR(VLOOKUP(ROWS($X$9:X28),$W$9:$X$158,2,0),\"\")","v":"Tuck Bunny Hop to Handstand "},null,null,null,{"$f":"IF(ISNUMBER(SEARCH($B$11,AF28)),MAX($AE$8:AE27)+1,0)","v":20},"Tuck Bunny Hop to Handstand ",null,null,{"$f":"IFERROR(VLOOKUP(ROWS($AF$9:AF28),$AE$9:$AF$158,2,0),\"\")","v":"Tuck Bunny Hop to Handstand "},null,null,null,{"$f":"IF(ISNUMBER(SEARCH($B$12,AN28)),MAX($AM$8:AM27)+1,0)","v":20},"Tuck Bunny Hop to Handstand ",null,null,{"$f":"IFERROR(VLOOKUP(ROWS($AN$9:AN28),$AM$9:$AN$158,2,0),\"\")","v":"Tuck Bunny Hop to Handstand "},null,null,null,{"$f":"IF(ISNUMBER(SEARCH($B$13,AV28)),MAX($AU$8:AU27)+1,0)","v":20},"Tuck Bunny Hop to Handstand ",null,null,{"$f":"IFERROR(VLOOKUP(ROWS($AV$9:AV28),$AU$9:$AV$158,2,0),\"\")","v":"Tuck Bunny Hop to Handstand "},null,null,null,{"$f":"IF(ISNUMBER(SEARCH($B$14,BD28)),MAX($BC$8:BC27)+1,0)","v":20},"Tuck Bunny Hop to Handstand ",null,null,{"$f":"IFERROR(VLOOKUP(ROWS($BD$9:BD28),$BC$9:$BD$158,2,0),\"\")","v":"Tuck Bunny Hop to Handstand "},null,null,null,{"$f":"IF(ISNUMBER(SEARCH($B$15,BL28)),MAX($BK$8:BK27)+1,0)","v":20},"Tuck Bunny Hop to Handstand ",null,null,{"$f":"IFERROR(VLOOKUP(ROWS($BL$9:BL28),$BK$9:$BL$158,2,0),\"\")","v":"Tuck Bunny Hop to Handstand "},null,null,null,{"$f":"IF(ISNUMBER(SEARCH($B$16,BT28)),MAX($BS$8:BS27)+1,0)","v":20},"Tuck Bunny Hop to Handstand ",null,null,{"$f":"IFERROR(VLOOKUP(ROWS($BT$9:BT28),$BS$9:$BT$158,2,0),\"\")","v":"Tuck Bunny Hop to Handstand "},null,null,null,{"$f":"IF(ISNUMBER(SEARCH($B$17,CB28)),MAX($CA$8:CA27)+1,0)","v":20},"Tuck Bunny Hop to Handstand ",null,null,{"$f":"IFERROR(VLOOKUP(ROWS($CB$9:CB28),$CA$9:$CB$158,2,0),\"\")","v":"Tuck Bunny Hop to Handstand "},null,null,null,{"$f":"IF(ISNUMBER(SEARCH($B$18,CJ28)),MAX($CI$8:CI27)+1,0)","v":20},"Tuck Bunny Hop to Handstand ",null,null,{"$f":"IFERROR(VLOOKUP(ROWS($CJ$9:CJ28),$CI$9:$CJ$158,2,0),\"\")","v":"Tuck Bunny Hop to Handstand "}]
["Artistry / Linkage",null,null,0.4,null,null,null,null,null,null,null,null,null,null,{"$f":"IF(ISNUMBER(SEARCH($B$9,P29)),MAX($O$8:O28)+1,0)","v":21},"Bridge",null,null,{"$f":"IFERROR(VLOOKUP(ROWS($P$9:P29),$O$9:$P$158,2,0),\"\")","v":"Bridge"},null,null,null,{"$f":"IF(ISNUMBER(SEARCH($B$10,X29)),MAX($W$8:W28)+1,0)","v":21},"Bridge",null,null,{"$f":"IFERROR(VLOOKUP(ROWS($X$9:X29),$W$9:$X$158,2,0),\"\")","v":"Bridge"},null,null,null,{"$f":"IF(ISNUMBER(SEARCH($B$11,AF29)),MAX($AE$8:AE28)+1,0)","v":21},"Bridge",null,null,{"$f":"IFERROR(VLOOKUP(ROWS($AF$9:AF29),$AE$9:$AF$158,2,0),\"\")","v":"Bridge"},null,null,null,{"$f":"IF(ISNUMBER(SEARCH($B$12,AN29)),MAX($AM$8:AM28)+1,0)","v":21},"Bridge",null,null,{"$f":"IFERROR(VLOOKUP(ROWS($AN$9:AN29),$AM$9:$AN$158,2,0),\"\")","v":"Bridge"},null,null,null,{"$f":"IF(ISNUMBER(SEARCH($B$13,AV29)),MAX($AU$8:AU28)+1,0)","v":21},"Bridge",null,null,{"$f":"IFERROR(VLOOKUP(ROWS($AV$9:AV29),$AU$9:$AV$158,2,0),\"\")","v":"Bridge"},null,null,null,{"$f":"IF(ISNUMBER(SEARCH($B$14,BD29)),MAX($BC$8:BC28)+1,0)","v":21},"Bridge",null,null,{"$f":"IFERROR(VLOOKUP(ROWS($BD$9:BD29),$BC$9:$BD$158,2,0),\"\")","v":"Bridge"},null,null,null,{"$f":"IF(ISNUMBER(SEARCH($B$15,BL29)),MAX($BK$8:BK28)+1,0)","v":21},"Bridge",null,null,{"$f":"IFERROR(VLOOKUP(ROWS($BL$9:BL29),$BK$9:$BL$158,2,0),\"\")","v":"Bridge"},null,null,null,{"$f":"IF(ISNUMBER(SEARCH($B$16,BT29)),MAX($BS$8:BS28)+1,0)","v":21},"Bridge",null,null,{"$f":"IFERROR(VLOOKUP(ROWS($BT$9:BT29),$BS$9:$BT$158,2,0),\"\")","v":"Bridge"},null,null,null,{"$f":"IF(ISNUMBER(SEARCH($B$17,CB29)),MAX($CA$8:CA28)+1,0)","v":21},"Bridge",null,null,{"$f":"IFERROR(VLOOKUP(ROWS($CB$9:CB29),$CA$9:$CB$158,2,0),\"\")","v":"Bridge"},null,null,null,{"$f":"IF(ISNUMBER(SEARCH($B$18,CJ29)),MAX($CI$8:CI28)+1,0)","v":21},"Bridge",null,null,{"$f":"IFERROR(VLOOKUP(ROWS($CJ$9:CJ29),$CI$9:$CJ$158,2,0),\"\")","v":"Bridge"}]
["Total Start Value:",null,null,null,null,null,"Total Execution:",null,null,null,null,null,null,null,{"$f":"IF(ISNUMBER(SEARCH($B$9,P30)),MAX($O$8:O29)+1,0)","v":22},"Cartwheel",null,null,{"$f":"IFERROR(VLOOKUP(ROWS($P$9:P30),$O$9:$P$158,2,0),\"\")","v":"Cartwheel"},null,null,null,{"$f":"IF(ISNUMBER(SEARCH($B$10,X30)),MAX($W$8:W29)+1,0)","v":22},"Cartwheel",null,null,{"$f":"IFERROR(VLOOKUP(ROWS($X$9:X30),$W$9:$X$158,2,0),\"\")","v":"Cartwheel"},null,null,null,{"$f":"IF(ISNUMBER(SEARCH($B$11,AF30)),MAX($AE$8:AE29)+1,0)","v":22},"Cartwheel",null,null,{"$f":"IFERROR(VLOOKUP(ROWS($AF$9:AF30),$AE$9:$AF$158,2,0),\"\")","v":"Cartwheel"},null,null,null,{"$f":"IF(ISNUMBER(SEARCH($B$12,AN30)),MAX($AM$8:AM29)+1,0)","v":22},"Cartwheel",null,null,{"$f":"IFERROR(VLOOKUP(ROWS($AN$9:AN30),$AM$9:$AN$158,2,0),\"\")","v":"Cartwheel"},null,null,null,{"$f":"IF(ISNUMBER(SEARCH($B$13,AV30)),MAX($AU$8:AU29)+1,0)","v":22},"Cartwheel",null,null,{"$f":"IFERROR(VLOOKUP(ROWS($AV$9:AV30),$AU$9:$AV$158,2,0),\"\")","v":"Cartwheel"},null,null,null,{"$f":"IF(ISNUMBER(SEARCH($B$14,BD30)),MAX($BC$8:BC29)+1,0)","v":22},"Cartwheel",null,null,{"$f":"IFERROR(VLOOKUP(ROWS($BD$9:BD30),$BC$9:$BD$158,2,0),\"\")","v":"Cartwheel"},null,null,null,{"$f":"IF(ISNUMBER(SEARCH($B$15,BL30)),MAX($BK$8:BK29)+1,0)","v":22},"Cartwheel",null,null,{"$f":"IFERROR(VLOOKUP(ROWS($BL$9:BL30),$BK$9:$BL$158,2,0),\"\")","v":"Cartwheel"},null,null,null,{"$f":"IF(ISNUMBER(SEARCH($B$16,BT30)),MAX($BS$8:BS29)+1,0)","v":22},"Cartwheel",null,null,{"$f":"IFERROR(VLOOKUP(ROWS($BT$9:BT30),$BS$9:$BT$158,2,0),\"\")","v":"Cartwheel"},null,null,null,{"$f":"IF(ISNUMBER(SEARCH($B$17,CB30)),MAX($CA$8:CA29)+1,0)","v":22},"Cartwheel",null,null,{"$f":"IFERROR(VLOOKUP(ROWS($CB$9:CB30),$CA$9:$CB$158,2,0),\"\")","v":"Cartwheel"},null,null,null,{"$f":"IF(ISNUMBER(SEARCH($B$18,CJ30)),MAX($CI$8:CI29)+1,0)","v":22},"Cartwheel",null,null,{"$f":"IFERROR(VLOOKUP(ROWS($CJ$9:CJ30),$CI$9:$CJ$158,2,0),\"\")","v":"Cartwheel"}]
[null,null,null,null,null,null,null,null,null,null,null,null,null,null,{"$f":"IF(ISNUMBER(SEARCH($B$9,P31)),MAX($O$8:O30)+1,0)","v":23},"Handstand return to feet",null,null,{"$f":"IFERROR(VLOOKUP(ROWS($P$9:P31),$O$9:$P$158,2,0),\"\")","v":"Handstand return to feet"},null,null,null,{"$f":"IF(ISNUMBER(SEARCH($B$10,X31)),MAX($W$8:W30)+1,0)","v":23},"Handstand return to feet",null,null,{"$f":"IFERROR(VLOOKUP(ROWS($X$9:X31),$W$9:$X$158,2,0),\"\")","v":"Handstand return to feet"},null,null,null,{"$f":"IF(ISNUMBER(SEARCH($B$11,AF31)),MAX($AE$8:AE30)+1,0)","v":23},"Handstand return to feet",null,null,{"$f":"IFERROR(VLOOKUP(ROWS($AF$9:AF31),$AE$9:$AF$158,2,0),\"\")","v":"Handstand return to feet"},null,null,null,{"$f":"IF(ISNUMBER(SEARCH($B$12,AN31)),MAX($AM$8:AM30)+1,0)","v":23},"Handstand return to feet",null,null,{"$f":"IFERROR(VLOOKUP(ROWS($AN$9:AN31),$AM$9:$AN$158,2,0),\"\")","v":"Handstand return to feet"},null,null,null,{"$f":"IF(ISNUMBER(SEARCH($B$13,AV31)),MAX($AU$8:AU30)+1,0)","v":23},"Handstand return to feet",null,null,{"$f":"IFERROR(VLOOKUP(ROWS($AV$9:AV31),$AU$9:$AV$158,2,0),\"\")","v":"Handstand return to feet"},null,null,null,{"$f":"IF(ISNUMBER(SEARCH($B$14,BD31)),MAX($BC$8:BC30)+1,0)","v":23},"Handstand return to feet",null,null,{"$f":"IFERROR(VLOOKUP(ROWS($BD$9:BD31),$BC$9:$BD$158,2,0),\"\")","v":"Handstand return to feet"},null,null,null,{"$f":"IF(ISNUMBER(SEARCH($B$15,BL31)),MAX($BK$8:BK30)+1,0)","v":23},"Handstand return to feet",null,null,{"$f":"IFERROR(VLOOKUP(ROWS($BL$9:BL31),$BK$9:$BL$158,2,0),\"\")","v":"Handstand return to feet"},null,null,null,{"$f":"IF(ISNUMBER(SEARCH($B$16,BT31)),MAX($BS$8:BS30)+1,0)","v":23},"Handstand return to feet",null,null,{"$f":"IFERROR(VLOOKUP(ROWS($BT$9:BT31),$BS$9:$BT$158,2,0),\"\")","v":"Handstand return to feet"},null,null,null,{"$f":"IF(ISNUMBER(SEARCH($B$17,CB31)),MAX($CA$8:CA30)+1,0)","v":23},"Handstand return to feet",null,null,{"$f":"IFERROR(VLOOKUP(ROWS($CB$9:CB31),$CA$9:$CB$158,2,0),\"\")","v":"Handstand return to feet"},null,null,null,{"$f":"IF(ISNUMBER(SEARCH($B$18,CJ31)),MAX($CI$8:CI30)+1,0)","v":23},"Handstand return to feet",null,null,{"$f":"IFERROR(VLOOKUP(ROWS($CJ$9:CJ31),$CI$9:$CJ$158,2,0),\"\")","v":"Handstand return to feet"}]
[null,null,null,"A","B",null,1,2,3,4,"Sex","Bonus - C Skill",null,null,{"$f":"IF(ISNUMBER(SEARCH($B$9,P32)),MAX($O$8:O31)+1,0)","v":24},"Headstand  (leg optional)",null,null,{"$f":"IFERROR(VLOOKUP(ROWS($P$9:P32),$O$9:$P$158,2,0),\"\")","v":"Headstand  (leg optional)"},null,null,null,{"$f":"IF(ISNUMBER(SEARCH($B$10,X32)),MAX($W$8:W31)+1,0)","v":24},"Headstand  (leg optional)",null,null,{"$f":"IFERROR(VLOOKUP(ROWS($X$9:X32),$W$9:$X$158,2,0),\"\")","v":"Headstand  (leg optional)"},null,null,null,{"$f":"IF(ISNUMBER(SEARCH($B$11,AF32)),MAX($AE$8:AE31)+1,0)","v":24},"Headstand  (leg optional)",null,null,{"$f":"IFERROR(VLOOKUP(ROWS($AF$9:AF32),$AE$9:$AF$158,2,0),\"\")","v":"Headstand  (leg optional)"},null,null,null,{"$f":"IF(ISNUMBER(SEARCH($B$12,AN32)),MAX($AM$8:AM31)+1,0)","v":24},"Headstand  (leg optional)",null,null,{"$f":"IFERROR(VLOOKUP(ROWS($AN$9:AN32),$AM$9:$AN$158,2,0),\"\")","v":"Headstand  (leg optional)"},null,null,null,{"$f":"IF(ISNUMBER(SEARCH($B$13,AV32)),MAX($AU$8:AU31)+1,0)","v":24},"Headstand  (leg optional)",null,null,{"$f":"IFERROR(VLOOKUP(ROWS($AV$9:AV32),$AU$9:$AV$158,2,0),\"\")","v":"Headstand  (leg optional)"},null,null,null,{"$f":"IF(ISNUMBER(SEARCH($B$14,BD32)),MAX($BC$8:BC31)+1,0)","v":24},"Headstand  (leg optional)",null,null,{"$f":"IFERROR(VLOOKUP(ROWS($BD$9:BD32),$BC$9:$BD$158,2,0),\"\")","v":"Headstand  (leg optional)"},null,null,null,{"$f":"IF(ISNUMBER(SEARCH($B$15,BL32)),MAX($BK$8:BK31)+1,0)","v":24},"Headstand  (leg optional)",null,null,{"$f":"IFERROR(VLOOKUP(ROWS($BL$9:BL32),$BK$9:$BL$158,2,0),\"\")","v":"Headstand  (leg optional)"},null,null,null,{"$f":"IF(ISNUMBER(SEARCH($B$16,BT32)),MAX($BS$8:BS31)+1,0)","v":24},"Headstand  (leg optional)",null,null,{"$f":"IFERROR(VLOOKUP(ROWS($BT$9:BT32),$BS$9:$BT$158,2,0),\"\")","v":"Headstand  (leg optional)"},null,null,null,{"$f":"IF(ISNUMBER(SEARCH($B$17,CB32)),MAX($CA$8:CA31)+1,0)","v":24},"Headstand  (leg optional)",null,null,{"$f":"IFERROR(VLOOKUP(ROWS($CB$9:CB32),$CA$9:$CB$158,2,0),\"\")","v":"Headstand  (leg optional)"},null,null,null,{"$f":"IF(ISNUMBER(SEARCH($B$18,CJ32)),MAX($CI$8:CI31)+1,0)","v":24},"Headstand  (leg optional)",null,null,{"$f":"IFERROR(VLOOKUP(ROWS($CJ$9:CJ32),$CI$9:$CJ$158,2,0),\"\")","v":"Headstand  (leg optional)"}]
[null,null,null,{"$f":"IF(COUNTIF(DA9:DA18,\"Yes\")>=4,\"Yes\",\"No\")","v":"No"},{"$f":"IF(COUNTIF(DB9:DB18,\"Yes\")>=4,\"Yes\",\"No\")","v":"No"},null,{"$f":"IF(COUNTIF(G9:G18,\"X\")>=2,IF(COUNTIF(G9:G18,\"X\")<=4,\"Yes\",\"No\"),\"No\")","v":"No"},{"$f":"IF(COUNTIF(H9:H18,\"X\")>=2,IF(COUNTIF(H9:H18,\"X\")<=4,\"Yes\",\"No\"),\"No\")","v":"No"},"No","No","Female","Bonus - C Skill",null,null,{"$f":"IF(ISNUMBER(SEARCH($B$9,P33)),MAX($O$8:O32)+1,0)","v":25},"Split leap / jump (120° )",null,null,{"$f":"IFERROR(VLOOKUP(ROWS($P$9:P33),$O$9:$P$158,2,0),\"\")","v":"Split leap / jump (120° )"},null,null,null,{"$f":"IF(ISNUMBER(SEARCH($B$10,X33)),MAX($W$8:W32)+1,0)","v":25},"Split leap / jump (120° )",null,null,{"$f":"IFERROR(VLOOKUP(ROWS($X$9:X33),$W$9:$X$158,2,0),\"\")","v":"Split leap / jump (120° )"},null,null,null,{"$f":"IF(ISNUMBER(SEARCH($B$11,AF33)),MAX($AE$8:AE32)+1,0)","v":25},"Split leap / jump (120° )",null,null,{"$f":"IFERROR(VLOOKUP(ROWS($AF$9:AF33),$AE$9:$AF$158,2,0),\"\")","v":"Split leap / jump (120° )"},null,null,null,{"$f":"IF(ISNUMBER(SEARCH($B$12,AN33)),MAX($AM$8:AM32)+1,0)","v":25},"Split leap / jump (120° )",null,null,{"$f":"IFERROR(VLOOKUP(ROWS($AN$9:AN33),$AM$9:$AN$158,2,0),\"\")","v":"Split leap / jump (120° )"},null,null,null,{"$f":"IF(ISNUMBER(SEARCH($B$13,AV33)),MAX($AU$8:AU32)+1,0)","v":25},"Split leap / jump (120° )",null,null,{"$f":"IFERROR(VLOOKUP(ROWS($AV$9:AV33),$AU$9:$AV$158,2,0),\"\")","v":"Split leap / jump (120° )"},null,null,null,{"$f":"IF(ISNUMBER(SEARCH($B$14,BD33)),MAX($BC$8:BC32)+1,0)","v":25},"Split leap / jump (120° )",null,null,{"$f":"IFERROR(VLOOKUP(ROWS($BD$9:BD33),$BC$9:$BD$158,2,0),\"\")","v":"Split leap / jump (120° )"},null,null,null,{"$f":"IF(ISNUMBER(SEARCH($B$15,BL33)),MAX($BK$8:BK32)+1,0)","v":25},"Split leap / jump (120° )",null,null,{"$f":"IFERROR(VLOOKUP(ROWS($BL$9:BL33),$BK$9:$BL$158,2,0),\"\")","v":"Split leap / jump (120° )"},null,null,null,{"$f":"IF(ISNUMBER(SEARCH($B$16,BT33)),MAX($BS$8:BS32)+1,0)","v":25},"Split leap / jump (120° )",null,null,{"$f":"IFERROR(VLOOKUP(ROWS($BT$9:BT33),$BS$9:$BT$158,2,0),\"\")","v":"Split leap / jump (120° )"},null,null,null,{"$f":"IF(ISNUMBER(SEARCH($B$17,CB33)),MAX($CA$8:CA32)+1,0)","v":25},"Split leap / jump (120° )",null,null,{"$f":"IFERROR(VLOOKUP(ROWS($CB$9:CB33),$CA$9:$CB$158,2,0),\"\")","v":"Split leap / jump (120° )"},null,null,null,{"$f":"IF(ISNUMBER(SEARCH($B$18,CJ33)),MAX($CI$8:CI32)+1,0)","v":25},"Split leap / jump (120° )",null,null,{"$f":"IFERROR(VLOOKUP(ROWS($CJ$9:CJ33),$CI$9:$CJ$158,2,0),\"\")","v":"Split leap / jump (120° )"}]
[null,null,null,null,null,null,null,null,null,null,"Male","C Skill 1",null,null,{"$f":"IF(ISNUMBER(SEARCH($B$9,P34)),MAX($O$8:O33)+1,0)","v":26},"Stag leap or jump ",null,null,{"$f":"IFERROR(VLOOKUP(ROWS($P$9:P34),$O$9:$P$158,2,0),\"\")","v":"Stag leap or jump "},null,null,null,{"$f":"IF(ISNUMBER(SEARCH($B$10,X34)),MAX($W$8:W33)+1,0)","v":26},"Stag leap or jump ",null,null,{"$f":"IFERROR(VLOOKUP(ROWS($X$9:X34),$W$9:$X$158,2,0),\"\")","v":"Stag leap or jump "},null,null,null,{"$f":"IF(ISNUMBER(SEARCH($B$11,AF34)),MAX($AE$8:AE33)+1,0)","v":26},"Stag leap or jump ",null,null,{"$f":"IFERROR(VLOOKUP(ROWS($AF$9:AF34),$AE$9:$AF$158,2,0),\"\")","v":"Stag leap or jump "},null,null,null,{"$f":"IF(ISNUMBER(SEARCH($B$12,AN34)),MAX($AM$8:AM33)+1,0)","v":26},"Stag leap or jump ",null,null,{"$f":"IFERROR(VLOOKUP(ROWS($AN$9:AN34),$AM$9:$AN$158,2,0),\"\")","v":"Stag leap or jump "},null,null,null,{"$f":"IF(ISNUMBER(SEARCH($B$13,AV34)),MAX($AU$8:AU33)+1,0)","v":26},"Stag leap or jump ",null,null,{"$f":"IFERROR(VLOOKUP(ROWS($AV$9:AV34),$AU$9:$AV$158,2,0),\"\")","v":"Stag leap or jump "},null,null,null,{"$f":"IF(ISNUMBER(SEARCH($B$14,BD34)),MAX($BC$8:BC33)+1,0)","v":26},"Stag leap or jump ",null,null,{"$f":"IFERROR(VLOOKUP(ROWS($BD$9:BD34),$BC$9:$BD$158,2,0),\"\")","v":"Stag leap or jump "},null,null,null,{"$f":"IF(ISNUMBER(SEARCH($B$15,BL34)),MAX($BK$8:BK33)+1,0)","v":26},"Stag leap or jump ",null,null,{"$f":"IFERROR(VLOOKUP(ROWS($BL$9:BL34),$BK$9:$BL$158,2,0),\"\")","v":"Stag leap or jump "},null,null,null,{"$f":"IF(ISNUMBER(SEARCH($B$16,BT34)),MAX($BS$8:BS33)+1,0)","v":26},"Stag leap or jump ",null,null,{"$f":"IFERROR(VLOOKUP(ROWS($BT$9:BT34),$BS$9:$BT$158,2,0),\"\")","v":"Stag leap or jump "},null,null,null,{"$f":"IF(ISNUMBER(SEARCH($B$17,CB34)),MAX($CA$8:CA33)+1,0)","v":26},"Stag leap or jump ",null,null,{"$f":"IFERROR(VLOOKUP(ROWS($CB$9:CB34),$CA$9:$CB$158,2,0),\"\")","v":"Stag leap or jump "},null,null,null,{"$f":"IF(ISNUMBER(SEARCH($B$18,CJ34)),MAX($CI$8:CI33)+1,0)","v":26},"Stag leap or jump ",null,null,{"$f":"IFERROR(VLOOKUP(ROWS($CJ$9:CJ34),$CI$9:$CJ$158,2,0),\"\")","v":"Stag leap or jump "}]
[null,null,null,"Achieved",null,null,"Achieved",null,null,null,null,{"$f":"IF(COUNTIF(CZ9:CZ18,\"Yes\")=10,IF(COUNTIF(CX9:CX18,\"Yes\")>=1,\"Yes\",\"No\"),\"No\")","v":"No"},null,null,{"$f":"IF(ISNUMBER(SEARCH($B$9,P35)),MAX($O$8:O34)+1,0)","v":27},"Cat leap",null,null,{"$f":"IFERROR(VLOOKUP(ROWS($P$9:P35),$O$9:$P$158,2,0),\"\")","v":"Cat leap"},null,null,null,{"$f":"IF(ISNUMBER(SEARCH($B$10,X35)),MAX($W$8:W34)+1,0)","v":27},"Cat leap",null,null,{"$f":"IFERROR(VLOOKUP(ROWS($X$9:X35),$W$9:$X$158,2,0),\"\")","v":"Cat leap"},null,null,null,{"$f":"IF(ISNUMBER(SEARCH($B$11,AF35)),MAX($AE$8:AE34)+1,0)","v":27},"Cat leap",null,null,{"$f":"IFERROR(VLOOKUP(ROWS($AF$9:AF35),$AE$9:$AF$158,2,0),\"\")","v":"Cat leap"},null,null,null,{"$f":"IF(ISNUMBER(SEARCH($B$12,AN35)),MAX($AM$8:AM34)+1,0)","v":27},"Cat leap",null,null,{"$f":"IFERROR(VLOOKUP(ROWS($AN$9:AN35),$AM$9:$AN$158,2,0),\"\")","v":"Cat leap"},null,null,null,{"$f":"IF(ISNUMBER(SEARCH($B$13,AV35)),MAX($AU$8:AU34)+1,0)","v":27},"Cat leap",null,null,{"$f":"IFERROR(VLOOKUP(ROWS($AV$9:AV35),$AU$9:$AV$158,2,0),\"\")","v":"Cat leap"},null,null,null,{"$f":"IF(ISNUMBER(SEARCH($B$14,BD35)),MAX($BC$8:BC34)+1,0)","v":27},"Cat leap",null,null,{"$f":"IFERROR(VLOOKUP(ROWS($BD$9:BD35),$BC$9:$BD$158,2,0),\"\")","v":"Cat leap"},null,null,null,{"$f":"IF(ISNUMBER(SEARCH($B$15,BL35)),MAX($BK$8:BK34)+1,0)","v":27},"Cat leap",null,null,{"$f":"IFERROR(VLOOKUP(ROWS($BL$9:BL35),$BK$9:$BL$158,2,0),\"\")","v":"Cat leap"},null,null,null,{"$f":"IF(ISNUMBER(SEARCH($B$16,BT35)),MAX($BS$8:BS34)+1,0)","v":27},"Cat leap",null,null,{"$f":"IFERROR(VLOOKUP(ROWS($BT$9:BT35),$BS$9:$BT$158,2,0),\"\")","v":"Cat leap"},null,null,null,{"$f":"IF(ISNUMBER(SEARCH($B$17,CB35)),MAX($CA$8:CA34)+1,0)","v":27},"Cat leap",null,null,{"$f":"IFERROR(VLOOKUP(ROWS($CB$9:CB35),$CA$9:$CB$158,2,0),\"\")","v":"Cat leap"},null,null,null,{"$f":"IF(ISNUMBER(SEARCH($B$18,CJ35)),MAX($CI$8:CI34)+1,0)","v":27},"Cat leap",null,null,{"$f":"IFERROR(VLOOKUP(ROWS($CJ$9:CJ35),$CI$9:$CJ$158,2,0),\"\")","v":"Cat leap"}]
[null,null,null,{"$f":"IF(COUNTIF(D33:E33,\"Yes\")=2,\"Yes\",\"No\")","v":"No"},null,null,{"$f":"IF(COUNTIF(G33:J33,\"Yes\")=4,\"Yes\",\"No\")","v":"No"},null,null,null,"GIRLS",null,null,null,{"$f":"IF(ISNUMBER(SEARCH($B$9,P36)),MAX($O$8:O35)+1,0)","v":28},"Jump full turn ",null,null,{"$f":"IFERROR(VLOOKUP(ROWS($P$9:P36),$O$9:$P$158,2,0),\"\")","v":"Jump full turn "},null,null,null,{"$f":"IF(ISNUMBER(SEARCH($B$10,X36)),MAX($W$8:W35)+1,0)","v":28},"Jump full turn ",null,null,{"$f":"IFERROR(VLOOKUP(ROWS($X$9:X36),$W$9:$X$158,2,0),\"\")","v":"Jump full turn "},null,null,null,{"$f":"IF(ISNUMBER(SEARCH($B$11,AF36)),MAX($AE$8:AE35)+1,0)","v":28},"Jump full turn ",null,null,{"$f":"IFERROR(VLOOKUP(ROWS($AF$9:AF36),$AE$9:$AF$158,2,0),\"\")","v":"Jump full turn "},null,null,null,{"$f":"IF(ISNUMBER(SEARCH($B$12,AN36)),MAX($AM$8:AM35)+1,0)","v":28},"Jump full turn ",null,null,{"$f":"IFERROR(VLOOKUP(ROWS($AN$9:AN36),$AM$9:$AN$158,2,0),\"\")","v":"Jump full turn "},null,null,null,{"$f":"IF(ISNUMBER(SEARCH($B$13,AV36)),MAX($AU$8:AU35)+1,0)","v":28},"Jump full turn ",null,null,{"$f":"IFERROR(VLOOKUP(ROWS($AV$9:AV36),$AU$9:$AV$158,2,0),\"\")","v":"Jump full turn "},null,null,null,{"$f":"IF(ISNUMBER(SEARCH($B$14,BD36)),MAX($BC$8:BC35)+1,0)","v":28},"Jump full turn ",null,null,{"$f":"IFERROR(VLOOKUP(ROWS($BD$9:BD36),$BC$9:$BD$158,2,0),\"\")","v":"Jump full turn "},null,null,null,{"$f":"IF(ISNUMBER(SEARCH($B$15,BL36)),MAX($BK$8:BK35)+1,0)","v":28},"Jump full turn ",null,null,{"$f":"IFERROR(VLOOKUP(ROWS($BL$9:BL36),$BK$9:$BL$158,2,0),\"\")","v":"Jump full turn "},null,null,null,{"$f":"IF(ISNUMBER(SEARCH($B$16,BT36)),MAX($BS$8:BS35)+1,0)","v":28},"Jump full turn ",null,null,{"$f":"IFERROR(VLOOKUP(ROWS($BT$9:BT36),$BS$9:$BT$158,2,0),\"\")","v":"Jump full turn "},null,null,null,{"$f":"IF(ISNUMBER(SEARCH($B$17,CB36)),MAX($CA$8:CA35)+1,0)","v":28},"Jump full turn ",null,null,{"$f":"IFERROR(VLOOKUP(ROWS($CB$9:CB36),$CA$9:$CB$158,2,0),\"\")","v":"Jump full turn "},null,null,null,{"$f":"IF(ISNUMBER(SEARCH($B$18,CJ36)),MAX($CI$8:CI35)+1,0)","v":28},"Jump full turn ",null,null,{"$f":"IFERROR(VLOOKUP(ROWS($CJ$9:CJ36),$CI$9:$CJ$158,2,0),\"\")","v":"Jump full turn "}]
[null,null,null,null,null,null,null,null,null,null,"Group 1 skill B","C Skill 2",null,null,{"$f":"IF(ISNUMBER(SEARCH($B$9,P37)),MAX($O$8:O36)+1,0)","v":29},"Scissor jump ",null,null,{"$f":"IFERROR(VLOOKUP(ROWS($P$9:P37),$O$9:$P$158,2,0),\"\")","v":"Scissor jump "},null,null,null,{"$f":"IF(ISNUMBER(SEARCH($B$10,X37)),MAX($W$8:W36)+1,0)","v":29},"Scissor jump ",null,null,{"$f":"IFERROR(VLOOKUP(ROWS($X$9:X37),$W$9:$X$158,2,0),\"\")","v":"Scissor jump "},null,null,null,{"$f":"IF(ISNUMBER(SEARCH($B$11,AF37)),MAX($AE$8:AE36)+1,0)","v":29},"Scissor jump ",null,null,{"$f":"IFERROR(VLOOKUP(ROWS($AF$9:AF37),$AE$9:$AF$158,2,0),\"\")","v":"Scissor jump "},null,null,null,{"$f":"IF(ISNUMBER(SEARCH($B$12,AN37)),MAX($AM$8:AM36)+1,0)","v":29},"Scissor jump ",null,null,{"$f":"IFERROR(VLOOKUP(ROWS($AN$9:AN37),$AM$9:$AN$158,2,0),\"\")","v":"Scissor jump "},null,null,null,{"$f":"IF(ISNUMBER(SEARCH($B$13,AV37)),MAX($AU$8:AU36)+1,0)","v":29},"Scissor jump ",null,null,{"$f":"IFERROR(VLOOKUP(ROWS($AV$9:AV37),$AU$9:$AV$158,2,0),\"\")","v":"Scissor jump "},null,null,null,{"$f":"IF(ISNUMBER(SEARCH($B$14,BD37)),MAX($BC$8:BC36)+1,0)","v":29},"Scissor jump ",null,null,{"$f":"IFERROR(VLOOKUP(ROWS($BD$9:BD37),$BC$9:$BD$158,2,0),\"\")","v":"Scissor jump "},null,null,null,{"$f":"IF(ISNUMBER(SEARCH($B$15,BL37)),MAX($BK$8:BK36)+1,0)","v":29},"Scissor jump ",null,null,{"$f":"IFERROR(VLOOKUP(ROWS($BL$9:BL37),$BK$9:$BL$158,2,0),\"\")","v":"Scissor jump "},null,null,null,{"$f":"IF(ISNUMBER(SEARCH($B$16,BT37)),MAX($BS$8:BS36)+1,0)","v":29},"Scissor jump ",null,null,{"$f":"IFERROR(VLOOKUP(ROWS($BT$9:BT37),$BS$9:$BT$158,2,0),\"\")","v":"Scissor jump "},null,null,null,{"$f":"IF(ISNUMBER(SEARCH($B$17,CB37)),MAX($CA$8:CA36)+1,0)","v":29},"Scissor jump ",null,null,{"$f":"IFERROR(VLOOKUP(ROWS($CB$9:CB37),$CA$9:$CB$158,2,0),\"\")","v":"Scissor jump "},null,null,null,{"$f":"IF(ISNUMBER(SEARCH($B$18,CJ37)),MAX($CI$8:CI36)+1,0)","v":29},"Scissor jump ",null,null,{"$f":"IFERROR(VLOOKUP(ROWS($CJ$9:CJ37),$CI$9:$CJ$158,2,0),\"\")","v":"Scissor jump "}]
[null,null,null,null,null,null,null,null,null,null,"Group 2 skill - Held",{"$f":"IF(COUNTIF(CZ9:CZ18,\"Yes\")=10,IF(COUNTIF(CX9:CX18,\"Yes\")=2,IF(CY19=\"Yes\",\"Yes\",\"No\"),\"No\"),\"No\")","v":"No"},null,null,{"$f":"IF(ISNUMBER(SEARCH($B$9,P38)),MAX($O$8:O37)+1,0)","v":30},"W jump",null,null,{"$f":"IFERROR(VLOOKUP(ROWS($P$9:P38),$O$9:$P$158,2,0),\"\")","v":"W jump"},null,null,null,{"$f":"IF(ISNUMBER(SEARCH($B$10,X38)),MAX($W$8:W37)+1,0)","v":30},"W jump",null,null,{"$f":"IFERROR(VLOOKUP(ROWS($X$9:X38),$W$9:$X$158,2,0),\"\")","v":"W jump"},null,null,null,{"$f":"IF(ISNUMBER(SEARCH($B$11,AF38)),MAX($AE$8:AE37)+1,0)","v":30},"W jump",null,null,{"$f":"IFERROR(VLOOKUP(ROWS($AF$9:AF38),$AE$9:$AF$158,2,0),\"\")","v":"W jump"},null,null,null,{"$f":"IF(ISNUMBER(SEARCH($B$12,AN38)),MAX($AM$8:AM37)+1,0)","v":30},"W jump",null,null,{"$f":"IFERROR(VLOOKUP(ROWS($AN$9:AN38),$AM$9:$AN$158,2,0),\"\")","v":"W jump"},null,null,null,{"$f":"IF(ISNUMBER(SEARCH($B$13,AV38)),MAX($AU$8:AU37)+1,0)","v":30},"W jump",null,null,{"$f":"IFERROR(VLOOKUP(ROWS($AV$9:AV38),$AU$9:$AV$158,2,0),\"\")","v":"W jump"},null,null,null,{"$f":"IF(ISNUMBER(SEARCH($B$14,BD38)),MAX($BC$8:BC37)+1,0)","v":30},"W jump",null,null,{"$f":"IFERROR(VLOOKUP(ROWS($BD$9:BD38),$BC$9:$BD$158,2,0),\"\")","v":"W jump"},null,null,null,{"$f":"IF(ISNUMBER(SEARCH($B$15,BL38)),MAX($BK$8:BK37)+1,0)","v":30},"W jump",null,null,{"$f":"IFERROR(VLOOKUP(ROWS($BL$9:BL38),$BK$9:$BL$158,2,0),\"\")","v":"W jump"},null,null,null,{"$f":"IF(ISNUMBER(SEARCH($B$16,BT38)),MAX($BS$8:BS37)+1,0)","v":30},"W jump",null,null,{"$f":"IFERROR(VLOOKUP(ROWS($BT$9:BT38),$BS$9:$BT$158,2,0),\"\")","v":"W jump"},null,null,null,{"$f":"IF(ISNUMBER(SEARCH($B$17,CB38)),MAX($CA$8:CA37)+1,0)","v":30},"W jump",null,null,{"$f":"IFERROR(VLOOKUP(ROWS($CB$9:CB38),$CA$9:$CB$158,2,0),\"\")","v":"W jump"},null,null,null,{"$f":"IF(ISNUMBER(SEARCH($B$18,CJ38)),MAX($CI$8:CI37)+1,0)","v":30},"W jump",null,null,{"$f":"IFERROR(VLOOKUP(ROWS($CJ$9:CJ38),$CI$9:$CJ$158,2,0),\"\")","v":"W jump"}]
[null,null,null,null,null,null,null,null,null,null,"Group 1 skill",null,null,null,{"$f":"IF(ISNUMBER(SEARCH($B$9,P39)),MAX($O$8:O38)+1,0)","v":31},"Arabesque",null,null,{"$f":"IFERROR(VLOOKUP(ROWS($P$9:P39),$O$9:$P$158,2,0),\"\")","v":"Arabesque"},null,null,null,{"$f":"IF(ISNUMBER(SEARCH($B$10,X39)),MAX($W$8:W38)+1,0)","v":31},"Arabesque",null,null,{"$f":"IFERROR(VLOOKUP(ROWS($X$9:X39),$W$9:$X$158,2,0),\"\")","v":"Arabesque"},null,null,null,{"$f":"IF(ISNUMBER(SEARCH($B$11,AF39)),MAX($AE$8:AE38)+1,0)","v":31},"Arabesque",null,null,{"$f":"IFERROR(VLOOKUP(ROWS($AF$9:AF39),$AE$9:$AF$158,2,0),\"\")","v":"Arabesque"},null,null,null,{"$f":"IF(ISNUMBER(SEARCH($B$12,AN39)),MAX($AM$8:AM38)+1,0)","v":31},"Arabesque",null,null,{"$f":"IFERROR(VLOOKUP(ROWS($AN$9:AN39),$AM$9:$AN$158,2,0),\"\")","v":"Arabesque"},null,null,null,{"$f":"IF(ISNUMBER(SEARCH($B$13,AV39)),MAX($AU$8:AU38)+1,0)","v":31},"Arabesque",null,null,{"$f":"IFERROR(VLOOKUP(ROWS($AV$9:AV39),$AU$9:$AV$158,2,0),\"\")","v":"Arabesque"},null,null,null,{"$f":"IF(ISNUMBER(SEARCH($B$14,BD39)),MAX($BC$8:BC38)+1,0)","v":31},"Arabesque",null,null,{"$f":"IFERROR(VLOOKUP(ROWS($BD$9:BD39),$BC$9:$BD$158,2,0),\"\")","v":"Arabesque"},null,null,null,{"$f":"IF(ISNUMBER(SEARCH($B$15,BL39)),MAX($BK$8:BK38)+1,0)","v":31},"Arabesque",null,null,{"$f":"IFERROR(VLOOKUP(ROWS($BL$9:BL39),$BK$9:$BL$158,2,0),\"\")","v":"Arabesque"},null,null,null,{"$f":"IF(ISNUMBER(SEARCH($B$16,BT39)),MAX($BS$8:BS38)+1,0)","v":31},"Arabesque",null,null,{"$f":"IFERROR(VLOOKUP(ROWS($BT$9:BT39),$BS$9:$BT$158,2,0),\"\")","v":"Arabesque"},null,null,null,{"$f":"IF(ISNUMBER(SEARCH($B$17,CB39)),MAX($CA$8:CA38)+1,0)","v":31},"Arabesque",null,null,{"$f":"IFERROR(VLOOKUP(ROWS($CB$9:CB39),$CA$9:$CB$158,2,0),\"\")","v":"Arabesque"},null,null,null,{"$f":"IF(ISNUMBER(SEARCH($B$18,CJ39)),MAX($CI$8:CI38)+1,0)","v":31},"Arabesque",null,null,{"$f":"IFERROR(VLOOKUP(ROWS($CJ$9:CJ39),$CI$9:$CJ$158,2,0),\"\")","v":"Arabesque"}]
[null,null,null,null,null,null,null,null,null,null,"Acrobatic skill","Criteria met before bonus",null,null,{"$f":"IF(ISNUMBER(SEARCH($B$9,P40)),MAX($O$8:O39)+1,0)","v":32},"Japana (flat back, chest to floor)",null,null,{"$f":"IFERROR(VLOOKUP(ROWS($P$9:P40),$O$9:$P$158,2,0),\"\")","v":"Japana (flat back, chest to floor)"},null,null,null,{"$f":"IF(ISNUMBER(SEARCH($B$10,X40)),MAX($W$8:W39)+1,0)","v":32},"Japana (flat back, chest to floor)",null,null,{"$f":"IFERROR(VLOOKUP(ROWS($X$9:X40),$W$9:$X$158,2,0),\"\")","v":"Japana (flat back, chest to floor)"},null,null,null,{"$f":"IF(ISNUMBER(SEARCH($B$11,AF40)),MAX($AE$8:AE39)+1,0)","v":32},"Japana (flat back, chest to floor)",null,null,{"$f":"IFERROR(VLOOKUP(ROWS($AF$9:AF40),$AE$9:$AF$158,2,0),\"\")","v":"Japana (flat back, chest to floor)"},null,null,null,{"$f":"IF(ISNUMBER(SEARCH($B$12,AN40)),MAX($AM$8:AM39)+1,0)","v":32},"Japana (flat back, chest to floor)",null,null,{"$f":"IFERROR(VLOOKUP(ROWS($AN$9:AN40),$AM$9:$AN$158,2,0),\"\")","v":"Japana (flat back, chest to floor)"},null,null,null,{"$f":"IF(ISNUMBER(SEARCH($B$13,AV40)),MAX($AU$8:AU39)+1,0)","v":32},"Japana (flat back, chest to floor)",null,null,{"$f":"IFERROR(VLOOKUP(ROWS($AV$9:AV40),$AU$9:$AV$158,2,0),\"\")","v":"Japana (flat back, chest to floor)"},null,null,null,{"$f":"IF(ISNUMBER(SEARCH($B$14,BD40)),MAX($BC$8:BC39)+1,0)","v":32},"Japana (flat back, chest to floor)",null,null,{"$f":"IFERROR(VLOOKUP(ROWS($BD$9:BD40),$BC$9:$BD$158,2,0),\"\")","v":"Japana (flat back, chest to floor)"},null,null,null,{"$f":"IF(ISNUMBER(SEARCH($B$15,BL40)),MAX($BK$8:BK39)+1,0)","v":32},"Japana (flat back, chest to floor)",null,null,{"$f":"IFERROR(VLOOKUP(ROWS($BL$9:BL40),$BK$9:$BL$158,2,0),\"\")","v":"Japana (flat back, chest to floor)"},null,null,null,{"$f":"IF(ISNUMBER(SEARCH($B$16,BT40)),MAX($BS$8:BS39)+1,0)","v":32},"Japana (flat back, chest to floor)",null,null,{"$f":"IFERROR(VLOOKUP(ROWS($BT$9:BT40),$BS$9:$BT$158,2,0),\"\")","v":"Japana (flat back, chest to floor)"},null,null,null,{"$f":"IF(ISNUMBER(SEARCH($B$17,CB40)),MAX($CA$8:CA39)+1,0)","v":32},"Japana (flat back, chest to floor)",null,null,{"$f":"IFERROR(VLOOKUP(ROWS($CB$9:CB40),$CA$9:$CB$158,2,0),\"\")","v":"Japana (flat back, chest to floor)"},null,null,null,{"$f":"IF(ISNUMBER(SEARCH($B$18,CJ40)),MAX($CI$8:CI39)+1,0)","v":32},"Japana (flat back, chest to floor)",null,null,{"$f":"IFERROR(VLOOKUP(ROWS($CJ$9:CJ40),$CI$9:$CJ$158,2,0),\"\")","v":"Japana (flat back, chest to floor)"}]
[null,null,null,null,null,null,null,null,null,null,"Flight skill",{"$f":"IF(D36=\"Yes\",IF(G36=\"Yes\",IF(K74=\"Yes\",\"Yes\",\"No\"),\"No\"),\"No\")","v":"No"},null,null,{"$f":"IF(ISNUMBER(SEARCH($B$9,P41)),MAX($O$8:O40)+1,0)","v":33},"Fall to prone push to Front Support",null,null,{"$f":"IFERROR(VLOOKUP(ROWS($P$9:P41),$O$9:$P$158,2,0),\"\")","v":"Fall to prone push to Front Support"},null,null,null,{"$f":"IF(ISNUMBER(SEARCH($B$10,X41)),MAX($W$8:W40)+1,0)","v":33},"Fall to prone push to Front Support",null,null,{"$f":"IFERROR(VLOOKUP(ROWS($X$9:X41),$W$9:$X$158,2,0),\"\")","v":"Fall to prone push to Front Support"},null,null,null,{"$f":"IF(ISNUMBER(SEARCH($B$11,AF41)),MAX($AE$8:AE40)+1,0)","v":33},"Fall to prone push to Front Support",null,null,{"$f":"IFERROR(VLOOKUP(ROWS($AF$9:AF41),$AE$9:$AF$158,2,0),\"\")","v":"Fall to prone push to Front Support"},null,null,null,{"$f":"IF(ISNUMBER(SEARCH($B$12,AN41)),MAX($AM$8:AM40)+1,0)","v":33},"Fall to prone push to Front Support",null,null,{"$f":"IFERROR(VLOOKUP(ROWS($AN$9:AN41),$AM$9:$AN$158,2,0),\"\")","v":"Fall to prone push to Front Support"},null,null,null,{"$f":"IF(ISNUMBER(SEARCH($B$13,AV41)),MAX($AU$8:AU40)+1,0)","v":33},"Fall to prone push to Front Support",null,null,{"$f":"IFERROR(VLOOKUP(ROWS($AV$9:AV41),$AU$9:$AV$158,2,0),\"\")","v":"Fall to prone push to Front Support"},null,null,null,{"$f":"IF(ISNUMBER(SEARCH($B$14,BD41)),MAX($BC$8:BC40)+1,0)","v":33},"Fall to prone push to Front Support",null,null,{"$f":"IFERROR(VLOOKUP(ROWS($BD$9:BD41),$BC$9:$BD$158,2,0),\"\")","v":"Fall to prone push to Front Support"},null,null,null,{"$f":"IF(ISNUMBER(SEARCH($B$15,BL41)),MAX($BK$8:BK40)+1,0)","v":33},"Fall to prone push to Front Support",null,null,{"$f":"IFERROR(VLOOKUP(ROWS($BL$9:BL41),$BK$9:$BL$158,2,0),\"\")","v":"Fall to prone push to Front Support"},null,null,null,{"$f":"IF(ISNUMBER(SEARCH($B$16,BT41)),MAX($BS$8:BS40)+1,0)","v":33},"Fall to prone push to Front Support",null,null,{"$f":"IFERROR(VLOOKUP(ROWS($BT$9:BT41),$BS$9:$BT$158,2,0),\"\")","v":"Fall to prone push to Front Support"},null,null,null,{"$f":"IF(ISNUMBER(SEARCH($B$17,CB41)),MAX($CA$8:CA40)+1,0)","v":33},"Fall to prone push to Front Support",null,null,{"$f":"IFERROR(VLOOKUP(ROWS($CB$9:CB41),$CA$9:$CB$158,2,0),\"\")","v":"Fall to prone push to Front Support"},null,null,null,{"$f":"IF(ISNUMBER(SEARCH($B$18,CJ41)),MAX($CI$8:CI40)+1,0)","v":33},"Fall to prone push to Front Support",null,null,{"$f":"IFERROR(VLOOKUP(ROWS($CJ$9:CJ41),$CI$9:$CJ$158,2,0),\"\")","v":"Fall to prone push to Front Support"}]
[null,null,null,null,null,null,null,null,null,null,null,null,null,null,{"$f":"IF(ISNUMBER(SEARCH($B$9,P42)),MAX($O$8:O41)+1,0)","v":34},"Swedish Fall",null,null,{"$f":"IFERROR(VLOOKUP(ROWS($P$9:P42),$O$9:$P$158,2,0),\"\")","v":"Swedish Fall"},null,null,null,{"$f":"IF(ISNUMBER(SEARCH($B$10,X42)),MAX($W$8:W41)+1,0)","v":34},"Swedish Fall",null,null,{"$f":"IFERROR(VLOOKUP(ROWS($X$9:X42),$W$9:$X$158,2,0),\"\")","v":"Swedish Fall"},null,null,null,{"$f":"IF(ISNUMBER(SEARCH($B$11,AF42)),MAX($AE$8:AE41)+1,0)","v":34},"Swedish Fall",null,null,{"$f":"IFERROR(VLOOKUP(ROWS($AF$9:AF42),$AE$9:$AF$158,2,0),\"\")","v":"Swedish Fall"},null,null,null,{"$f":"IF(ISNUMBER(SEARCH($B$12,AN42)),MAX($AM$8:AM41)+1,0)","v":34},"Swedish Fall",null,null,{"$f":"IFERROR(VLOOKUP(ROWS($AN$9:AN42),$AM$9:$AN$158,2,0),\"\")","v":"Swedish Fall"},null,null,null,{"$f":"IF(ISNUMBER(SEARCH($B$13,AV42)),MAX($AU$8:AU41)+1,0)","v":34},"Swedish Fall",null,null,{"$f":"IFERROR(VLOOKUP(ROWS($AV$9:AV42),$AU$9:$AV$158,2,0),\"\")","v":"Swedish Fall"},null,null,null,{"$f":"IF(ISNUMBER(SEARCH($B$14,BD42)),MAX($BC$8:BC41)+1,0)","v":34},"Swedish Fall",null,null,{"$f":"IFERROR(VLOOKUP(ROWS($BD$9:BD42),$BC$9:$BD$158,2,0),\"\")","v":"Swedish Fall"},null,null,null,{"$f":"IF(ISNUMBER(SEARCH($B$15,BL42)),MAX($BK$8:BK41)+1,0)","v":34},"Swedish Fall",null,null,{"$f":"IFERROR(VLOOKUP(ROWS($BL$9:BL42),$BK$9:$BL$158,2,0),\"\")","v":"Swedish Fall"},null,null,null,{"$f":"IF(ISNUMBER(SEARCH($B$16,BT42)),MAX($BS$8:BS41)+1,0)","v":34},"Swedish Fall",null,null,{"$f":"IFERROR(VLOOKUP(ROWS($BT$9:BT42),$BS$9:$BT$158,2,0),\"\")","v":"Swedish Fall"},null,null,null,{"$f":"IF(ISNUMBER(SEARCH($B$17,CB42)),MAX($CA$8:CA41)+1,0)","v":34},"Swedish Fall",null,null,{"$f":"IFERROR(VLOOKUP(ROWS($CB$9:CB42),$CA$9:$CB$158,2,0),\"\")","v":"Swedish Fall"},null,null,null,{"$f":"IF(ISNUMBER(SEARCH($B$18,CJ42)),MAX($CI$8:CI41)+1,0)","v":34},"Swedish Fall",null,null,{"$f":"IFERROR(VLOOKUP(ROWS($CJ$9:CJ42),$CI$9:$CJ$158,2,0),\"\")","v":"Swedish Fall"}]
[null,null,null,null,null,null,null,null,null,null,"BOYS","Achieved",null,null,{"$f":"IF(ISNUMBER(SEARCH($B$9,P43)),MAX($O$8:O42)+1,0)","v":35},"Piked V sit (no supp.)",null,null,{"$f":"IFERROR(VLOOKUP(ROWS($P$9:P43),$O$9:$P$158,2,0),\"\")","v":"Piked V sit (no supp.)"},null,null,null,{"$f":"IF(ISNUMBER(SEARCH($B$10,X43)),MAX($W$8:W42)+1,0)","v":35},"Piked V sit (no supp.)",null,null,{"$f":"IFERROR(VLOOKUP(ROWS($X$9:X43),$W$9:$X$158,2,0),\"\")","v":"Piked V sit (no supp.)"},null,null,null,{"$f":"IF(ISNUMBER(SEARCH($B$11,AF43)),MAX($AE$8:AE42)+1,0)","v":35},"Piked V sit (no supp.)",null,null,{"$f":"IFERROR(VLOOKUP(ROWS($AF$9:AF43),$AE$9:$AF$158,2,0),\"\")","v":"Piked V sit (no supp.)"},null,null,null,{"$f":"IF(ISNUMBER(SEARCH($B$12,AN43)),MAX($AM$8:AM42)+1,0)","v":35},"Piked V sit (no supp.)",null,null,{"$f":"IFERROR(VLOOKUP(ROWS($AN$9:AN43),$AM$9:$AN$158,2,0),\"\")","v":"Piked V sit (no supp.)"},null,null,null,{"$f":"IF(ISNUMBER(SEARCH($B$13,AV43)),MAX($AU$8:AU42)+1,0)","v":35},"Piked V sit (no supp.)",null,null,{"$f":"IFERROR(VLOOKUP(ROWS($AV$9:AV43),$AU$9:$AV$158,2,0),\"\")","v":"Piked V sit (no supp.)"},null,null,null,{"$f":"IF(ISNUMBER(SEARCH($B$14,BD43)),MAX($BC$8:BC42)+1,0)","v":35},"Piked V sit (no supp.)",null,null,{"$f":"IFERROR(VLOOKUP(ROWS($BD$9:BD43),$BC$9:$BD$158,2,0),\"\")","v":"Piked V sit (no supp.)"},null,null,null,{"$f":"IF(ISNUMBER(SEARCH($B$15,BL43)),MAX($BK$8:BK42)+1,0)","v":35},"Piked V sit (no supp.)",null,null,{"$f":"IFERROR(VLOOKUP(ROWS($BL$9:BL43),$BK$9:$BL$158,2,0),\"\")","v":"Piked V sit (no supp.)"},null,null,null,{"$f":"IF(ISNUMBER(SEARCH($B$16,BT43)),MAX($BS$8:BS42)+1,0)","v":35},"Piked V sit (no supp.)",null,null,{"$f":"IFERROR(VLOOKUP(ROWS($BT$9:BT43),$BS$9:$BT$158,2,0),\"\")","v":"Piked V sit (no supp.)"},null,null,null,{"$f":"IF(ISNUMBER(SEARCH($B$17,CB43)),MAX($CA$8:CA42)+1,0)","v":35},"Piked V sit (no supp.)",null,null,{"$f":"IFERROR(VLOOKUP(ROWS($CB$9:CB43),$CA$9:$CB$158,2,0),\"\")","v":"Piked V sit (no supp.)"},null,null,null,{"$f":"IF(ISNUMBER(SEARCH($B$18,CJ43)),MAX($CI$8:CI42)+1,0)","v":35},"Piked V sit (no supp.)",null,null,{"$f":"IFERROR(VLOOKUP(ROWS($CJ$9:CJ43),$CI$9:$CJ$158,2,0),\"\")","v":"Piked V sit (no supp.)"}]
[null,null,null,null,null,null,null,null,null,null,"Group 2 skill",{"$f":"IF(D36=\"Yes\",IF(G36=\"Yes\",IF(K74=\"Yes\",IF(L41=\"Yes\",IF(L35=\"Yes\",IF(L38=\"Yes\",\"Yes\",\"No\"),\"No\"),\"No\"),\"No\"),\"No\"),\"No\")","v":"No"},null,null,{"$f":"IF(ISNUMBER(SEARCH($B$9,P44)),MAX($O$8:O43)+1,0)","v":36},"1/2 lever shown (straight or straddled) ",null,null,{"$f":"IFERROR(VLOOKUP(ROWS($P$9:P44),$O$9:$P$158,2,0),\"\")","v":"1/2 lever shown (straight or straddled) "},null,null,null,{"$f":"IF(ISNUMBER(SEARCH($B$10,X44)),MAX($W$8:W43)+1,0)","v":36},"1/2 lever shown (straight or straddled) ",null,null,{"$f":"IFERROR(VLOOKUP(ROWS($X$9:X44),$W$9:$X$158,2,0),\"\")","v":"1/2 lever shown (straight or straddled) "},null,null,null,{"$f":"IF(ISNUMBER(SEARCH($B$11,AF44)),MAX($AE$8:AE43)+1,0)","v":36},"1/2 lever shown (straight or straddled) ",null,null,{"$f":"IFERROR(VLOOKUP(ROWS($AF$9:AF44),$AE$9:$AF$158,2,0),\"\")","v":"1/2 lever shown (straight or straddled) "},null,null,null,{"$f":"IF(ISNUMBER(SEARCH($B$12,AN44)),MAX($AM$8:AM43)+1,0)","v":36},"1/2 lever shown (straight or straddled) ",null,null,{"$f":"IFERROR(VLOOKUP(ROWS($AN$9:AN44),$AM$9:$AN$158,2,0),\"\")","v":"1/2 lever shown (straight or straddled) "},null,null,null,{"$f":"IF(ISNUMBER(SEARCH($B$13,AV44)),MAX($AU$8:AU43)+1,0)","v":36},"1/2 lever shown (straight or straddled) ",null,null,{"$f":"IFERROR(VLOOKUP(ROWS($AV$9:AV44),$AU$9:$AV$158,2,0),\"\")","v":"1/2 lever shown (straight or straddled) "},null,null,null,{"$f":"IF(ISNUMBER(SEARCH($B$14,BD44)),MAX($BC$8:BC43)+1,0)","v":36},"1/2 lever shown (straight or straddled) ",null,null,{"$f":"IFERROR(VLOOKUP(ROWS($BD$9:BD44),$BC$9:$BD$158,2,0),\"\")","v":"1/2 lever shown (straight or straddled) "},null,null,null,{"$f":"IF(ISNUMBER(SEARCH($B$15,BL44)),MAX($BK$8:BK43)+1,0)","v":36},"1/2 lever shown (straight or straddled) ",null,null,{"$f":"IFERROR(VLOOKUP(ROWS($BL$9:BL44),$BK$9:$BL$158,2,0),\"\")","v":"1/2 lever shown (straight or straddled) "},null,null,null,{"$f":"IF(ISNUMBER(SEARCH($B$16,BT44)),MAX($BS$8:BS43)+1,0)","v":36},"1/2 lever shown (straight or straddled) ",null,null,{"$f":"IFERROR(VLOOKUP(ROWS($BT$9:BT44),$BS$9:$BT$158,2,0),\"\")","v":"1/2 lever shown (straight or straddled) "},null,null,null,{"$f":"IF(ISNUMBER(SEARCH($B$17,CB44)),MAX($CA$8:CA43)+1,0)","v":36},"1/2 lever shown (straight or straddled) ",null,null,{"$f":"IFERROR(VLOOKUP(ROWS($CB$9:CB44),$CA$9:$CB$158,2,0),\"\")","v":"1/2 lever shown (straight or straddled) "},null,null,null,{"$f":"IF(ISNUMBER(SEARCH($B$18,CJ44)),MAX($CI$8:CI43)+1,0)","v":36},"1/2 lever shown (straight or straddled) ",null,null,{"$f":"IFERROR(VLOOKUP(ROWS($CJ$9:CJ44),$CI$9:$CJ$158,2,0),\"\")","v":"1/2 lever shown (straight or straddled) "}]
[null,null,null,null,null,null,null,null,null,null,"Group 2 skill - Held",null,null,null,{"$f":"IF(ISNUMBER(SEARCH($B$9,P45)),MAX($O$8:O44)+1,0)","v":37},"Shoulder stand (no support)",null,null,{"$f":"IFERROR(VLOOKUP(ROWS($P$9:P45),$O$9:$P$158,2,0),\"\")","v":"Shoulder stand (no support)"},null,null,null,{"$f":"IF(ISNUMBER(SEARCH($B$10,X45)),MAX($W$8:W44)+1,0)","v":37},"Shoulder stand (no support)",null,null,{"$f":"IFERROR(VLOOKUP(ROWS($X$9:X45),$W$9:$X$158,2,0),\"\")","v":"Shoulder stand (no support)"},null,null,null,{"$f":"IF(ISNUMBER(SEARCH($B$11,AF45)),MAX($AE$8:AE44)+1,0)","v":37},"Shoulder stand (no support)",null,null,{"$f":"IFERROR(VLOOKUP(ROWS($AF$9:AF45),$AE$9:$AF$158,2,0),\"\")","v":"Shoulder stand (no support)"},null,null,null,{"$f":"IF(ISNUMBER(SEARCH($B$12,AN45)),MAX($AM$8:AM44)+1,0)","v":37},"Shoulder stand (no support)",null,null,{"$f":"IFERROR(VLOOKUP(ROWS($AN$9:AN45),$AM$9:$AN$158,2,0),\"\")","v":"Shoulder stand (no support)"},null,null,null,{"$f":"IF(ISNUMBER(SEARCH($B$13,AV45)),MAX($AU$8:AU44)+1,0)","v":37},"Shoulder stand (no support)",null,null,{"$f":"IFERROR(VLOOKUP(ROWS($AV$9:AV45),$AU$9:$AV$158,2,0),\"\")","v":"Shoulder stand (no support)"},null,null,null,{"$f":"IF(ISNUMBER(SEARCH($B$14,BD45)),MAX($BC$8:BC44)+1,0)","v":37},"Shoulder stand (no support)",null,null,{"$f":"IFERROR(VLOOKUP(ROWS($BD$9:BD45),$BC$9:$BD$158,2,0),\"\")","v":"Shoulder stand (no support)"},null,null,null,{"$f":"IF(ISNUMBER(SEARCH($B$15,BL45)),MAX($BK$8:BK44)+1,0)","v":37},"Shoulder stand (no support)",null,null,{"$f":"IFERROR(VLOOKUP(ROWS($BL$9:BL45),$BK$9:$BL$158,2,0),\"\")","v":"Shoulder stand (no support)"},null,null,null,{"$f":"IF(ISNUMBER(SEARCH($B$16,BT45)),MAX($BS$8:BS44)+1,0)","v":37},"Shoulder stand (no support)",null,null,{"$f":"IFERROR(VLOOKUP(ROWS($BT$9:BT45),$BS$9:$BT$158,2,0),\"\")","v":"Shoulder stand (no support)"},null,null,null,{"$f":"IF(ISNUMBER(SEARCH($B$17,CB45)),MAX($CA$8:CA44)+1,0)","v":37},"Shoulder stand (no support)",null,null,{"$f":"IFERROR(VLOOKUP(ROWS($CB$9:CB45),$CA$9:$CB$158,2,0),\"\")","v":"Shoulder stand (no support)"},null,null,null,{"$f":"IF(ISNUMBER(SEARCH($B$18,CJ45)),MAX($CI$8:CI44)+1,0)","v":37},"Shoulder stand (no support)",null,null,{"$f":"IFERROR(VLOOKUP(ROWS($CJ$9:CJ45),$CI$9:$CJ$158,2,0),\"\")","v":"Shoulder stand (no support)"}]
[null,null,null,null,null,null,null,null,null,null,"Group 1 skill",null,null,null,{"$f":"IF(ISNUMBER(SEARCH($B$9,P46)),MAX($O$8:O45)+1,0)","v":38},"F Roll to straddle stand",null,null,{"$f":"IFERROR(VLOOKUP(ROWS($P$9:P46),$O$9:$P$158,2,0),\"\")","v":"F Roll to straddle stand"},null,null,null,{"$f":"IF(ISNUMBER(SEARCH($B$10,X46)),MAX($W$8:W45)+1,0)","v":38},"F Roll to straddle stand",null,null,{"$f":"IFERROR(VLOOKUP(ROWS($X$9:X46),$W$9:$X$158,2,0),\"\")","v":"F Roll to straddle stand"},null,null,null,{"$f":"IF(ISNUMBER(SEARCH($B$11,AF46)),MAX($AE$8:AE45)+1,0)","v":38},"F Roll to straddle stand",null,null,{"$f":"IFERROR(VLOOKUP(ROWS($AF$9:AF46),$AE$9:$AF$158,2,0),\"\")","v":"F Roll to straddle stand"},null,null,null,{"$f":"IF(ISNUMBER(SEARCH($B$12,AN46)),MAX($AM$8:AM45)+1,0)","v":38},"F Roll to straddle stand",null,null,{"$f":"IFERROR(VLOOKUP(ROWS($AN$9:AN46),$AM$9:$AN$158,2,0),\"\")","v":"F Roll to straddle stand"},null,null,null,{"$f":"IF(ISNUMBER(SEARCH($B$13,AV46)),MAX($AU$8:AU45)+1,0)","v":38},"F Roll to straddle stand",null,null,{"$f":"IFERROR(VLOOKUP(ROWS($AV$9:AV46),$AU$9:$AV$158,2,0),\"\")","v":"F Roll to straddle stand"},null,null,null,{"$f":"IF(ISNUMBER(SEARCH($B$14,BD46)),MAX($BC$8:BC45)+1,0)","v":38},"F Roll to straddle stand",null,null,{"$f":"IFERROR(VLOOKUP(ROWS($BD$9:BD46),$BC$9:$BD$158,2,0),\"\")","v":"F Roll to straddle stand"},null,null,null,{"$f":"IF(ISNUMBER(SEARCH($B$15,BL46)),MAX($BK$8:BK45)+1,0)","v":38},"F Roll to straddle stand",null,null,{"$f":"IFERROR(VLOOKUP(ROWS($BL$9:BL46),$BK$9:$BL$158,2,0),\"\")","v":"F Roll to straddle stand"},null,null,null,{"$f":"IF(ISNUMBER(SEARCH($B$16,BT46)),MAX($BS$8:BS45)+1,0)","v":38},"F Roll to straddle stand",null,null,{"$f":"IFERROR(VLOOKUP(ROWS($BT$9:BT46),$BS$9:$BT$158,2,0),\"\")","v":"F Roll to straddle stand"},null,null,null,{"$f":"IF(ISNUMBER(SEARCH($B$17,CB46)),MAX($CA$8:CA45)+1,0)","v":38},"F Roll to straddle stand",null,null,{"$f":"IFERROR(VLOOKUP(ROWS($CB$9:CB46),$CA$9:$CB$158,2,0),\"\")","v":"F Roll to straddle stand"},null,null,null,{"$f":"IF(ISNUMBER(SEARCH($B$18,CJ46)),MAX($CI$8:CI45)+1,0)","v":38},"F Roll to straddle stand",null,null,{"$f":"IFERROR(VLOOKUP(ROWS($CJ$9:CJ46),$CI$9:$CJ$158,2,0),\"\")","v":"F Roll to straddle stand"}]
[null,null,null,null,null,null,null,null,null,null,"Acrobatic skill",null,null,null,{"$f":"IF(ISNUMBER(SEARCH($B$9,P47)),MAX($O$8:O46)+1,0)","v":39},"Handstand F roll ",null,null,{"$f":"IFERROR(VLOOKUP(ROWS($P$9:P47),$O$9:$P$158,2,0),\"\")","v":"Handstand F roll "},null,null,null,{"$f":"IF(ISNUMBER(SEARCH($B$10,X47)),MAX($W$8:W46)+1,0)","v":39},"Handstand F roll ",null,null,{"$f":"IFERROR(VLOOKUP(ROWS($X$9:X47),$W$9:$X$158,2,0),\"\")","v":"Handstand F roll "},null,null,null,{"$f":"IF(ISNUMBER(SEARCH($B$11,AF47)),MAX($AE$8:AE46)+1,0)","v":39},"Handstand F roll ",null,null,{"$f":"IFERROR(VLOOKUP(ROWS($AF$9:AF47),$AE$9:$AF$158,2,0),\"\")","v":"Handstand F roll "},null,null,null,{"$f":"IF(ISNUMBER(SEARCH($B$12,AN47)),MAX($AM$8:AM46)+1,0)","v":39},"Handstand F roll ",null,null,{"$f":"IFERROR(VLOOKUP(ROWS($AN$9:AN47),$AM$9:$AN$158,2,0),\"\")","v":"Handstand F roll "},null,null,null,{"$f":"IF(ISNUMBER(SEARCH($B$13,AV47)),MAX($AU$8:AU46)+1,0)","v":39},"Handstand F roll ",null,null,{"$f":"IFERROR(VLOOKUP(ROWS($AV$9:AV47),$AU$9:$AV$158,2,0),\"\")","v":"Handstand F roll "},null,null,null,{"$f":"IF(ISNUMBER(SEARCH($B$14,BD47)),MAX($BC$8:BC46)+1,0)","v":39},"Handstand F roll ",null,null,{"$f":"IFERROR(VLOOKUP(ROWS($BD$9:BD47),$BC$9:$BD$158,2,0),\"\")","v":"Handstand F roll "},null,null,null,{"$f":"IF(ISNUMBER(SEARCH($B$15,BL47)),MAX($BK$8:BK46)+1,0)","v":39},"Handstand F roll ",null,null,{"$f":"IFERROR(VLOOKUP(ROWS($BL$9:BL47),$BK$9:$BL$158,2,0),\"\")","v":"Handstand F roll "},null,null,null,{"$f":"IF(ISNUMBER(SEARCH($B$16,BT47)),MAX($BS$8:BS46)+1,0)","v":39},"Handstand F roll ",null,null,{"$f":"IFERROR(VLOOKUP(ROWS($BT$9:BT47),$BS$9:$BT$158,2,0),\"\")","v":"Handstand F roll "},null,null,null,{"$f":"IF(ISNUMBER(SEARCH($B$17,CB47)),MAX($CA$8:CA46)+1,0)","v":39},"Handstand F roll ",null,null,{"$f":"IFERROR(VLOOKUP(ROWS($CB$9:CB47),$CA$9:$CB$158,2,0),\"\")","v":"Handstand F roll "},null,null,null,{"$f":"IF(ISNUMBER(SEARCH($B$18,CJ47)),MAX($CI$8:CI46)+1,0)","v":39},"Handstand F roll ",null,null,{"$f":"IFERROR(VLOOKUP(ROWS($CJ$9:CJ47),$CI$9:$CJ$158,2,0),\"\")","v":"Handstand F roll "}]
[null,null,null,null,null,null,null,null,null,null,"Flight skill",null,null,null,{"$f":"IF(ISNUMBER(SEARCH($B$9,P48)),MAX($O$8:O47)+1,0)","v":40},"B Roll to pike stand",null,null,{"$f":"IFERROR(VLOOKUP(ROWS($P$9:P48),$O$9:$P$158,2,0),\"\")","v":"B Roll to pike stand"},null,null,null,{"$f":"IF(ISNUMBER(SEARCH($B$10,X48)),MAX($W$8:W47)+1,0)","v":40},"B Roll to pike stand",null,null,{"$f":"IFERROR(VLOOKUP(ROWS($X$9:X48),$W$9:$X$158,2,0),\"\")","v":"B Roll to pike stand"},null,null,null,{"$f":"IF(ISNUMBER(SEARCH($B$11,AF48)),MAX($AE$8:AE47)+1,0)","v":40},"B Roll to pike stand",null,null,{"$f":"IFERROR(VLOOKUP(ROWS($AF$9:AF48),$AE$9:$AF$158,2,0),\"\")","v":"B Roll to pike stand"},null,null,null,{"$f":"IF(ISNUMBER(SEARCH($B$12,AN48)),MAX($AM$8:AM47)+1,0)","v":40},"B Roll to pike stand",null,null,{"$f":"IFERROR(VLOOKUP(ROWS($AN$9:AN48),$AM$9:$AN$158,2,0),\"\")","v":"B Roll to pike stand"},null,null,null,{"$f":"IF(ISNUMBER(SEARCH($B$13,AV48)),MAX($AU$8:AU47)+1,0)","v":40},"B Roll to pike stand",null,null,{"$f":"IFERROR(VLOOKUP(ROWS($AV$9:AV48),$AU$9:$AV$158,2,0),\"\")","v":"B Roll to pike stand"},null,null,null,{"$f":"IF(ISNUMBER(SEARCH($B$14,BD48)),MAX($BC$8:BC47)+1,0)","v":40},"B Roll to pike stand",null,null,{"$f":"IFERROR(VLOOKUP(ROWS($BD$9:BD48),$BC$9:$BD$158,2,0),\"\")","v":"B Roll to pike stand"},null,null,null,{"$f":"IF(ISNUMBER(SEARCH($B$15,BL48)),MAX($BK$8:BK47)+1,0)","v":40},"B Roll to pike stand",null,null,{"$f":"IFERROR(VLOOKUP(ROWS($BL$9:BL48),$BK$9:$BL$158,2,0),\"\")","v":"B Roll to pike stand"},null,null,null,{"$f":"IF(ISNUMBER(SEARCH($B$16,BT48)),MAX($BS$8:BS47)+1,0)","v":40},"B Roll to pike stand",null,null,{"$f":"IFERROR(VLOOKUP(ROWS($BT$9:BT48),$BS$9:$BT$158,2,0),\"\")","v":"B Roll to pike stand"},null,null,null,{"$f":"IF(ISNUMBER(SEARCH($B$17,CB48)),MAX($CA$8:CA47)+1,0)","v":40},"B Roll to pike stand",null,null,{"$f":"IFERROR(VLOOKUP(ROWS($CB$9:CB48),$CA$9:$CB$158,2,0),\"\")","v":"B Roll to pike stand"},null,null,null,{"$f":"IF(ISNUMBER(SEARCH($B$18,CJ48)),MAX($CI$8:CI47)+1,0)","v":40},"B Roll to pike stand",null,null,{"$f":"IFERROR(VLOOKUP(ROWS($CJ$9:CJ48),$CI$9:$CJ$158,2,0),\"\")","v":"B Roll to pike stand"}]
[null,null,null,null,null,null,null,null,null,null,null,null,null,null,{"$f":"IF(ISNUMBER(SEARCH($B$9,P49)),MAX($O$8:O48)+1,0)","v":41},"Handstand ½ turn",null,null,{"$f":"IFERROR(VLOOKUP(ROWS($P$9:P49),$O$9:$P$158,2,0),\"\")","v":"Handstand ½ turn"},null,null,null,{"$f":"IF(ISNUMBER(SEARCH($B$10,X49)),MAX($W$8:W48)+1,0)","v":41},"Handstand ½ turn",null,null,{"$f":"IFERROR(VLOOKUP(ROWS($X$9:X49),$W$9:$X$158,2,0),\"\")","v":"Handstand ½ turn"},null,null,null,{"$f":"IF(ISNUMBER(SEARCH($B$11,AF49)),MAX($AE$8:AE48)+1,0)","v":41},"Handstand ½ turn",null,null,{"$f":"IFERROR(VLOOKUP(ROWS($AF$9:AF49),$AE$9:$AF$158,2,0),\"\")","v":"Handstand ½ turn"},null,null,null,{"$f":"IF(ISNUMBER(SEARCH($B$12,AN49)),MAX($AM$8:AM48)+1,0)","v":41},"Handstand ½ turn",null,null,{"$f":"IFERROR(VLOOKUP(ROWS($AN$9:AN49),$AM$9:$AN$158,2,0),\"\")","v":"Handstand ½ turn"},null,null,null,{"$f":"IF(ISNUMBER(SEARCH($B$13,AV49)),MAX($AU$8:AU48)+1,0)","v":41},"Handstand ½ turn",null,null,{"$f":"IFERROR(VLOOKUP(ROWS($AV$9:AV49),$AU$9:$AV$158,2,0),\"\")","v":"Handstand ½ turn"},null,null,null,{"$f":"IF(ISNUMBER(SEARCH($B$14,BD49)),MAX($BC$8:BC48)+1,0)","v":41},"Handstand ½ turn",null,null,{"$f":"IFERROR(VLOOKUP(ROWS($BD$9:BD49),$BC$9:$BD$158,2,0),\"\")","v":"Handstand ½ turn"},null,null,null,{"$f":"IF(ISNUMBER(SEARCH($B$15,BL49)),MAX($BK$8:BK48)+1,0)","v":41},"Handstand ½ turn",null,null,{"$f":"IFERROR(VLOOKUP(ROWS($BL$9:BL49),$BK$9:$BL$158,2,0),\"\")","v":"Handstand ½ turn"},null,null,null,{"$f":"IF(ISNUMBER(SEARCH($B$16,BT49)),MAX($BS$8:BS48)+1,0)","v":41},"Handstand ½ turn",null,null,{"$f":"IFERROR(VLOOKUP(ROWS($BT$9:BT49),$BS$9:$BT$158,2,0),\"\")","v":"Handstand ½ turn"},null,null,null,{"$f":"IF(ISNUMBER(SEARCH($B$17,CB49)),MAX($CA$8:CA48)+1,0)","v":41},"Handstand ½ turn",null,null,{"$f":"IFERROR(VLOOKUP(ROWS($CB$9:CB49),$CA$9:$CB$158,2,0),\"\")","v":"Handstand ½ turn"},null,null,null,{"$f":"IF(ISNUMBER(SEARCH($B$18,CJ49)),MAX($CI$8:CI48)+1,0)","v":41},"Handstand ½ turn",null,null,{"$f":"IFERROR(VLOOKUP(ROWS($CJ$9:CJ49),$CI$9:$CJ$158,2,0),\"\")","v":"Handstand ½ turn"}]
[null,null,null,null,null,null,null,null,null,null,1,null,null,null,{"$f":"IF(ISNUMBER(SEARCH($B$9,P50)),MAX($O$8:O49)+1,0)","v":42},"Straddle Bunny Hop to Handstand",null,null,{"$f":"IFERROR(VLOOKUP(ROWS($P$9:P50),$O$9:$P$158,2,0),\"\")","v":"Straddle Bunny Hop to Handstand"},null,null,null,{"$f":"IF(ISNUMBER(SEARCH($B$10,X50)),MAX($W$8:W49)+1,0)","v":42},"Straddle Bunny Hop to Handstand",null,null,{"$f":"IFERROR(VLOOKUP(ROWS($X$9:X50),$W$9:$X$158,2,0),\"\")","v":"Straddle Bunny Hop to Handstand"},null,null,null,{"$f":"IF(ISNUMBER(SEARCH($B$11,AF50)),MAX($AE$8:AE49)+1,0)","v":42},"Straddle Bunny Hop to Handstand",null,null,{"$f":"IFERROR(VLOOKUP(ROWS($AF$9:AF50),$AE$9:$AF$158,2,0),\"\")","v":"Straddle Bunny Hop to Handstand"},null,null,null,{"$f":"IF(ISNUMBER(SEARCH($B$12,AN50)),MAX($AM$8:AM49)+1,0)","v":42},"Straddle Bunny Hop to Handstand",null,null,{"$f":"IFERROR(VLOOKUP(ROWS($AN$9:AN50),$AM$9:$AN$158,2,0),\"\")","v":"Straddle Bunny Hop to Handstand"},null,null,null,{"$f":"IF(ISNUMBER(SEARCH($B$13,AV50)),MAX($AU$8:AU49)+1,0)","v":42},"Straddle Bunny Hop to Handstand",null,null,{"$f":"IFERROR(VLOOKUP(ROWS($AV$9:AV50),$AU$9:$AV$158,2,0),\"\")","v":"Straddle Bunny Hop to Handstand"},null,null,null,{"$f":"IF(ISNUMBER(SEARCH($B$14,BD50)),MAX($BC$8:BC49)+1,0)","v":42},"Straddle Bunny Hop to Handstand",null,null,{"$f":"IFERROR(VLOOKUP(ROWS($BD$9:BD50),$BC$9:$BD$158,2,0),\"\")","v":"Straddle Bunny Hop to Handstand"},null,null,null,{"$f":"IF(ISNUMBER(SEARCH($B$15,BL50)),MAX($BK$8:BK49)+1,0)","v":42},"Straddle Bunny Hop to Handstand",null,null,{"$f":"IFERROR(VLOOKUP(ROWS($BL$9:BL50),$BK$9:$BL$158,2,0),\"\")","v":"Straddle Bunny Hop to Handstand"},null,null,null,{"$f":"IF(ISNUMBER(SEARCH($B$16,BT50)),MAX($BS$8:BS49)+1,0)","v":42},"Straddle Bunny Hop to Handstand",null,null,{"$f":"IFERROR(VLOOKUP(ROWS($BT$9:BT50),$BS$9:$BT$158,2,0),\"\")","v":"Straddle Bunny Hop to Handstand"},null,null,null,{"$f":"IF(ISNUMBER(SEARCH($B$17,CB50)),MAX($CA$8:CA49)+1,0)","v":42},"Straddle Bunny Hop to Handstand",null,null,{"$f":"IFERROR(VLOOKUP(ROWS($CB$9:CB50),$CA$9:$CB$158,2,0),\"\")","v":"Straddle Bunny Hop to Handstand"},null,null,null,{"$f":"IF(ISNUMBER(SEARCH($B$18,CJ50)),MAX($CI$8:CI49)+1,0)","v":42},"Straddle Bunny Hop to Handstand",null,null,{"$f":"IFERROR(VLOOKUP(ROWS($CJ$9:CJ50),$CI$9:$CJ$158,2,0),\"\")","v":"Straddle Bunny Hop to Handstand"}]
[null,null,null,null,null,null,null,null,null,null,"G1 B",null,null,null,{"$f":"IF(ISNUMBER(SEARCH($B$9,P51)),MAX($O$8:O50)+1,0)","v":43},"Single Leg Circle",null,null,{"$f":"IFERROR(VLOOKUP(ROWS($P$9:P51),$O$9:$P$158,2,0),\"\")","v":"Single Leg Circle"},null,null,null,{"$f":"IF(ISNUMBER(SEARCH($B$10,X51)),MAX($W$8:W50)+1,0)","v":43},"Single Leg Circle",null,null,{"$f":"IFERROR(VLOOKUP(ROWS($X$9:X51),$W$9:$X$158,2,0),\"\")","v":"Single Leg Circle"},null,null,null,{"$f":"IF(ISNUMBER(SEARCH($B$11,AF51)),MAX($AE$8:AE50)+1,0)","v":43},"Single Leg Circle",null,null,{"$f":"IFERROR(VLOOKUP(ROWS($AF$9:AF51),$AE$9:$AF$158,2,0),\"\")","v":"Single Leg Circle"},null,null,null,{"$f":"IF(ISNUMBER(SEARCH($B$12,AN51)),MAX($AM$8:AM50)+1,0)","v":43},"Single Leg Circle",null,null,{"$f":"IFERROR(VLOOKUP(ROWS($AN$9:AN51),$AM$9:$AN$158,2,0),\"\")","v":"Single Leg Circle"},null,null,null,{"$f":"IF(ISNUMBER(SEARCH($B$13,AV51)),MAX($AU$8:AU50)+1,0)","v":43},"Single Leg Circle",null,null,{"$f":"IFERROR(VLOOKUP(ROWS($AV$9:AV51),$AU$9:$AV$158,2,0),\"\")","v":"Single Leg Circle"},null,null,null,{"$f":"IF(ISNUMBER(SEARCH($B$14,BD51)),MAX($BC$8:BC50)+1,0)","v":43},"Single Leg Circle",null,null,{"$f":"IFERROR(VLOOKUP(ROWS($BD$9:BD51),$BC$9:$BD$158,2,0),\"\")","v":"Single Leg Circle"},null,null,null,{"$f":"IF(ISNUMBER(SEARCH($B$15,BL51)),MAX($BK$8:BK50)+1,0)","v":43},"Single Leg Circle",null,null,{"$f":"IFERROR(VLOOKUP(ROWS($BL$9:BL51),$BK$9:$BL$158,2,0),\"\")","v":"Single Leg Circle"},null,null,null,{"$f":"IF(ISNUMBER(SEARCH($B$16,BT51)),MAX($BS$8:BS50)+1,0)","v":43},"Single Leg Circle",null,null,{"$f":"IFERROR(VLOOKUP(ROWS($BT$9:BT51),$BS$9:$BT$158,2,0),\"\")","v":"Single Leg Circle"},null,null,null,{"$f":"IF(ISNUMBER(SEARCH($B$17,CB51)),MAX($CA$8:CA50)+1,0)","v":43},"Single Leg Circle",null,null,{"$f":"IFERROR(VLOOKUP(ROWS($CB$9:CB51),$CA$9:$CB$158,2,0),\"\")","v":"Single Leg Circle"},null,null,null,{"$f":"IF(ISNUMBER(SEARCH($B$18,CJ51)),MAX($CI$8:CI50)+1,0)","v":43},"Single Leg Circle",null,null,{"$f":"IFERROR(VLOOKUP(ROWS($CJ$9:CJ51),$CI$9:$CJ$158,2,0),\"\")","v":"Single Leg Circle"}]
[null,null,null,null,null,null,null,null,null,null,{"$f":"IF(D5=\"Female\",IF(COUNTIF(CQ9:CQ18,\"Yes\")>=1,\"Yes\",\"No\"),\"Yes\")","v":"Yes"},null,null,null,{"$f":"IF(ISNUMBER(SEARCH($B$9,P52)),MAX($O$8:O51)+1,0)","v":44},"Backward walkover",null,null,{"$f":"IFERROR(VLOOKUP(ROWS($P$9:P52),$O$9:$P$158,2,0),\"\")","v":"Backward walkover"},null,null,null,{"$f":"IF(ISNUMBER(SEARCH($B$10,X52)),MAX($W$8:W51)+1,0)","v":44},"Backward walkover",null,null,{"$f":"IFERROR(VLOOKUP(ROWS($X$9:X52),$W$9:$X$158,2,0),\"\")","v":"Backward walkover"},null,null,null,{"$f":"IF(ISNUMBER(SEARCH($B$11,AF52)),MAX($AE$8:AE51)+1,0)","v":44},"Backward walkover",null,null,{"$f":"IFERROR(VLOOKUP(ROWS($AF$9:AF52),$AE$9:$AF$158,2,0),\"\")","v":"Backward walkover"},null,null,null,{"$f":"IF(ISNUMBER(SEARCH($B$12,AN52)),MAX($AM$8:AM51)+1,0)","v":44},"Backward walkover",null,null,{"$f":"IFERROR(VLOOKUP(ROWS($AN$9:AN52),$AM$9:$AN$158,2,0),\"\")","v":"Backward walkover"},null,null,null,{"$f":"IF(ISNUMBER(SEARCH($B$13,AV52)),MAX($AU$8:AU51)+1,0)","v":44},"Backward walkover",null,null,{"$f":"IFERROR(VLOOKUP(ROWS($AV$9:AV52),$AU$9:$AV$158,2,0),\"\")","v":"Backward walkover"},null,null,null,{"$f":"IF(ISNUMBER(SEARCH($B$14,BD52)),MAX($BC$8:BC51)+1,0)","v":44},"Backward walkover",null,null,{"$f":"IFERROR(VLOOKUP(ROWS($BD$9:BD52),$BC$9:$BD$158,2,0),\"\")","v":"Backward walkover"},null,null,null,{"$f":"IF(ISNUMBER(SEARCH($B$15,BL52)),MAX($BK$8:BK51)+1,0)","v":44},"Backward walkover",null,null,{"$f":"IFERROR(VLOOKUP(ROWS($BL$9:BL52),$BK$9:$BL$158,2,0),\"\")","v":"Backward walkover"},null,null,null,{"$f":"IF(ISNUMBER(SEARCH($B$16,BT52)),MAX($BS$8:BS51)+1,0)","v":44},"Backward walkover",null,null,{"$f":"IFERROR(VLOOKUP(ROWS($BT$9:BT52),$BS$9:$BT$158,2,0),\"\")","v":"Backward walkover"},null,null,null,{"$f":"IF(ISNUMBER(SEARCH($B$17,CB52)),MAX($CA$8:CA51)+1,0)","v":44},"Backward walkover",null,null,{"$f":"IFERROR(VLOOKUP(ROWS($CB$9:CB52),$CA$9:$CB$158,2,0),\"\")","v":"Backward walkover"},null,null,null,{"$f":"IF(ISNUMBER(SEARCH($B$18,CJ52)),MAX($CI$8:CI51)+1,0)","v":44},"Backward walkover",null,null,{"$f":"IFERROR(VLOOKUP(ROWS($CJ$9:CJ52),$CI$9:$CJ$158,2,0),\"\")","v":"Backward walkover"}]
[null,null,null,null,null,null,null,null,null,null,"Boys G2",null,null,null,{"$f":"IF(ISNUMBER(SEARCH($B$9,P53)),MAX($O$8:O52)+1,0)","v":45},"Cartwheel ¼ turn in (Front to Back)↓",null,null,{"$f":"IFERROR(VLOOKUP(ROWS($P$9:P53),$O$9:$P$158,2,0),\"\")","v":"Cartwheel ¼ turn in (Front to Back)↓"},null,null,null,{"$f":"IF(ISNUMBER(SEARCH($B$10,X53)),MAX($W$8:W52)+1,0)","v":45},"Cartwheel ¼ turn in (Front to Back)↓",null,null,{"$f":"IFERROR(VLOOKUP(ROWS($X$9:X53),$W$9:$X$158,2,0),\"\")","v":"Cartwheel ¼ turn in (Front to Back)↓"},null,null,null,{"$f":"IF(ISNUMBER(SEARCH($B$11,AF53)),MAX($AE$8:AE52)+1,0)","v":45},"Cartwheel ¼ turn in (Front to Back)↓",null,null,{"$f":"IFERROR(VLOOKUP(ROWS($AF$9:AF53),$AE$9:$AF$158,2,0),\"\")","v":"Cartwheel ¼ turn in (Front to Back)↓"},null,null,null,{"$f":"IF(ISNUMBER(SEARCH($B$12,AN53)),MAX($AM$8:AM52)+1,0)","v":45},"Cartwheel ¼ turn in (Front to Back)↓",null,null,{"$f":"IFERROR(VLOOKUP(ROWS($AN$9:AN53),$AM$9:$AN$158,2,0),\"\")","v":"Cartwheel ¼ turn in (Front to Back)↓"},null,null,null,{"$f":"IF(ISNUMBER(SEARCH($B$13,AV53)),MAX($AU$8:AU52)+1,0)","v":45},"Cartwheel ¼ turn in (Front to Back)↓",null,null,{"$f":"IFERROR(VLOOKUP(ROWS($AV$9:AV53),$AU$9:$AV$158,2,0),\"\")","v":"Cartwheel ¼ turn in (Front to Back)↓"},null,null,null,{"$f":"IF(ISNUMBER(SEARCH($B$14,BD53)),MAX($BC$8:BC52)+1,0)","v":45},"Cartwheel ¼ turn in (Front to Back)↓",null,null,{"$f":"IFERROR(VLOOKUP(ROWS($BD$9:BD53),$BC$9:$BD$158,2,0),\"\")","v":"Cartwheel ¼ turn in (Front to Back)↓"},null,null,null,{"$f":"IF(ISNUMBER(SEARCH($B$15,BL53)),MAX($BK$8:BK52)+1,0)","v":45},"Cartwheel ¼ turn in (Front to Back)↓",null,null,{"$f":"IFERROR(VLOOKUP(ROWS($BL$9:BL53),$BK$9:$BL$158,2,0),\"\")","v":"Cartwheel ¼ turn in (Front to Back)↓"},null,null,null,{"$f":"IF(ISNUMBER(SEARCH($B$16,BT53)),MAX($BS$8:BS52)+1,0)","v":45},"Cartwheel ¼ turn in (Front to Back)↓",null,null,{"$f":"IFERROR(VLOOKUP(ROWS($BT$9:BT53),$BS$9:$BT$158,2,0),\"\")","v":"Cartwheel ¼ turn in (Front to Back)↓"},null,null,null,{"$f":"IF(ISNUMBER(SEARCH($B$17,CB53)),MAX($CA$8:CA52)+1,0)","v":45},"Cartwheel ¼ turn in (Front to Back)↓",null,null,{"$f":"IFERROR(VLOOKUP(ROWS($CB$9:CB53),$CA$9:$CB$158,2,0),\"\")","v":"Cartwheel ¼ turn in (Front to Back)↓"},null,null,null,{"$f":"IF(ISNUMBER(SEARCH($B$18,CJ53)),MAX($CI$8:CI52)+1,0)","v":45},"Cartwheel ¼ turn in (Front to Back)↓",null,null,{"$f":"IFERROR(VLOOKUP(ROWS($CJ$9:CJ53),$CI$9:$CJ$158,2,0),\"\")","v":"Cartwheel ¼ turn in (Front to Back)↓"}]
[null,null,null,null,null,null,null,null,null,null,{"$f":"IF(COUNTIF(CU9:CU18,\"Yes\")=1,\"Yes\",\"No\")","v":"No"},null,null,null,{"$f":"IF(ISNUMBER(SEARCH($B$9,P54)),MAX($O$8:O53)+1,0)","v":46},"Cartwheel ¼ turn out",null,null,{"$f":"IFERROR(VLOOKUP(ROWS($P$9:P54),$O$9:$P$158,2,0),\"\")","v":"Cartwheel ¼ turn out"},null,null,null,{"$f":"IF(ISNUMBER(SEARCH($B$10,X54)),MAX($W$8:W53)+1,0)","v":46},"Cartwheel ¼ turn out",null,null,{"$f":"IFERROR(VLOOKUP(ROWS($X$9:X54),$W$9:$X$158,2,0),\"\")","v":"Cartwheel ¼ turn out"},null,null,null,{"$f":"IF(ISNUMBER(SEARCH($B$11,AF54)),MAX($AE$8:AE53)+1,0)","v":46},"Cartwheel ¼ turn out",null,null,{"$f":"IFERROR(VLOOKUP(ROWS($AF$9:AF54),$AE$9:$AF$158,2,0),\"\")","v":"Cartwheel ¼ turn out"},null,null,null,{"$f":"IF(ISNUMBER(SEARCH($B$12,AN54)),MAX($AM$8:AM53)+1,0)","v":46},"Cartwheel ¼ turn out",null,null,{"$f":"IFERROR(VLOOKUP(ROWS($AN$9:AN54),$AM$9:$AN$158,2,0),\"\")","v":"Cartwheel ¼ turn out"},null,null,null,{"$f":"IF(ISNUMBER(SEARCH($B$13,AV54)),MAX($AU$8:AU53)+1,0)","v":46},"Cartwheel ¼ turn out",null,null,{"$f":"IFERROR(VLOOKUP(ROWS($AV$9:AV54),$AU$9:$AV$158,2,0),\"\")","v":"Cartwheel ¼ turn out"},null,null,null,{"$f":"IF(ISNUMBER(SEARCH($B$14,BD54)),MAX($BC$8:BC53)+1,0)","v":46},"Cartwheel ¼ turn out",null,null,{"$f":"IFERROR(VLOOKUP(ROWS($BD$9:BD54),$BC$9:$BD$158,2,0),\"\")","v":"Cartwheel ¼ turn out"},null,null,null,{"$f":"IF(ISNUMBER(SEARCH($B$15,BL54)),MAX($BK$8:BK53)+1,0)","v":46},"Cartwheel ¼ turn out",null,null,{"$f":"IFERROR(VLOOKUP(ROWS($BL$9:BL54),$BK$9:$BL$158,2,0),\"\")","v":"Cartwheel ¼ turn out"},null,null,null,{"$f":"IF(ISNUMBER(SEARCH($B$16,BT54)),MAX($BS$8:BS53)+1,0)","v":46},"Cartwheel ¼ turn out",null,null,{"$f":"IFERROR(VLOOKUP(ROWS($BT$9:BT54),$BS$9:$BT$158,2,0),\"\")","v":"Cartwheel ¼ turn out"},null,null,null,{"$f":"IF(ISNUMBER(SEARCH($B$17,CB54)),MAX($CA$8:CA53)+1,0)","v":46},"Cartwheel ¼ turn out",null,null,{"$f":"IFERROR(VLOOKUP(ROWS($CB$9:CB54),$CA$9:$CB$158,2,0),\"\")","v":"Cartwheel ¼ turn out"},null,null,null,{"$f":"IF(ISNUMBER(SEARCH($B$18,CJ54)),MAX($CI$8:CI53)+1,0)","v":46},"Cartwheel ¼ turn out",null,null,{"$f":"IFERROR(VLOOKUP(ROWS($CJ$9:CJ54),$CI$9:$CJ$158,2,0),\"\")","v":"Cartwheel ¼ turn out"}]
[null,null,null,null,null,null,null,null,null,null,{"$f":"IF(D5=\"Female\",IF(K52=\"Yes\",\"Yes\",\"No\"),IF(D5=\"Male\",IF(K54=\"Yes\",\"Yes\",\"No\"),\"No\"))","v":"No"},null,null,null,{"$f":"IF(ISNUMBER(SEARCH($B$9,P55)),MAX($O$8:O54)+1,0)","v":47},"1 Arm Cartwheel ",null,null,{"$f":"IFERROR(VLOOKUP(ROWS($P$9:P55),$O$9:$P$158,2,0),\"\")","v":"1 Arm Cartwheel "},null,null,null,{"$f":"IF(ISNUMBER(SEARCH($B$10,X55)),MAX($W$8:W54)+1,0)","v":47},"1 Arm Cartwheel ",null,null,{"$f":"IFERROR(VLOOKUP(ROWS($X$9:X55),$W$9:$X$158,2,0),\"\")","v":"1 Arm Cartwheel "},null,null,null,{"$f":"IF(ISNUMBER(SEARCH($B$11,AF55)),MAX($AE$8:AE54)+1,0)","v":47},"1 Arm Cartwheel ",null,null,{"$f":"IFERROR(VLOOKUP(ROWS($AF$9:AF55),$AE$9:$AF$158,2,0),\"\")","v":"1 Arm Cartwheel "},null,null,null,{"$f":"IF(ISNUMBER(SEARCH($B$12,AN55)),MAX($AM$8:AM54)+1,0)","v":47},"1 Arm Cartwheel ",null,null,{"$f":"IFERROR(VLOOKUP(ROWS($AN$9:AN55),$AM$9:$AN$158,2,0),\"\")","v":"1 Arm Cartwheel "},null,null,null,{"$f":"IF(ISNUMBER(SEARCH($B$13,AV55)),MAX($AU$8:AU54)+1,0)","v":47},"1 Arm Cartwheel ",null,null,{"$f":"IFERROR(VLOOKUP(ROWS($AV$9:AV55),$AU$9:$AV$158,2,0),\"\")","v":"1 Arm Cartwheel "},null,null,null,{"$f":"IF(ISNUMBER(SEARCH($B$14,BD55)),MAX($BC$8:BC54)+1,0)","v":47},"1 Arm Cartwheel ",null,null,{"$f":"IFERROR(VLOOKUP(ROWS($BD$9:BD55),$BC$9:$BD$158,2,0),\"\")","v":"1 Arm Cartwheel "},null,null,null,{"$f":"IF(ISNUMBER(SEARCH($B$15,BL55)),MAX($BK$8:BK54)+1,0)","v":47},"1 Arm Cartwheel ",null,null,{"$f":"IFERROR(VLOOKUP(ROWS($BL$9:BL55),$BK$9:$BL$158,2,0),\"\")","v":"1 Arm Cartwheel "},null,null,null,{"$f":"IF(ISNUMBER(SEARCH($B$16,BT55)),MAX($BS$8:BS54)+1,0)","v":47},"1 Arm Cartwheel ",null,null,{"$f":"IFERROR(VLOOKUP(ROWS($BT$9:BT55),$BS$9:$BT$158,2,0),\"\")","v":"1 Arm Cartwheel "},null,null,null,{"$f":"IF(ISNUMBER(SEARCH($B$17,CB55)),MAX($CA$8:CA54)+1,0)","v":47},"1 Arm Cartwheel ",null,null,{"$f":"IFERROR(VLOOKUP(ROWS($CB$9:CB55),$CA$9:$CB$158,2,0),\"\")","v":"1 Arm Cartwheel "},null,null,null,{"$f":"IF(ISNUMBER(SEARCH($B$18,CJ55)),MAX($CI$8:CI54)+1,0)","v":47},"1 Arm Cartwheel ",null,null,{"$f":"IFERROR(VLOOKUP(ROWS($CJ$9:CJ55),$CI$9:$CJ$158,2,0),\"\")","v":"1 Arm Cartwheel "}]
[null,null,null,null,null,null,null,null,null,null,2,null,null,null,{"$f":"IF(ISNUMBER(SEARCH($B$9,P56)),MAX($O$8:O55)+1,0)","v":48},"2 x side C/wheels (opt. entry / exit)",null,null,{"$f":"IFERROR(VLOOKUP(ROWS($P$9:P56),$O$9:$P$158,2,0),\"\")","v":"2 x side C/wheels (opt. entry / exit)"},null,null,null,{"$f":"IF(ISNUMBER(SEARCH($B$10,X56)),MAX($W$8:W55)+1,0)","v":48},"2 x side C/wheels (opt. entry / exit)",null,null,{"$f":"IFERROR(VLOOKUP(ROWS($X$9:X56),$W$9:$X$158,2,0),\"\")","v":"2 x side C/wheels (opt. entry / exit)"},null,null,null,{"$f":"IF(ISNUMBER(SEARCH($B$11,AF56)),MAX($AE$8:AE55)+1,0)","v":48},"2 x side C/wheels (opt. entry / exit)",null,null,{"$f":"IFERROR(VLOOKUP(ROWS($AF$9:AF56),$AE$9:$AF$158,2,0),\"\")","v":"2 x side C/wheels (opt. entry / exit)"},null,null,null,{"$f":"IF(ISNUMBER(SEARCH($B$12,AN56)),MAX($AM$8:AM55)+1,0)","v":48},"2 x side C/wheels (opt. entry / exit)",null,null,{"$f":"IFERROR(VLOOKUP(ROWS($AN$9:AN56),$AM$9:$AN$158,2,0),\"\")","v":"2 x side C/wheels (opt. entry / exit)"},null,null,null,{"$f":"IF(ISNUMBER(SEARCH($B$13,AV56)),MAX($AU$8:AU55)+1,0)","v":48},"2 x side C/wheels (opt. entry / exit)",null,null,{"$f":"IFERROR(VLOOKUP(ROWS($AV$9:AV56),$AU$9:$AV$158,2,0),\"\")","v":"2 x side C/wheels (opt. entry / exit)"},null,null,null,{"$f":"IF(ISNUMBER(SEARCH($B$14,BD56)),MAX($BC$8:BC55)+1,0)","v":48},"2 x side C/wheels (opt. entry / exit)",null,null,{"$f":"IFERROR(VLOOKUP(ROWS($BD$9:BD56),$BC$9:$BD$158,2,0),\"\")","v":"2 x side C/wheels (opt. entry / exit)"},null,null,null,{"$f":"IF(ISNUMBER(SEARCH($B$15,BL56)),MAX($BK$8:BK55)+1,0)","v":48},"2 x side C/wheels (opt. entry / exit)",null,null,{"$f":"IFERROR(VLOOKUP(ROWS($BL$9:BL56),$BK$9:$BL$158,2,0),\"\")","v":"2 x side C/wheels (opt. entry / exit)"},null,null,null,{"$f":"IF(ISNUMBER(SEARCH($B$16,BT56)),MAX($BS$8:BS55)+1,0)","v":48},"2 x side C/wheels (opt. entry / exit)",null,null,{"$f":"IFERROR(VLOOKUP(ROWS($BT$9:BT56),$BS$9:$BT$158,2,0),\"\")","v":"2 x side C/wheels (opt. entry / exit)"},null,null,null,{"$f":"IF(ISNUMBER(SEARCH($B$17,CB56)),MAX($CA$8:CA55)+1,0)","v":48},"2 x side C/wheels (opt. entry / exit)",null,null,{"$f":"IFERROR(VLOOKUP(ROWS($CB$9:CB56),$CA$9:$CB$158,2,0),\"\")","v":"2 x side C/wheels (opt. entry / exit)"},null,null,null,{"$f":"IF(ISNUMBER(SEARCH($B$18,CJ56)),MAX($CI$8:CI55)+1,0)","v":48},"2 x side C/wheels (opt. entry / exit)",null,null,{"$f":"IFERROR(VLOOKUP(ROWS($CJ$9:CJ56),$CI$9:$CJ$158,2,0),\"\")","v":"2 x side C/wheels (opt. entry / exit)"}]
[null,null,null,null,null,null,null,null,null,null,"Gilrs G2",null,null,null,{"$f":"IF(ISNUMBER(SEARCH($B$9,P57)),MAX($O$8:O56)+1,0)","v":49},"Dive C/wheel (must show flight)",null,null,{"$f":"IFERROR(VLOOKUP(ROWS($P$9:P57),$O$9:$P$158,2,0),\"\")","v":"Dive C/wheel (must show flight)"},null,null,null,{"$f":"IF(ISNUMBER(SEARCH($B$10,X57)),MAX($W$8:W56)+1,0)","v":49},"Dive C/wheel (must show flight)",null,null,{"$f":"IFERROR(VLOOKUP(ROWS($X$9:X57),$W$9:$X$158,2,0),\"\")","v":"Dive C/wheel (must show flight)"},null,null,null,{"$f":"IF(ISNUMBER(SEARCH($B$11,AF57)),MAX($AE$8:AE56)+1,0)","v":49},"Dive C/wheel (must show flight)",null,null,{"$f":"IFERROR(VLOOKUP(ROWS($AF$9:AF57),$AE$9:$AF$158,2,0),\"\")","v":"Dive C/wheel (must show flight)"},null,null,null,{"$f":"IF(ISNUMBER(SEARCH($B$12,AN57)),MAX($AM$8:AM56)+1,0)","v":49},"Dive C/wheel (must show flight)",null,null,{"$f":"IFERROR(VLOOKUP(ROWS($AN$9:AN57),$AM$9:$AN$158,2,0),\"\")","v":"Dive C/wheel (must show flight)"},null,null,null,{"$f":"IF(ISNUMBER(SEARCH($B$13,AV57)),MAX($AU$8:AU56)+1,0)","v":49},"Dive C/wheel (must show flight)",null,null,{"$f":"IFERROR(VLOOKUP(ROWS($AV$9:AV57),$AU$9:$AV$158,2,0),\"\")","v":"Dive C/wheel (must show flight)"},null,null,null,{"$f":"IF(ISNUMBER(SEARCH($B$14,BD57)),MAX($BC$8:BC56)+1,0)","v":49},"Dive C/wheel (must show flight)",null,null,{"$f":"IFERROR(VLOOKUP(ROWS($BD$9:BD57),$BC$9:$BD$158,2,0),\"\")","v":"Dive C/wheel (must show flight)"},null,null,null,{"$f":"IF(ISNUMBER(SEARCH($B$15,BL57)),MAX($BK$8:BK56)+1,0)","v":49},"Dive C/wheel (must show flight)",null,null,{"$f":"IFERROR(VLOOKUP(ROWS($BL$9:BL57),$BK$9:$BL$158,2,0),\"\")","v":"Dive C/wheel (must show flight)"},null,null,null,{"$f":"IF(ISNUMBER(SEARCH($B$16,BT57)),MAX($BS$8:BS56)+1,0)","v":49},"Dive C/wheel (must show flight)",null,null,{"$f":"IFERROR(VLOOKUP(ROWS($BT$9:BT57),$BS$9:$BT$158,2,0),\"\")","v":"Dive C/wheel (must show flight)"},null,null,null,{"$f":"IF(ISNUMBER(SEARCH($B$17,CB57)),MAX($CA$8:CA56)+1,0)","v":49},"Dive C/wheel (must show flight)",null,null,{"$f":"IFERROR(VLOOKUP(ROWS($CB$9:CB57),$CA$9:$CB$158,2,0),\"\")","v":"Dive C/wheel (must show flight)"},null,null,null,{"$f":"IF(ISNUMBER(SEARCH($B$18,CJ57)),MAX($CI$8:CI56)+1,0)","v":49},"Dive C/wheel (must show flight)",null,null,{"$f":"IFERROR(VLOOKUP(ROWS($CJ$9:CJ57),$CI$9:$CJ$158,2,0),\"\")","v":"Dive C/wheel (must show flight)"}]
[null,null,null,null,null,null,null,null,null,null,{"$f":"IF(COUNTIF(CS9:CS18,\"Yes\")>=1,\"Yes\",\"No\")","v":"No"},null,null,null,{"$f":"IF(ISNUMBER(SEARCH($B$9,P58)),MAX($O$8:O57)+1,0)","v":50},"Roundoff",null,null,{"$f":"IFERROR(VLOOKUP(ROWS($P$9:P58),$O$9:$P$158,2,0),\"\")","v":"Roundoff"},null,null,null,{"$f":"IF(ISNUMBER(SEARCH($B$10,X58)),MAX($W$8:W57)+1,0)","v":50},"Roundoff",null,null,{"$f":"IFERROR(VLOOKUP(ROWS($X$9:X58),$W$9:$X$158,2,0),\"\")","v":"Roundoff"},null,null,null,{"$f":"IF(ISNUMBER(SEARCH($B$11,AF58)),MAX($AE$8:AE57)+1,0)","v":50},"Roundoff",null,null,{"$f":"IFERROR(VLOOKUP(ROWS($AF$9:AF58),$AE$9:$AF$158,2,0),\"\")","v":"Roundoff"},null,null,null,{"$f":"IF(ISNUMBER(SEARCH($B$12,AN58)),MAX($AM$8:AM57)+1,0)","v":50},"Roundoff",null,null,{"$f":"IFERROR(VLOOKUP(ROWS($AN$9:AN58),$AM$9:$AN$158,2,0),\"\")","v":"Roundoff"},null,null,null,{"$f":"IF(ISNUMBER(SEARCH($B$13,AV58)),MAX($AU$8:AU57)+1,0)","v":50},"Roundoff",null,null,{"$f":"IFERROR(VLOOKUP(ROWS($AV$9:AV58),$AU$9:$AV$158,2,0),\"\")","v":"Roundoff"},null,null,null,{"$f":"IF(ISNUMBER(SEARCH($B$14,BD58)),MAX($BC$8:BC57)+1,0)","v":50},"Roundoff",null,null,{"$f":"IFERROR(VLOOKUP(ROWS($BD$9:BD58),$BC$9:$BD$158,2,0),\"\")","v":"Roundoff"},null,null,null,{"$f":"IF(ISNUMBER(SEARCH($B$15,BL58)),MAX($BK$8:BK57)+1,0)","v":50},"Roundoff",null,null,{"$f":"IFERROR(VLOOKUP(ROWS($BL$9:BL58),$BK$9:$BL$158,2,0),\"\")","v":"Roundoff"},null,null,null,{"$f":"IF(ISNUMBER(SEARCH($B$16,BT58)),MAX($BS$8:BS57)+1,0)","v":50},"Roundoff",null,null,{"$f":"IFERROR(VLOOKUP(ROWS($BT$9:BT58),$BS$9:$BT$158,2,0),\"\")","v":"Roundoff"},null,null,null,{"$f":"IF(ISNUMBER(SEARCH($B$17,CB58)),MAX($CA$8:CA57)+1,0)","v":50},"Roundoff",null,null,{"$f":"IFERROR(VLOOKUP(ROWS($CB$9:CB58),$CA$9:$CB$158,2,0),\"\")","v":"Roundoff"},null,null,null,{"$f":"IF(ISNUMBER(SEARCH($B$18,CJ58)),MAX($CI$8:CI57)+1,0)","v":50},"Roundoff",null,null,{"$f":"IFERROR(VLOOKUP(ROWS($CJ$9:CJ58),$CI$9:$CJ$158,2,0),\"\")","v":"Roundoff"}]
[null,null,null,null,null,null,null,null,null,null,"Boys G2 H",null,null,null,{"$f":"IF(ISNUMBER(SEARCH($B$9,P59)),MAX($O$8:O58)+1,0)","v":51},"Roundoff jump (optional shape)",null,null,{"$f":"IFERROR(VLOOKUP(ROWS($P$9:P59),$O$9:$P$158,2,0),\"\")","v":"Roundoff jump (optional shape)"},null,null,null,{"$f":"IF(ISNUMBER(SEARCH($B$10,X59)),MAX($W$8:W58)+1,0)","v":51},"Roundoff jump (optional shape)",null,null,{"$f":"IFERROR(VLOOKUP(ROWS($X$9:X59),$W$9:$X$158,2,0),\"\")","v":"Roundoff jump (optional shape)"},null,null,null,{"$f":"IF(ISNUMBER(SEARCH($B$11,AF59)),MAX($AE$8:AE58)+1,0)","v":51},"Roundoff jump (optional shape)",null,null,{"$f":"IFERROR(VLOOKUP(ROWS($AF$9:AF59),$AE$9:$AF$158,2,0),\"\")","v":"Roundoff jump (optional shape)"},null,null,null,{"$f":"IF(ISNUMBER(SEARCH($B$12,AN59)),MAX($AM$8:AM58)+1,0)","v":51},"Roundoff jump (optional shape)",null,null,{"$f":"IFERROR(VLOOKUP(ROWS($AN$9:AN59),$AM$9:$AN$158,2,0),\"\")","v":"Roundoff jump (optional shape)"},null,null,null,{"$f":"IF(ISNUMBER(SEARCH($B$13,AV59)),MAX($AU$8:AU58)+1,0)","v":51},"Roundoff jump (optional shape)",null,null,{"$f":"IFERROR(VLOOKUP(ROWS($AV$9:AV59),$AU$9:$AV$158,2,0),\"\")","v":"Roundoff jump (optional shape)"},null,null,null,{"$f":"IF(ISNUMBER(SEARCH($B$14,BD59)),MAX($BC$8:BC58)+1,0)","v":51},"Roundoff jump (optional shape)",null,null,{"$f":"IFERROR(VLOOKUP(ROWS($BD$9:BD59),$BC$9:$BD$158,2,0),\"\")","v":"Roundoff jump (optional shape)"},null,null,null,{"$f":"IF(ISNUMBER(SEARCH($B$15,BL59)),MAX($BK$8:BK58)+1,0)","v":51},"Roundoff jump (optional shape)",null,null,{"$f":"IFERROR(VLOOKUP(ROWS($BL$9:BL59),$BK$9:$BL$158,2,0),\"\")","v":"Roundoff jump (optional shape)"},null,null,null,{"$f":"IF(ISNUMBER(SEARCH($B$16,BT59)),MAX($BS$8:BS58)+1,0)","v":51},"Roundoff jump (optional shape)",null,null,{"$f":"IFERROR(VLOOKUP(ROWS($BT$9:BT59),$BS$9:$BT$158,2,0),\"\")","v":"Roundoff jump (optional shape)"},null,null,null,{"$f":"IF(ISNUMBER(SEARCH($B$17,CB59)),MAX($CA$8:CA58)+1,0)","v":51},"Roundoff jump (optional shape)",null,null,{"$f":"IFERROR(VLOOKUP(ROWS($CB$9:CB59),$CA$9:$CB$158,2,0),\"\")","v":"Roundoff jump (optional shape)"},null,null,null,{"$f":"IF(ISNUMBER(SEARCH($B$18,CJ59)),MAX($CI$8:CI58)+1,0)","v":51},"Roundoff jump (optional shape)",null,null,{"$f":"IFERROR(VLOOKUP(ROWS($CJ$9:CJ59),$CI$9:$CJ$158,2,0),\"\")","v":"Roundoff jump (optional shape)"}]
[null,null,null,null,null,null,null,null,null,null,{"$f":"IF(COUNTIF(CT9:CT18,\"Yes\")=1,\"Yes\",\"No\")","v":"No"},null,null,null,{"$f":"IF(ISNUMBER(SEARCH($B$9,P60)),MAX($O$8:O59)+1,0)","v":52},"Split leap or jump (150°)",null,null,{"$f":"IFERROR(VLOOKUP(ROWS($P$9:P60),$O$9:$P$158,2,0),\"\")","v":"Split leap or jump (150°)"},null,null,null,{"$f":"IF(ISNUMBER(SEARCH($B$10,X60)),MAX($W$8:W59)+1,0)","v":52},"Split leap or jump (150°)",null,null,{"$f":"IFERROR(VLOOKUP(ROWS($X$9:X60),$W$9:$X$158,2,0),\"\")","v":"Split leap or jump (150°)"},null,null,null,{"$f":"IF(ISNUMBER(SEARCH($B$11,AF60)),MAX($AE$8:AE59)+1,0)","v":52},"Split leap or jump (150°)",null,null,{"$f":"IFERROR(VLOOKUP(ROWS($AF$9:AF60),$AE$9:$AF$158,2,0),\"\")","v":"Split leap or jump (150°)"},null,null,null,{"$f":"IF(ISNUMBER(SEARCH($B$12,AN60)),MAX($AM$8:AM59)+1,0)","v":52},"Split leap or jump (150°)",null,null,{"$f":"IFERROR(VLOOKUP(ROWS($AN$9:AN60),$AM$9:$AN$158,2,0),\"\")","v":"Split leap or jump (150°)"},null,null,null,{"$f":"IF(ISNUMBER(SEARCH($B$13,AV60)),MAX($AU$8:AU59)+1,0)","v":52},"Split leap or jump (150°)",null,null,{"$f":"IFERROR(VLOOKUP(ROWS($AV$9:AV60),$AU$9:$AV$158,2,0),\"\")","v":"Split leap or jump (150°)"},null,null,null,{"$f":"IF(ISNUMBER(SEARCH($B$14,BD60)),MAX($BC$8:BC59)+1,0)","v":52},"Split leap or jump (150°)",null,null,{"$f":"IFERROR(VLOOKUP(ROWS($BD$9:BD60),$BC$9:$BD$158,2,0),\"\")","v":"Split leap or jump (150°)"},null,null,null,{"$f":"IF(ISNUMBER(SEARCH($B$15,BL60)),MAX($BK$8:BK59)+1,0)","v":52},"Split leap or jump (150°)",null,null,{"$f":"IFERROR(VLOOKUP(ROWS($BL$9:BL60),$BK$9:$BL$158,2,0),\"\")","v":"Split leap or jump (150°)"},null,null,null,{"$f":"IF(ISNUMBER(SEARCH($B$16,BT60)),MAX($BS$8:BS59)+1,0)","v":52},"Split leap or jump (150°)",null,null,{"$f":"IFERROR(VLOOKUP(ROWS($BT$9:BT60),$BS$9:$BT$158,2,0),\"\")","v":"Split leap or jump (150°)"},null,null,null,{"$f":"IF(ISNUMBER(SEARCH($B$17,CB60)),MAX($CA$8:CA59)+1,0)","v":52},"Split leap or jump (150°)",null,null,{"$f":"IFERROR(VLOOKUP(ROWS($CB$9:CB60),$CA$9:$CB$158,2,0),\"\")","v":"Split leap or jump (150°)"},null,null,null,{"$f":"IF(ISNUMBER(SEARCH($B$18,CJ60)),MAX($CI$8:CI59)+1,0)","v":52},"Split leap or jump (150°)",null,null,{"$f":"IFERROR(VLOOKUP(ROWS($CJ$9:CJ60),$CI$9:$CJ$158,2,0),\"\")","v":"Split leap or jump (150°)"}]
[null,null,null,null,null,null,null,null,null,null,{"$f":"IF(D5=\"Female\",IF(K58=\"Yes\",\"Yes\",\"No\"),IF(D5=\"Male\",IF(K60=\"Yes\",\"Yes\",\"No\"),\"No\"))","v":"No"},null,null,null,{"$f":"IF(ISNUMBER(SEARCH($B$9,P61)),MAX($O$8:O60)+1,0)","v":53},"Fouette Turn",null,null,{"$f":"IFERROR(VLOOKUP(ROWS($P$9:P61),$O$9:$P$158,2,0),\"\")","v":"Fouette Turn"},null,null,null,{"$f":"IF(ISNUMBER(SEARCH($B$10,X61)),MAX($W$8:W60)+1,0)","v":53},"Fouette Turn",null,null,{"$f":"IFERROR(VLOOKUP(ROWS($X$9:X61),$W$9:$X$158,2,0),\"\")","v":"Fouette Turn"},null,null,null,{"$f":"IF(ISNUMBER(SEARCH($B$11,AF61)),MAX($AE$8:AE60)+1,0)","v":53},"Fouette Turn",null,null,{"$f":"IFERROR(VLOOKUP(ROWS($AF$9:AF61),$AE$9:$AF$158,2,0),\"\")","v":"Fouette Turn"},null,null,null,{"$f":"IF(ISNUMBER(SEARCH($B$12,AN61)),MAX($AM$8:AM60)+1,0)","v":53},"Fouette Turn",null,null,{"$f":"IFERROR(VLOOKUP(ROWS($AN$9:AN61),$AM$9:$AN$158,2,0),\"\")","v":"Fouette Turn"},null,null,null,{"$f":"IF(ISNUMBER(SEARCH($B$13,AV61)),MAX($AU$8:AU60)+1,0)","v":53},"Fouette Turn",null,null,{"$f":"IFERROR(VLOOKUP(ROWS($AV$9:AV61),$AU$9:$AV$158,2,0),\"\")","v":"Fouette Turn"},null,null,null,{"$f":"IF(ISNUMBER(SEARCH($B$14,BD61)),MAX($BC$8:BC60)+1,0)","v":53},"Fouette Turn",null,null,{"$f":"IFERROR(VLOOKUP(ROWS($BD$9:BD61),$BC$9:$BD$158,2,0),\"\")","v":"Fouette Turn"},null,null,null,{"$f":"IF(ISNUMBER(SEARCH($B$15,BL61)),MAX($BK$8:BK60)+1,0)","v":53},"Fouette Turn",null,null,{"$f":"IFERROR(VLOOKUP(ROWS($BL$9:BL61),$BK$9:$BL$158,2,0),\"\")","v":"Fouette Turn"},null,null,null,{"$f":"IF(ISNUMBER(SEARCH($B$16,BT61)),MAX($BS$8:BS60)+1,0)","v":53},"Fouette Turn",null,null,{"$f":"IFERROR(VLOOKUP(ROWS($BT$9:BT61),$BS$9:$BT$158,2,0),\"\")","v":"Fouette Turn"},null,null,null,{"$f":"IF(ISNUMBER(SEARCH($B$17,CB61)),MAX($CA$8:CA60)+1,0)","v":53},"Fouette Turn",null,null,{"$f":"IFERROR(VLOOKUP(ROWS($CB$9:CB61),$CA$9:$CB$158,2,0),\"\")","v":"Fouette Turn"},null,null,null,{"$f":"IF(ISNUMBER(SEARCH($B$18,CJ61)),MAX($CI$8:CI60)+1,0)","v":53},"Fouette Turn",null,null,{"$f":"IFERROR(VLOOKUP(ROWS($CJ$9:CJ61),$CI$9:$CJ$158,2,0),\"\")","v":"Fouette Turn"}]
[null,null,null,null,null,null,null,null,null,null,null,null,null,null,{"$f":"IF(ISNUMBER(SEARCH($B$9,P62)),MAX($O$8:O61)+1,0)","v":54},"Cat leap ½ turn",null,null,{"$f":"IFERROR(VLOOKUP(ROWS($P$9:P62),$O$9:$P$158,2,0),\"\")","v":"Cat leap ½ turn"},null,null,null,{"$f":"IF(ISNUMBER(SEARCH($B$10,X62)),MAX($W$8:W61)+1,0)","v":54},"Cat leap ½ turn",null,null,{"$f":"IFERROR(VLOOKUP(ROWS($X$9:X62),$W$9:$X$158,2,0),\"\")","v":"Cat leap ½ turn"},null,null,null,{"$f":"IF(ISNUMBER(SEARCH($B$11,AF62)),MAX($AE$8:AE61)+1,0)","v":54},"Cat leap ½ turn",null,null,{"$f":"IFERROR(VLOOKUP(ROWS($AF$9:AF62),$AE$9:$AF$158,2,0),\"\")","v":"Cat leap ½ turn"},null,null,null,{"$f":"IF(ISNUMBER(SEARCH($B$12,AN62)),MAX($AM$8:AM61)+1,0)","v":54},"Cat leap ½ turn",null,null,{"$f":"IFERROR(VLOOKUP(ROWS($AN$9:AN62),$AM$9:$AN$158,2,0),\"\")","v":"Cat leap ½ turn"},null,null,null,{"$f":"IF(ISNUMBER(SEARCH($B$13,AV62)),MAX($AU$8:AU61)+1,0)","v":54},"Cat leap ½ turn",null,null,{"$f":"IFERROR(VLOOKUP(ROWS($AV$9:AV62),$AU$9:$AV$158,2,0),\"\")","v":"Cat leap ½ turn"},null,null,null,{"$f":"IF(ISNUMBER(SEARCH($B$14,BD62)),MAX($BC$8:BC61)+1,0)","v":54},"Cat leap ½ turn",null,null,{"$f":"IFERROR(VLOOKUP(ROWS($BD$9:BD62),$BC$9:$BD$158,2,0),\"\")","v":"Cat leap ½ turn"},null,null,null,{"$f":"IF(ISNUMBER(SEARCH($B$15,BL62)),MAX($BK$8:BK61)+1,0)","v":54},"Cat leap ½ turn",null,null,{"$f":"IFERROR(VLOOKUP(ROWS($BL$9:BL62),$BK$9:$BL$158,2,0),\"\")","v":"Cat leap ½ turn"},null,null,null,{"$f":"IF(ISNUMBER(SEARCH($B$16,BT62)),MAX($BS$8:BS61)+1,0)","v":54},"Cat leap ½ turn",null,null,{"$f":"IFERROR(VLOOKUP(ROWS($BT$9:BT62),$BS$9:$BT$158,2,0),\"\")","v":"Cat leap ½ turn"},null,null,null,{"$f":"IF(ISNUMBER(SEARCH($B$17,CB62)),MAX($CA$8:CA61)+1,0)","v":54},"Cat leap ½ turn",null,null,{"$f":"IFERROR(VLOOKUP(ROWS($CB$9:CB62),$CA$9:$CB$158,2,0),\"\")","v":"Cat leap ½ turn"},null,null,null,{"$f":"IF(ISNUMBER(SEARCH($B$18,CJ62)),MAX($CI$8:CI61)+1,0)","v":54},"Cat leap ½ turn",null,null,{"$f":"IFERROR(VLOOKUP(ROWS($CJ$9:CJ62),$CI$9:$CJ$158,2,0),\"\")","v":"Cat leap ½ turn"}]
[null,null,null,null,null,null,null,null,null,null,3,null,null,null,{"$f":"IF(ISNUMBER(SEARCH($B$9,P63)),MAX($O$8:O62)+1,0)","v":55},"Jump 1 ½  turn ",null,null,{"$f":"IFERROR(VLOOKUP(ROWS($P$9:P63),$O$9:$P$158,2,0),\"\")","v":"Jump 1 ½  turn "},null,null,null,{"$f":"IF(ISNUMBER(SEARCH($B$10,X63)),MAX($W$8:W62)+1,0)","v":55},"Jump 1 ½  turn ",null,null,{"$f":"IFERROR(VLOOKUP(ROWS($X$9:X63),$W$9:$X$158,2,0),\"\")","v":"Jump 1 ½  turn "},null,null,null,{"$f":"IF(ISNUMBER(SEARCH($B$11,AF63)),MAX($AE$8:AE62)+1,0)","v":55},"Jump 1 ½  turn ",null,null,{"$f":"IFERROR(VLOOKUP(ROWS($AF$9:AF63),$AE$9:$AF$158,2,0),\"\")","v":"Jump 1 ½  turn "},null,null,null,{"$f":"IF(ISNUMBER(SEARCH($B$12,AN63)),MAX($AM$8:AM62)+1,0)","v":55},"Jump 1 ½  turn ",null,null,{"$f":"IFERROR(VLOOKUP(ROWS($AN$9:AN63),$AM$9:$AN$158,2,0),\"\")","v":"Jump 1 ½  turn "},null,null,null,{"$f":"IF(ISNUMBER(SEARCH($B$13,AV63)),MAX($AU$8:AU62)+1,0)","v":55},"Jump 1 ½  turn ",null,null,{"$f":"IFERROR(VLOOKUP(ROWS($AV$9:AV63),$AU$9:$AV$158,2,0),\"\")","v":"Jump 1 ½  turn "},null,null,null,{"$f":"IF(ISNUMBER(SEARCH($B$14,BD63)),MAX($BC$8:BC62)+1,0)","v":55},"Jump 1 ½  turn ",null,null,{"$f":"IFERROR(VLOOKUP(ROWS($BD$9:BD63),$BC$9:$BD$158,2,0),\"\")","v":"Jump 1 ½  turn "},null,null,null,{"$f":"IF(ISNUMBER(SEARCH($B$15,BL63)),MAX($BK$8:BK62)+1,0)","v":55},"Jump 1 ½  turn ",null,null,{"$f":"IFERROR(VLOOKUP(ROWS($BL$9:BL63),$BK$9:$BL$158,2,0),\"\")","v":"Jump 1 ½  turn "},null,null,null,{"$f":"IF(ISNUMBER(SEARCH($B$16,BT63)),MAX($BS$8:BS62)+1,0)","v":55},"Jump 1 ½  turn ",null,null,{"$f":"IFERROR(VLOOKUP(ROWS($BT$9:BT63),$BS$9:$BT$158,2,0),\"\")","v":"Jump 1 ½  turn "},null,null,null,{"$f":"IF(ISNUMBER(SEARCH($B$17,CB63)),MAX($CA$8:CA62)+1,0)","v":55},"Jump 1 ½  turn ",null,null,{"$f":"IFERROR(VLOOKUP(ROWS($CB$9:CB63),$CA$9:$CB$158,2,0),\"\")","v":"Jump 1 ½  turn "},null,null,null,{"$f":"IF(ISNUMBER(SEARCH($B$18,CJ63)),MAX($CI$8:CI62)+1,0)","v":55},"Jump 1 ½  turn ",null,null,{"$f":"IFERROR(VLOOKUP(ROWS($CJ$9:CJ63),$CI$9:$CJ$158,2,0),\"\")","v":"Jump 1 ½  turn "}]
[null,null,null,null,null,null,null,null,null,null,"G1",null,null,null,{"$f":"IF(ISNUMBER(SEARCH($B$9,P64)),MAX($O$8:O63)+1,0)","v":56},"Straddle jump",null,null,{"$f":"IFERROR(VLOOKUP(ROWS($P$9:P64),$O$9:$P$158,2,0),\"\")","v":"Straddle jump"},null,null,null,{"$f":"IF(ISNUMBER(SEARCH($B$10,X64)),MAX($W$8:W63)+1,0)","v":56},"Straddle jump",null,null,{"$f":"IFERROR(VLOOKUP(ROWS($X$9:X64),$W$9:$X$158,2,0),\"\")","v":"Straddle jump"},null,null,null,{"$f":"IF(ISNUMBER(SEARCH($B$11,AF64)),MAX($AE$8:AE63)+1,0)","v":56},"Straddle jump",null,null,{"$f":"IFERROR(VLOOKUP(ROWS($AF$9:AF64),$AE$9:$AF$158,2,0),\"\")","v":"Straddle jump"},null,null,null,{"$f":"IF(ISNUMBER(SEARCH($B$12,AN64)),MAX($AM$8:AM63)+1,0)","v":56},"Straddle jump",null,null,{"$f":"IFERROR(VLOOKUP(ROWS($AN$9:AN64),$AM$9:$AN$158,2,0),\"\")","v":"Straddle jump"},null,null,null,{"$f":"IF(ISNUMBER(SEARCH($B$13,AV64)),MAX($AU$8:AU63)+1,0)","v":56},"Straddle jump",null,null,{"$f":"IFERROR(VLOOKUP(ROWS($AV$9:AV64),$AU$9:$AV$158,2,0),\"\")","v":"Straddle jump"},null,null,null,{"$f":"IF(ISNUMBER(SEARCH($B$14,BD64)),MAX($BC$8:BC63)+1,0)","v":56},"Straddle jump",null,null,{"$f":"IFERROR(VLOOKUP(ROWS($BD$9:BD64),$BC$9:$BD$158,2,0),\"\")","v":"Straddle jump"},null,null,null,{"$f":"IF(ISNUMBER(SEARCH($B$15,BL64)),MAX($BK$8:BK63)+1,0)","v":56},"Straddle jump",null,null,{"$f":"IFERROR(VLOOKUP(ROWS($BL$9:BL64),$BK$9:$BL$158,2,0),\"\")","v":"Straddle jump"},null,null,null,{"$f":"IF(ISNUMBER(SEARCH($B$16,BT64)),MAX($BS$8:BS63)+1,0)","v":56},"Straddle jump",null,null,{"$f":"IFERROR(VLOOKUP(ROWS($BT$9:BT64),$BS$9:$BT$158,2,0),\"\")","v":"Straddle jump"},null,null,null,{"$f":"IF(ISNUMBER(SEARCH($B$17,CB64)),MAX($CA$8:CA63)+1,0)","v":56},"Straddle jump",null,null,{"$f":"IFERROR(VLOOKUP(ROWS($CB$9:CB64),$CA$9:$CB$158,2,0),\"\")","v":"Straddle jump"},null,null,null,{"$f":"IF(ISNUMBER(SEARCH($B$18,CJ64)),MAX($CI$8:CI63)+1,0)","v":56},"Straddle jump",null,null,{"$f":"IFERROR(VLOOKUP(ROWS($CJ$9:CJ64),$CI$9:$CJ$158,2,0),\"\")","v":"Straddle jump"}]
[null,null,null,null,null,null,null,null,null,null,{"$f":"IF(COUNTIF(CR9:CR18,\"Yes\")=1,\"Yes\",\"No\")","v":"No"},null,null,null,{"$f":"IF(ISNUMBER(SEARCH($B$9,P65)),MAX($O$8:O64)+1,0)","v":57},"Tuck jump ½ turn",null,null,{"$f":"IFERROR(VLOOKUP(ROWS($P$9:P65),$O$9:$P$158,2,0),\"\")","v":"Tuck jump ½ turn"},null,null,null,{"$f":"IF(ISNUMBER(SEARCH($B$10,X65)),MAX($W$8:W64)+1,0)","v":57},"Tuck jump ½ turn",null,null,{"$f":"IFERROR(VLOOKUP(ROWS($X$9:X65),$W$9:$X$158,2,0),\"\")","v":"Tuck jump ½ turn"},null,null,null,{"$f":"IF(ISNUMBER(SEARCH($B$11,AF65)),MAX($AE$8:AE64)+1,0)","v":57},"Tuck jump ½ turn",null,null,{"$f":"IFERROR(VLOOKUP(ROWS($AF$9:AF65),$AE$9:$AF$158,2,0),\"\")","v":"Tuck jump ½ turn"},null,null,null,{"$f":"IF(ISNUMBER(SEARCH($B$12,AN65)),MAX($AM$8:AM64)+1,0)","v":57},"Tuck jump ½ turn",null,null,{"$f":"IFERROR(VLOOKUP(ROWS($AN$9:AN65),$AM$9:$AN$158,2,0),\"\")","v":"Tuck jump ½ turn"},null,null,null,{"$f":"IF(ISNUMBER(SEARCH($B$13,AV65)),MAX($AU$8:AU64)+1,0)","v":57},"Tuck jump ½ turn",null,null,{"$f":"IFERROR(VLOOKUP(ROWS($AV$9:AV65),$AU$9:$AV$158,2,0),\"\")","v":"Tuck jump ½ turn"},null,null,null,{"$f":"IF(ISNUMBER(SEARCH($B$14,BD65)),MAX($BC$8:BC64)+1,0)","v":57},"Tuck jump ½ turn",null,null,{"$f":"IFERROR(VLOOKUP(ROWS($BD$9:BD65),$BC$9:$BD$158,2,0),\"\")","v":"Tuck jump ½ turn"},null,null,null,{"$f":"IF(ISNUMBER(SEARCH($B$15,BL65)),MAX($BK$8:BK64)+1,0)","v":57},"Tuck jump ½ turn",null,null,{"$f":"IFERROR(VLOOKUP(ROWS($BL$9:BL65),$BK$9:$BL$158,2,0),\"\")","v":"Tuck jump ½ turn"},null,null,null,{"$f":"IF(ISNUMBER(SEARCH($B$16,BT65)),MAX($BS$8:BS64)+1,0)","v":57},"Tuck jump ½ turn",null,null,{"$f":"IFERROR(VLOOKUP(ROWS($BT$9:BT65),$BS$9:$BT$158,2,0),\"\")","v":"Tuck jump ½ turn"},null,null,null,{"$f":"IF(ISNUMBER(SEARCH($B$17,CB65)),MAX($CA$8:CA64)+1,0)","v":57},"Tuck jump ½ turn",null,null,{"$f":"IFERROR(VLOOKUP(ROWS($CB$9:CB65),$CA$9:$CB$158,2,0),\"\")","v":"Tuck jump ½ turn"},null,null,null,{"$f":"IF(ISNUMBER(SEARCH($B$18,CJ65)),MAX($CI$8:CI64)+1,0)","v":57},"Tuck jump ½ turn",null,null,{"$f":"IFERROR(VLOOKUP(ROWS($CJ$9:CJ65),$CI$9:$CJ$158,2,0),\"\")","v":"Tuck jump ½ turn"}]
[null,null,null,null,null,null,null,null,null,null,4,null,null,null,{"$f":"IF(ISNUMBER(SEARCH($B$9,P66)),MAX($O$8:O65)+1,0)","v":58},"Full Spin",null,null,{"$f":"IFERROR(VLOOKUP(ROWS($P$9:P66),$O$9:$P$158,2,0),\"\")","v":"Full Spin"},null,null,null,{"$f":"IF(ISNUMBER(SEARCH($B$10,X66)),MAX($W$8:W65)+1,0)","v":58},"Full Spin",null,null,{"$f":"IFERROR(VLOOKUP(ROWS($X$9:X66),$W$9:$X$158,2,0),\"\")","v":"Full Spin"},null,null,null,{"$f":"IF(ISNUMBER(SEARCH($B$11,AF66)),MAX($AE$8:AE65)+1,0)","v":58},"Full Spin",null,null,{"$f":"IFERROR(VLOOKUP(ROWS($AF$9:AF66),$AE$9:$AF$158,2,0),\"\")","v":"Full Spin"},null,null,null,{"$f":"IF(ISNUMBER(SEARCH($B$12,AN66)),MAX($AM$8:AM65)+1,0)","v":58},"Full Spin",null,null,{"$f":"IFERROR(VLOOKUP(ROWS($AN$9:AN66),$AM$9:$AN$158,2,0),\"\")","v":"Full Spin"},null,null,null,{"$f":"IF(ISNUMBER(SEARCH($B$13,AV66)),MAX($AU$8:AU65)+1,0)","v":58},"Full Spin",null,null,{"$f":"IFERROR(VLOOKUP(ROWS($AV$9:AV66),$AU$9:$AV$158,2,0),\"\")","v":"Full Spin"},null,null,null,{"$f":"IF(ISNUMBER(SEARCH($B$14,BD66)),MAX($BC$8:BC65)+1,0)","v":58},"Full Spin",null,null,{"$f":"IFERROR(VLOOKUP(ROWS($BD$9:BD66),$BC$9:$BD$158,2,0),\"\")","v":"Full Spin"},null,null,null,{"$f":"IF(ISNUMBER(SEARCH($B$15,BL66)),MAX($BK$8:BK65)+1,0)","v":58},"Full Spin",null,null,{"$f":"IFERROR(VLOOKUP(ROWS($BL$9:BL66),$BK$9:$BL$158,2,0),\"\")","v":"Full Spin"},null,null,null,{"$f":"IF(ISNUMBER(SEARCH($B$16,BT66)),MAX($BS$8:BS65)+1,0)","v":58},"Full Spin",null,null,{"$f":"IFERROR(VLOOKUP(ROWS($BT$9:BT66),$BS$9:$BT$158,2,0),\"\")","v":"Full Spin"},null,null,null,{"$f":"IF(ISNUMBER(SEARCH($B$17,CB66)),MAX($CA$8:CA65)+1,0)","v":58},"Full Spin",null,null,{"$f":"IFERROR(VLOOKUP(ROWS($CB$9:CB66),$CA$9:$CB$158,2,0),\"\")","v":"Full Spin"},null,null,null,{"$f":"IF(ISNUMBER(SEARCH($B$18,CJ66)),MAX($CI$8:CI65)+1,0)","v":58},"Full Spin",null,null,{"$f":"IFERROR(VLOOKUP(ROWS($CJ$9:CJ66),$CI$9:$CJ$158,2,0),\"\")","v":"Full Spin"}]
[null,null,null,null,null,null,null,null,null,null,"AS",null,null,null,{"$f":"IF(ISNUMBER(SEARCH($B$9,P67)),MAX($O$8:O66)+1,0)","v":59},"Y scale (leg above waist height) ",null,null,{"$f":"IFERROR(VLOOKUP(ROWS($P$9:P67),$O$9:$P$158,2,0),\"\")","v":"Y scale (leg above waist height) "},null,null,null,{"$f":"IF(ISNUMBER(SEARCH($B$10,X67)),MAX($W$8:W66)+1,0)","v":59},"Y scale (leg above waist height) ",null,null,{"$f":"IFERROR(VLOOKUP(ROWS($X$9:X67),$W$9:$X$158,2,0),\"\")","v":"Y scale (leg above waist height) "},null,null,null,{"$f":"IF(ISNUMBER(SEARCH($B$11,AF67)),MAX($AE$8:AE66)+1,0)","v":59},"Y scale (leg above waist height) ",null,null,{"$f":"IFERROR(VLOOKUP(ROWS($AF$9:AF67),$AE$9:$AF$158,2,0),\"\")","v":"Y scale (leg above waist height) "},null,null,null,{"$f":"IF(ISNUMBER(SEARCH($B$12,AN67)),MAX($AM$8:AM66)+1,0)","v":59},"Y scale (leg above waist height) ",null,null,{"$f":"IFERROR(VLOOKUP(ROWS($AN$9:AN67),$AM$9:$AN$158,2,0),\"\")","v":"Y scale (leg above waist height) "},null,null,null,{"$f":"IF(ISNUMBER(SEARCH($B$13,AV67)),MAX($AU$8:AU66)+1,0)","v":59},"Y scale (leg above waist height) ",null,null,{"$f":"IFERROR(VLOOKUP(ROWS($AV$9:AV67),$AU$9:$AV$158,2,0),\"\")","v":"Y scale (leg above waist height) "},null,null,null,{"$f":"IF(ISNUMBER(SEARCH($B$14,BD67)),MAX($BC$8:BC66)+1,0)","v":59},"Y scale (leg above waist height) ",null,null,{"$f":"IFERROR(VLOOKUP(ROWS($BD$9:BD67),$BC$9:$BD$158,2,0),\"\")","v":"Y scale (leg above waist height) "},null,null,null,{"$f":"IF(ISNUMBER(SEARCH($B$15,BL67)),MAX($BK$8:BK66)+1,0)","v":59},"Y scale (leg above waist height) ",null,null,{"$f":"IFERROR(VLOOKUP(ROWS($BL$9:BL67),$BK$9:$BL$158,2,0),\"\")","v":"Y scale (leg above waist height) "},null,null,null,{"$f":"IF(ISNUMBER(SEARCH($B$16,BT67)),MAX($BS$8:BS66)+1,0)","v":59},"Y scale (leg above waist height) ",null,null,{"$f":"IFERROR(VLOOKUP(ROWS($BT$9:BT67),$BS$9:$BT$158,2,0),\"\")","v":"Y scale (leg above waist height) "},null,null,null,{"$f":"IF(ISNUMBER(SEARCH($B$17,CB67)),MAX($CA$8:CA66)+1,0)","v":59},"Y scale (leg above waist height) ",null,null,{"$f":"IFERROR(VLOOKUP(ROWS($CB$9:CB67),$CA$9:$CB$158,2,0),\"\")","v":"Y scale (leg above waist height) "},null,null,null,{"$f":"IF(ISNUMBER(SEARCH($B$18,CJ67)),MAX($CI$8:CI66)+1,0)","v":59},"Y scale (leg above waist height) ",null,null,{"$f":"IFERROR(VLOOKUP(ROWS($CJ$9:CJ67),$CI$9:$CJ$158,2,0),\"\")","v":"Y scale (leg above waist height) "}]
[null,null,null,null,null,null,null,null,null,null,{"$f":"IF(COUNTIF(CV9:CV18,\"Yes\")=1,\"Yes\",\"No\")","v":"No"},null,null,null,{"$f":"IF(ISNUMBER(SEARCH($B$9,P68)),MAX($O$8:O67)+1,0)","v":60},"2 way Splits",null,null,{"$f":"IFERROR(VLOOKUP(ROWS($P$9:P68),$O$9:$P$158,2,0),\"\")","v":"2 way Splits"},null,null,null,{"$f":"IF(ISNUMBER(SEARCH($B$10,X68)),MAX($W$8:W67)+1,0)","v":60},"2 way Splits",null,null,{"$f":"IFERROR(VLOOKUP(ROWS($X$9:X68),$W$9:$X$158,2,0),\"\")","v":"2 way Splits"},null,null,null,{"$f":"IF(ISNUMBER(SEARCH($B$11,AF68)),MAX($AE$8:AE67)+1,0)","v":60},"2 way Splits",null,null,{"$f":"IFERROR(VLOOKUP(ROWS($AF$9:AF68),$AE$9:$AF$158,2,0),\"\")","v":"2 way Splits"},null,null,null,{"$f":"IF(ISNUMBER(SEARCH($B$12,AN68)),MAX($AM$8:AM67)+1,0)","v":60},"2 way Splits",null,null,{"$f":"IFERROR(VLOOKUP(ROWS($AN$9:AN68),$AM$9:$AN$158,2,0),\"\")","v":"2 way Splits"},null,null,null,{"$f":"IF(ISNUMBER(SEARCH($B$13,AV68)),MAX($AU$8:AU67)+1,0)","v":60},"2 way Splits",null,null,{"$f":"IFERROR(VLOOKUP(ROWS($AV$9:AV68),$AU$9:$AV$158,2,0),\"\")","v":"2 way Splits"},null,null,null,{"$f":"IF(ISNUMBER(SEARCH($B$14,BD68)),MAX($BC$8:BC67)+1,0)","v":60},"2 way Splits",null,null,{"$f":"IFERROR(VLOOKUP(ROWS($BD$9:BD68),$BC$9:$BD$158,2,0),\"\")","v":"2 way Splits"},null,null,null,{"$f":"IF(ISNUMBER(SEARCH($B$15,BL68)),MAX($BK$8:BK67)+1,0)","v":60},"2 way Splits",null,null,{"$f":"IFERROR(VLOOKUP(ROWS($BL$9:BL68),$BK$9:$BL$158,2,0),\"\")","v":"2 way Splits"},null,null,null,{"$f":"IF(ISNUMBER(SEARCH($B$16,BT68)),MAX($BS$8:BS67)+1,0)","v":60},"2 way Splits",null,null,{"$f":"IFERROR(VLOOKUP(ROWS($BT$9:BT68),$BS$9:$BT$158,2,0),\"\")","v":"2 way Splits"},null,null,null,{"$f":"IF(ISNUMBER(SEARCH($B$17,CB68)),MAX($CA$8:CA67)+1,0)","v":60},"2 way Splits",null,null,{"$f":"IFERROR(VLOOKUP(ROWS($CB$9:CB68),$CA$9:$CB$158,2,0),\"\")","v":"2 way Splits"},null,null,null,{"$f":"IF(ISNUMBER(SEARCH($B$18,CJ68)),MAX($CI$8:CI67)+1,0)","v":60},"2 way Splits",null,null,{"$f":"IFERROR(VLOOKUP(ROWS($CJ$9:CJ68),$CI$9:$CJ$158,2,0),\"\")","v":"2 way Splits"}]
[null,null,null,null,null,null,null,null,null,null,5,null,null,null,{"$f":"IF(ISNUMBER(SEARCH($B$9,P69)),MAX($O$8:O68)+1,0)","v":61},"Japana Swim Through",null,null,{"$f":"IFERROR(VLOOKUP(ROWS($P$9:P69),$O$9:$P$158,2,0),\"\")","v":"Japana Swim Through"},null,null,null,{"$f":"IF(ISNUMBER(SEARCH($B$10,X69)),MAX($W$8:W68)+1,0)","v":61},"Japana Swim Through",null,null,{"$f":"IFERROR(VLOOKUP(ROWS($X$9:X69),$W$9:$X$158,2,0),\"\")","v":"Japana Swim Through"},null,null,null,{"$f":"IF(ISNUMBER(SEARCH($B$11,AF69)),MAX($AE$8:AE68)+1,0)","v":61},"Japana Swim Through",null,null,{"$f":"IFERROR(VLOOKUP(ROWS($AF$9:AF69),$AE$9:$AF$158,2,0),\"\")","v":"Japana Swim Through"},null,null,null,{"$f":"IF(ISNUMBER(SEARCH($B$12,AN69)),MAX($AM$8:AM68)+1,0)","v":61},"Japana Swim Through",null,null,{"$f":"IFERROR(VLOOKUP(ROWS($AN$9:AN69),$AM$9:$AN$158,2,0),\"\")","v":"Japana Swim Through"},null,null,null,{"$f":"IF(ISNUMBER(SEARCH($B$13,AV69)),MAX($AU$8:AU68)+1,0)","v":61},"Japana Swim Through",null,null,{"$f":"IFERROR(VLOOKUP(ROWS($AV$9:AV69),$AU$9:$AV$158,2,0),\"\")","v":"Japana Swim Through"},null,null,null,{"$f":"IF(ISNUMBER(SEARCH($B$14,BD69)),MAX($BC$8:BC68)+1,0)","v":61},"Japana Swim Through",null,null,{"$f":"IFERROR(VLOOKUP(ROWS($BD$9:BD69),$BC$9:$BD$158,2,0),\"\")","v":"Japana Swim Through"},null,null,null,{"$f":"IF(ISNUMBER(SEARCH($B$15,BL69)),MAX($BK$8:BK68)+1,0)","v":61},"Japana Swim Through",null,null,{"$f":"IFERROR(VLOOKUP(ROWS($BL$9:BL69),$BK$9:$BL$158,2,0),\"\")","v":"Japana Swim Through"},null,null,null,{"$f":"IF(ISNUMBER(SEARCH($B$16,BT69)),MAX($BS$8:BS68)+1,0)","v":61},"Japana Swim Through",null,null,{"$f":"IFERROR(VLOOKUP(ROWS($BT$9:BT69),$BS$9:$BT$158,2,0),\"\")","v":"Japana Swim Through"},null,null,null,{"$f":"IF(ISNUMBER(SEARCH($B$17,CB69)),MAX($CA$8:CA68)+1,0)","v":61},"Japana Swim Through",null,null,{"$f":"IFERROR(VLOOKUP(ROWS($CB$9:CB69),$CA$9:$CB$158,2,0),\"\")","v":"Japana Swim Through"},null,null,null,{"$f":"IF(ISNUMBER(SEARCH($B$18,CJ69)),MAX($CI$8:CI68)+1,0)","v":61},"Japana Swim Through",null,null,{"$f":"IFERROR(VLOOKUP(ROWS($CJ$9:CJ69),$CI$9:$CJ$158,2,0),\"\")","v":"Japana Swim Through"}]
[null,null,null,null,null,null,null,null,null,null,"FS",null,null,null,{"$f":"IF(ISNUMBER(SEARCH($B$9,P70)),MAX($O$8:O69)+1,0)","v":62},"Fall to Prone Jump to Straddle Stand",null,null,{"$f":"IFERROR(VLOOKUP(ROWS($P$9:P70),$O$9:$P$158,2,0),\"\")","v":"Fall to Prone Jump to Straddle Stand"},null,null,null,{"$f":"IF(ISNUMBER(SEARCH($B$10,X70)),MAX($W$8:W69)+1,0)","v":62},"Fall to Prone Jump to Straddle Stand",null,null,{"$f":"IFERROR(VLOOKUP(ROWS($X$9:X70),$W$9:$X$158,2,0),\"\")","v":"Fall to Prone Jump to Straddle Stand"},null,null,null,{"$f":"IF(ISNUMBER(SEARCH($B$11,AF70)),MAX($AE$8:AE69)+1,0)","v":62},"Fall to Prone Jump to Straddle Stand",null,null,{"$f":"IFERROR(VLOOKUP(ROWS($AF$9:AF70),$AE$9:$AF$158,2,0),\"\")","v":"Fall to Prone Jump to Straddle Stand"},null,null,null,{"$f":"IF(ISNUMBER(SEARCH($B$12,AN70)),MAX($AM$8:AM69)+1,0)","v":62},"Fall to Prone Jump to Straddle Stand",null,null,{"$f":"IFERROR(VLOOKUP(ROWS($AN$9:AN70),$AM$9:$AN$158,2,0),\"\")","v":"Fall to Prone Jump to Straddle Stand"},null,null,null,{"$f":"IF(ISNUMBER(SEARCH($B$13,AV70)),MAX($AU$8:AU69)+1,0)","v":62},"Fall to Prone Jump to Straddle Stand",null,null,{"$f":"IFERROR(VLOOKUP(ROWS($AV$9:AV70),$AU$9:$AV$158,2,0),\"\")","v":"Fall to Prone Jump to Straddle Stand"},null,null,null,{"$f":"IF(ISNUMBER(SEARCH($B$14,BD70)),MAX($BC$8:BC69)+1,0)","v":62},"Fall to Prone Jump to Straddle Stand",null,null,{"$f":"IFERROR(VLOOKUP(ROWS($BD$9:BD70),$BC$9:$BD$158,2,0),\"\")","v":"Fall to Prone Jump to Straddle Stand"},null,null,null,{"$f":"IF(ISNUMBER(SEARCH($B$15,BL70)),MAX($BK$8:BK69)+1,0)","v":62},"Fall to Prone Jump to Straddle Stand",null,null,{"$f":"IFERROR(VLOOKUP(ROWS($BL$9:BL70),$BK$9:$BL$158,2,0),\"\")","v":"Fall to Prone Jump to Straddle Stand"},null,null,null,{"$f":"IF(ISNUMBER(SEARCH($B$16,BT70)),MAX($BS$8:BS69)+1,0)","v":62},"Fall to Prone Jump to Straddle Stand",null,null,{"$f":"IFERROR(VLOOKUP(ROWS($BT$9:BT70),$BS$9:$BT$158,2,0),\"\")","v":"Fall to Prone Jump to Straddle Stand"},null,null,null,{"$f":"IF(ISNUMBER(SEARCH($B$17,CB70)),MAX($CA$8:CA69)+1,0)","v":62},"Fall to Prone Jump to Straddle Stand",null,null,{"$f":"IFERROR(VLOOKUP(ROWS($CB$9:CB70),$CA$9:$CB$158,2,0),\"\")","v":"Fall to Prone Jump to Straddle Stand"},null,null,null,{"$f":"IF(ISNUMBER(SEARCH($B$18,CJ70)),MAX($CI$8:CI69)+1,0)","v":62},"Fall to Prone Jump to Straddle Stand",null,null,{"$f":"IFERROR(VLOOKUP(ROWS($CJ$9:CJ70),$CI$9:$CJ$158,2,0),\"\")","v":"Fall to Prone Jump to Straddle Stand"}]
[null,null,null,null,null,null,null,null,null,null,{"$f":"IF(COUNTIF(CW9:CW18,\"Yes\")=1,\"Yes\",\"No\")","v":"No"},null,null,null,{"$f":"IF(ISNUMBER(SEARCH($B$9,P71)),MAX($O$8:O70)+1,0)","v":63},"F Supp jump legs through straddle -",null,null,{"$f":"IFERROR(VLOOKUP(ROWS($P$9:P71),$O$9:$P$158,2,0),\"\")","v":"F Supp jump legs through straddle -"},null,null,null,{"$f":"IF(ISNUMBER(SEARCH($B$10,X71)),MAX($W$8:W70)+1,0)","v":63},"F Supp jump legs through straddle -",null,null,{"$f":"IFERROR(VLOOKUP(ROWS($X$9:X71),$W$9:$X$158,2,0),\"\")","v":"F Supp jump legs through straddle -"},null,null,null,{"$f":"IF(ISNUMBER(SEARCH($B$11,AF71)),MAX($AE$8:AE70)+1,0)","v":63},"F Supp jump legs through straddle -",null,null,{"$f":"IFERROR(VLOOKUP(ROWS($AF$9:AF71),$AE$9:$AF$158,2,0),\"\")","v":"F Supp jump legs through straddle -"},null,null,null,{"$f":"IF(ISNUMBER(SEARCH($B$12,AN71)),MAX($AM$8:AM70)+1,0)","v":63},"F Supp jump legs through straddle -",null,null,{"$f":"IFERROR(VLOOKUP(ROWS($AN$9:AN71),$AM$9:$AN$158,2,0),\"\")","v":"F Supp jump legs through straddle -"},null,null,null,{"$f":"IF(ISNUMBER(SEARCH($B$13,AV71)),MAX($AU$8:AU70)+1,0)","v":63},"F Supp jump legs through straddle -",null,null,{"$f":"IFERROR(VLOOKUP(ROWS($AV$9:AV71),$AU$9:$AV$158,2,0),\"\")","v":"F Supp jump legs through straddle -"},null,null,null,{"$f":"IF(ISNUMBER(SEARCH($B$14,BD71)),MAX($BC$8:BC70)+1,0)","v":63},"F Supp jump legs through straddle -",null,null,{"$f":"IFERROR(VLOOKUP(ROWS($BD$9:BD71),$BC$9:$BD$158,2,0),\"\")","v":"F Supp jump legs through straddle -"},null,null,null,{"$f":"IF(ISNUMBER(SEARCH($B$15,BL71)),MAX($BK$8:BK70)+1,0)","v":63},"F Supp jump legs through straddle -",null,null,{"$f":"IFERROR(VLOOKUP(ROWS($BL$9:BL71),$BK$9:$BL$158,2,0),\"\")","v":"F Supp jump legs through straddle -"},null,null,null,{"$f":"IF(ISNUMBER(SEARCH($B$16,BT71)),MAX($BS$8:BS70)+1,0)","v":63},"F Supp jump legs through straddle -",null,null,{"$f":"IFERROR(VLOOKUP(ROWS($BT$9:BT71),$BS$9:$BT$158,2,0),\"\")","v":"F Supp jump legs through straddle -"},null,null,null,{"$f":"IF(ISNUMBER(SEARCH($B$17,CB71)),MAX($CA$8:CA70)+1,0)","v":63},"F Supp jump legs through straddle -",null,null,{"$f":"IFERROR(VLOOKUP(ROWS($CB$9:CB71),$CA$9:$CB$158,2,0),\"\")","v":"F Supp jump legs through straddle -"},null,null,null,{"$f":"IF(ISNUMBER(SEARCH($B$18,CJ71)),MAX($CI$8:CI70)+1,0)","v":63},"F Supp jump legs through straddle -",null,null,{"$f":"IFERROR(VLOOKUP(ROWS($CJ$9:CJ71),$CI$9:$CJ$158,2,0),\"\")","v":"F Supp jump legs through straddle -"}]
[null,null,null,null,null,null,null,null,null,null,null,null,null,null,{"$f":"IF(ISNUMBER(SEARCH($B$9,P72)),MAX($O$8:O71)+1,0)","v":64},"Tuck ‘Russian’ Lever",null,null,{"$f":"IFERROR(VLOOKUP(ROWS($P$9:P72),$O$9:$P$158,2,0),\"\")","v":"Tuck ‘Russian’ Lever"},null,null,null,{"$f":"IF(ISNUMBER(SEARCH($B$10,X72)),MAX($W$8:W71)+1,0)","v":64},"Tuck ‘Russian’ Lever",null,null,{"$f":"IFERROR(VLOOKUP(ROWS($X$9:X72),$W$9:$X$158,2,0),\"\")","v":"Tuck ‘Russian’ Lever"},null,null,null,{"$f":"IF(ISNUMBER(SEARCH($B$11,AF72)),MAX($AE$8:AE71)+1,0)","v":64},"Tuck ‘Russian’ Lever",null,null,{"$f":"IFERROR(VLOOKUP(ROWS($AF$9:AF72),$AE$9:$AF$158,2,0),\"\")","v":"Tuck ‘Russian’ Lever"},null,null,null,{"$f":"IF(ISNUMBER(SEARCH($B$12,AN72)),MAX($AM$8:AM71)+1,0)","v":64},"Tuck ‘Russian’ Lever",null,null,{"$f":"IFERROR(VLOOKUP(ROWS($AN$9:AN72),$AM$9:$AN$158,2,0),\"\")","v":"Tuck ‘Russian’ Lever"},null,null,null,{"$f":"IF(ISNUMBER(SEARCH($B$13,AV72)),MAX($AU$8:AU71)+1,0)","v":64},"Tuck ‘Russian’ Lever",null,null,{"$f":"IFERROR(VLOOKUP(ROWS($AV$9:AV72),$AU$9:$AV$158,2,0),\"\")","v":"Tuck ‘Russian’ Lever"},null,null,null,{"$f":"IF(ISNUMBER(SEARCH($B$14,BD72)),MAX($BC$8:BC71)+1,0)","v":64},"Tuck ‘Russian’ Lever",null,null,{"$f":"IFERROR(VLOOKUP(ROWS($BD$9:BD72),$BC$9:$BD$158,2,0),\"\")","v":"Tuck ‘Russian’ Lever"},null,null,null,{"$f":"IF(ISNUMBER(SEARCH($B$15,BL72)),MAX($BK$8:BK71)+1,0)","v":64},"Tuck ‘Russian’ Lever",null,null,{"$f":"IFERROR(VLOOKUP(ROWS($BL$9:BL72),$BK$9:$BL$158,2,0),\"\")","v":"Tuck ‘Russian’ Lever"},null,null,null,{"$f":"IF(ISNUMBER(SEARCH($B$16,BT72)),MAX($BS$8:BS71)+1,0)","v":64},"Tuck ‘Russian’ Lever",null,null,{"$f":"IFERROR(VLOOKUP(ROWS($BT$9:BT72),$BS$9:$BT$158,2,0),\"\")","v":"Tuck ‘Russian’ Lever"},null,null,null,{"$f":"IF(ISNUMBER(SEARCH($B$17,CB72)),MAX($CA$8:CA71)+1,0)","v":64},"Tuck ‘Russian’ Lever",null,null,{"$f":"IFERROR(VLOOKUP(ROWS($CB$9:CB72),$CA$9:$CB$158,2,0),\"\")","v":"Tuck ‘Russian’ Lever"},null,null,null,{"$f":"IF(ISNUMBER(SEARCH($B$18,CJ72)),MAX($CI$8:CI71)+1,0)","v":64},"Tuck ‘Russian’ Lever",null,null,{"$f":"IFERROR(VLOOKUP(ROWS($CJ$9:CJ72),$CI$9:$CJ$158,2,0),\"\")","v":"Tuck ‘Russian’ Lever"}]
[null,null,null,null,null,null,null,null,null,null,"Achieved",null,null,null,{"$f":"IF(ISNUMBER(SEARCH($B$9,P73)),MAX($O$8:O72)+1,0)","v":65},"Tucked hold (press off knees)",null,null,{"$f":"IFERROR(VLOOKUP(ROWS($P$9:P73),$O$9:$P$158,2,0),\"\")","v":"Tucked hold (press off knees)"},null,null,null,{"$f":"IF(ISNUMBER(SEARCH($B$10,X73)),MAX($W$8:W72)+1,0)","v":65},"Tucked hold (press off knees)",null,null,{"$f":"IFERROR(VLOOKUP(ROWS($X$9:X73),$W$9:$X$158,2,0),\"\")","v":"Tucked hold (press off knees)"},null,null,null,{"$f":"IF(ISNUMBER(SEARCH($B$11,AF73)),MAX($AE$8:AE72)+1,0)","v":65},"Tucked hold (press off knees)",null,null,{"$f":"IFERROR(VLOOKUP(ROWS($AF$9:AF73),$AE$9:$AF$158,2,0),\"\")","v":"Tucked hold (press off knees)"},null,null,null,{"$f":"IF(ISNUMBER(SEARCH($B$12,AN73)),MAX($AM$8:AM72)+1,0)","v":65},"Tucked hold (press off knees)",null,null,{"$f":"IFERROR(VLOOKUP(ROWS($AN$9:AN73),$AM$9:$AN$158,2,0),\"\")","v":"Tucked hold (press off knees)"},null,null,null,{"$f":"IF(ISNUMBER(SEARCH($B$13,AV73)),MAX($AU$8:AU72)+1,0)","v":65},"Tucked hold (press off knees)",null,null,{"$f":"IFERROR(VLOOKUP(ROWS($AV$9:AV73),$AU$9:$AV$158,2,0),\"\")","v":"Tucked hold (press off knees)"},null,null,null,{"$f":"IF(ISNUMBER(SEARCH($B$14,BD73)),MAX($BC$8:BC72)+1,0)","v":65},"Tucked hold (press off knees)",null,null,{"$f":"IFERROR(VLOOKUP(ROWS($BD$9:BD73),$BC$9:$BD$158,2,0),\"\")","v":"Tucked hold (press off knees)"},null,null,null,{"$f":"IF(ISNUMBER(SEARCH($B$15,BL73)),MAX($BK$8:BK72)+1,0)","v":65},"Tucked hold (press off knees)",null,null,{"$f":"IFERROR(VLOOKUP(ROWS($BL$9:BL73),$BK$9:$BL$158,2,0),\"\")","v":"Tucked hold (press off knees)"},null,null,null,{"$f":"IF(ISNUMBER(SEARCH($B$16,BT73)),MAX($BS$8:BS72)+1,0)","v":65},"Tucked hold (press off knees)",null,null,{"$f":"IFERROR(VLOOKUP(ROWS($BT$9:BT73),$BS$9:$BT$158,2,0),\"\")","v":"Tucked hold (press off knees)"},null,null,null,{"$f":"IF(ISNUMBER(SEARCH($B$17,CB73)),MAX($CA$8:CA72)+1,0)","v":65},"Tucked hold (press off knees)",null,null,{"$f":"IFERROR(VLOOKUP(ROWS($CB$9:CB73),$CA$9:$CB$158,2,0),\"\")","v":"Tucked hold (press off knees)"},null,null,null,{"$f":"IF(ISNUMBER(SEARCH($B$18,CJ73)),MAX($CI$8:CI72)+1,0)","v":65},"Tucked hold (press off knees)",null,null,{"$f":"IFERROR(VLOOKUP(ROWS($CJ$9:CJ73),$CI$9:$CJ$158,2,0),\"\")","v":"Tucked hold (press off knees)"}]
[null,null,null,null,null,null,null,null,null,null,{"$f":"IF(K55=\"Yes\",IF(K61=\"Yes\",IF(K65=\"Yes\",IF(K68=\"Yes\",IF(K71=\"Yes\",\"Yes\",\"No\"),\"No\"),\"No\"),\"No\"),\"No\")","v":"No"},null,null,null,{"$f":"IF(ISNUMBER(SEARCH($B$9,P74)),MAX($O$8:O73)+1,0)","v":66},"1/2 lever held 2 secs (pike / straddle)",null,null,{"$f":"IFERROR(VLOOKUP(ROWS($P$9:P74),$O$9:$P$158,2,0),\"\")","v":"1/2 lever held 2 secs (pike / straddle)"},null,null,null,{"$f":"IF(ISNUMBER(SEARCH($B$10,X74)),MAX($W$8:W73)+1,0)","v":66},"1/2 lever held 2 secs (pike / straddle)",null,null,{"$f":"IFERROR(VLOOKUP(ROWS($X$9:X74),$W$9:$X$158,2,0),\"\")","v":"1/2 lever held 2 secs (pike / straddle)"},null,null,null,{"$f":"IF(ISNUMBER(SEARCH($B$11,AF74)),MAX($AE$8:AE73)+1,0)","v":66},"1/2 lever held 2 secs (pike / straddle)",null,null,{"$f":"IFERROR(VLOOKUP(ROWS($AF$9:AF74),$AE$9:$AF$158,2,0),\"\")","v":"1/2 lever held 2 secs (pike / straddle)"},null,null,null,{"$f":"IF(ISNUMBER(SEARCH($B$12,AN74)),MAX($AM$8:AM73)+1,0)","v":66},"1/2 lever held 2 secs (pike / straddle)",null,null,{"$f":"IFERROR(VLOOKUP(ROWS($AN$9:AN74),$AM$9:$AN$158,2,0),\"\")","v":"1/2 lever held 2 secs (pike / straddle)"},null,null,null,{"$f":"IF(ISNUMBER(SEARCH($B$13,AV74)),MAX($AU$8:AU73)+1,0)","v":66},"1/2 lever held 2 secs (pike / straddle)",null,null,{"$f":"IFERROR(VLOOKUP(ROWS($AV$9:AV74),$AU$9:$AV$158,2,0),\"\")","v":"1/2 lever held 2 secs (pike / straddle)"},null,null,null,{"$f":"IF(ISNUMBER(SEARCH($B$14,BD74)),MAX($BC$8:BC73)+1,0)","v":66},"1/2 lever held 2 secs (pike / straddle)",null,null,{"$f":"IFERROR(VLOOKUP(ROWS($BD$9:BD74),$BC$9:$BD$158,2,0),\"\")","v":"1/2 lever held 2 secs (pike / straddle)"},null,null,null,{"$f":"IF(ISNUMBER(SEARCH($B$15,BL74)),MAX($BK$8:BK73)+1,0)","v":66},"1/2 lever held 2 secs (pike / straddle)",null,null,{"$f":"IFERROR(VLOOKUP(ROWS($BL$9:BL74),$BK$9:$BL$158,2,0),\"\")","v":"1/2 lever held 2 secs (pike / straddle)"},null,null,null,{"$f":"IF(ISNUMBER(SEARCH($B$16,BT74)),MAX($BS$8:BS73)+1,0)","v":66},"1/2 lever held 2 secs (pike / straddle)",null,null,{"$f":"IFERROR(VLOOKUP(ROWS($BT$9:BT74),$BS$9:$BT$158,2,0),\"\")","v":"1/2 lever held 2 secs (pike / straddle)"},null,null,null,{"$f":"IF(ISNUMBER(SEARCH($B$17,CB74)),MAX($CA$8:CA73)+1,0)","v":66},"1/2 lever held 2 secs (pike / straddle)",null,null,{"$f":"IFERROR(VLOOKUP(ROWS($CB$9:CB74),$CA$9:$CB$158,2,0),\"\")","v":"1/2 lever held 2 secs (pike / straddle)"},null,null,null,{"$f":"IF(ISNUMBER(SEARCH($B$18,CJ74)),MAX($CI$8:CI73)+1,0)","v":66},"1/2 lever held 2 secs (pike / straddle)",null,null,{"$f":"IFERROR(VLOOKUP(ROWS($CJ$9:CJ74),$CI$9:$CJ$158,2,0),\"\")","v":"1/2 lever held 2 secs (pike / straddle)"}]
[null,null,null,null,null,null,null,null,null,null,null,null,null,null,{"$f":"IF(ISNUMBER(SEARCH($B$9,P75)),MAX($O$8:O74)+1,0)","v":67},"Straddle stand press to h/stand",null,null,{"$f":"IFERROR(VLOOKUP(ROWS($P$9:P75),$O$9:$P$158,2,0),\"\")","v":"Straddle stand press to h/stand"},null,null,null,{"$f":"IF(ISNUMBER(SEARCH($B$10,X75)),MAX($W$8:W74)+1,0)","v":67},"Straddle stand press to h/stand",null,null,{"$f":"IFERROR(VLOOKUP(ROWS($X$9:X75),$W$9:$X$158,2,0),\"\")","v":"Straddle stand press to h/stand"},null,null,null,{"$f":"IF(ISNUMBER(SEARCH($B$11,AF75)),MAX($AE$8:AE74)+1,0)","v":67},"Straddle stand press to h/stand",null,null,{"$f":"IFERROR(VLOOKUP(ROWS($AF$9:AF75),$AE$9:$AF$158,2,0),\"\")","v":"Straddle stand press to h/stand"},null,null,null,{"$f":"IF(ISNUMBER(SEARCH($B$12,AN75)),MAX($AM$8:AM74)+1,0)","v":67},"Straddle stand press to h/stand",null,null,{"$f":"IFERROR(VLOOKUP(ROWS($AN$9:AN75),$AM$9:$AN$158,2,0),\"\")","v":"Straddle stand press to h/stand"},null,null,null,{"$f":"IF(ISNUMBER(SEARCH($B$13,AV75)),MAX($AU$8:AU74)+1,0)","v":67},"Straddle stand press to h/stand",null,null,{"$f":"IFERROR(VLOOKUP(ROWS($AV$9:AV75),$AU$9:$AV$158,2,0),\"\")","v":"Straddle stand press to h/stand"},null,null,null,{"$f":"IF(ISNUMBER(SEARCH($B$14,BD75)),MAX($BC$8:BC74)+1,0)","v":67},"Straddle stand press to h/stand",null,null,{"$f":"IFERROR(VLOOKUP(ROWS($BD$9:BD75),$BC$9:$BD$158,2,0),\"\")","v":"Straddle stand press to h/stand"},null,null,null,{"$f":"IF(ISNUMBER(SEARCH($B$15,BL75)),MAX($BK$8:BK74)+1,0)","v":67},"Straddle stand press to h/stand",null,null,{"$f":"IFERROR(VLOOKUP(ROWS($BL$9:BL75),$BK$9:$BL$158,2,0),\"\")","v":"Straddle stand press to h/stand"},null,null,null,{"$f":"IF(ISNUMBER(SEARCH($B$16,BT75)),MAX($BS$8:BS74)+1,0)","v":67},"Straddle stand press to h/stand",null,null,{"$f":"IFERROR(VLOOKUP(ROWS($BT$9:BT75),$BS$9:$BT$158,2,0),\"\")","v":"Straddle stand press to h/stand"},null,null,null,{"$f":"IF(ISNUMBER(SEARCH($B$17,CB75)),MAX($CA$8:CA74)+1,0)","v":67},"Straddle stand press to h/stand",null,null,{"$f":"IFERROR(VLOOKUP(ROWS($CB$9:CB75),$CA$9:$CB$158,2,0),\"\")","v":"Straddle stand press to h/stand"},null,null,null,{"$f":"IF(ISNUMBER(SEARCH($B$18,CJ75)),MAX($CI$8:CI74)+1,0)","v":67},"Straddle stand press to h/stand",null,null,{"$f":"IFERROR(VLOOKUP(ROWS($CJ$9:CJ75),$CI$9:$CJ$158,2,0),\"\")","v":"Straddle stand press to h/stand"}]
[null,null,null,null,null,null,null,null,null,null,null,null,null,null,{"$f":"IF(ISNUMBER(SEARCH($B$9,P76)),MAX($O$8:O75)+1,0)","v":68},"Forward roll with straight legs",null,null,{"$f":"IFERROR(VLOOKUP(ROWS($P$9:P76),$O$9:$P$158,2,0),\"\")","v":"Forward roll with straight legs"},null,null,null,{"$f":"IF(ISNUMBER(SEARCH($B$10,X76)),MAX($W$8:W75)+1,0)","v":68},"Forward roll with straight legs",null,null,{"$f":"IFERROR(VLOOKUP(ROWS($X$9:X76),$W$9:$X$158,2,0),\"\")","v":"Forward roll with straight legs"},null,null,null,{"$f":"IF(ISNUMBER(SEARCH($B$11,AF76)),MAX($AE$8:AE75)+1,0)","v":68},"Forward roll with straight legs",null,null,{"$f":"IFERROR(VLOOKUP(ROWS($AF$9:AF76),$AE$9:$AF$158,2,0),\"\")","v":"Forward roll with straight legs"},null,null,null,{"$f":"IF(ISNUMBER(SEARCH($B$12,AN76)),MAX($AM$8:AM75)+1,0)","v":68},"Forward roll with straight legs",null,null,{"$f":"IFERROR(VLOOKUP(ROWS($AN$9:AN76),$AM$9:$AN$158,2,0),\"\")","v":"Forward roll with straight legs"},null,null,null,{"$f":"IF(ISNUMBER(SEARCH($B$13,AV76)),MAX($AU$8:AU75)+1,0)","v":68},"Forward roll with straight legs",null,null,{"$f":"IFERROR(VLOOKUP(ROWS($AV$9:AV76),$AU$9:$AV$158,2,0),\"\")","v":"Forward roll with straight legs"},null,null,null,{"$f":"IF(ISNUMBER(SEARCH($B$14,BD76)),MAX($BC$8:BC75)+1,0)","v":68},"Forward roll with straight legs",null,null,{"$f":"IFERROR(VLOOKUP(ROWS($BD$9:BD76),$BC$9:$BD$158,2,0),\"\")","v":"Forward roll with straight legs"},null,null,null,{"$f":"IF(ISNUMBER(SEARCH($B$15,BL76)),MAX($BK$8:BK75)+1,0)","v":68},"Forward roll with straight legs",null,null,{"$f":"IFERROR(VLOOKUP(ROWS($BL$9:BL76),$BK$9:$BL$158,2,0),\"\")","v":"Forward roll with straight legs"},null,null,null,{"$f":"IF(ISNUMBER(SEARCH($B$16,BT76)),MAX($BS$8:BS75)+1,0)","v":68},"Forward roll with straight legs",null,null,{"$f":"IFERROR(VLOOKUP(ROWS($BT$9:BT76),$BS$9:$BT$158,2,0),\"\")","v":"Forward roll with straight legs"},null,null,null,{"$f":"IF(ISNUMBER(SEARCH($B$17,CB76)),MAX($CA$8:CA75)+1,0)","v":68},"Forward roll with straight legs",null,null,{"$f":"IFERROR(VLOOKUP(ROWS($CB$9:CB76),$CA$9:$CB$158,2,0),\"\")","v":"Forward roll with straight legs"},null,null,null,{"$f":"IF(ISNUMBER(SEARCH($B$18,CJ76)),MAX($CI$8:CI75)+1,0)","v":68},"Forward roll with straight legs",null,null,{"$f":"IFERROR(VLOOKUP(ROWS($CJ$9:CJ76),$CI$9:$CJ$158,2,0),\"\")","v":"Forward roll with straight legs"}]
[null,null,null,null,null,null,null,null,null,null,null,null,null,null,{"$f":"IF(ISNUMBER(SEARCH($B$9,P77)),MAX($O$8:O76)+1,0)","v":69},"H/stand F Roll straight arms",null,null,{"$f":"IFERROR(VLOOKUP(ROWS($P$9:P77),$O$9:$P$158,2,0),\"\")","v":"H/stand F Roll straight arms"},null,null,null,{"$f":"IF(ISNUMBER(SEARCH($B$10,X77)),MAX($W$8:W76)+1,0)","v":69},"H/stand F Roll straight arms",null,null,{"$f":"IFERROR(VLOOKUP(ROWS($X$9:X77),$W$9:$X$158,2,0),\"\")","v":"H/stand F Roll straight arms"},null,null,null,{"$f":"IF(ISNUMBER(SEARCH($B$11,AF77)),MAX($AE$8:AE76)+1,0)","v":69},"H/stand F Roll straight arms",null,null,{"$f":"IFERROR(VLOOKUP(ROWS($AF$9:AF77),$AE$9:$AF$158,2,0),\"\")","v":"H/stand F Roll straight arms"},null,null,null,{"$f":"IF(ISNUMBER(SEARCH($B$12,AN77)),MAX($AM$8:AM76)+1,0)","v":69},"H/stand F Roll straight arms",null,null,{"$f":"IFERROR(VLOOKUP(ROWS($AN$9:AN77),$AM$9:$AN$158,2,0),\"\")","v":"H/stand F Roll straight arms"},null,null,null,{"$f":"IF(ISNUMBER(SEARCH($B$13,AV77)),MAX($AU$8:AU76)+1,0)","v":69},"H/stand F Roll straight arms",null,null,{"$f":"IFERROR(VLOOKUP(ROWS($AV$9:AV77),$AU$9:$AV$158,2,0),\"\")","v":"H/stand F Roll straight arms"},null,null,null,{"$f":"IF(ISNUMBER(SEARCH($B$14,BD77)),MAX($BC$8:BC76)+1,0)","v":69},"H/stand F Roll straight arms",null,null,{"$f":"IFERROR(VLOOKUP(ROWS($BD$9:BD77),$BC$9:$BD$158,2,0),\"\")","v":"H/stand F Roll straight arms"},null,null,null,{"$f":"IF(ISNUMBER(SEARCH($B$15,BL77)),MAX($BK$8:BK76)+1,0)","v":69},"H/stand F Roll straight arms",null,null,{"$f":"IFERROR(VLOOKUP(ROWS($BL$9:BL77),$BK$9:$BL$158,2,0),\"\")","v":"H/stand F Roll straight arms"},null,null,null,{"$f":"IF(ISNUMBER(SEARCH($B$16,BT77)),MAX($BS$8:BS76)+1,0)","v":69},"H/stand F Roll straight arms",null,null,{"$f":"IFERROR(VLOOKUP(ROWS($BT$9:BT77),$BS$9:$BT$158,2,0),\"\")","v":"H/stand F Roll straight arms"},null,null,null,{"$f":"IF(ISNUMBER(SEARCH($B$17,CB77)),MAX($CA$8:CA76)+1,0)","v":69},"H/stand F Roll straight arms",null,null,{"$f":"IFERROR(VLOOKUP(ROWS($CB$9:CB77),$CA$9:$CB$158,2,0),\"\")","v":"H/stand F Roll straight arms"},null,null,null,{"$f":"IF(ISNUMBER(SEARCH($B$18,CJ77)),MAX($CI$8:CI76)+1,0)","v":69},"H/stand F Roll straight arms",null,null,{"$f":"IFERROR(VLOOKUP(ROWS($CJ$9:CJ77),$CI$9:$CJ$158,2,0),\"\")","v":"H/stand F Roll straight arms"}]
[null,null,null,null,null,null,null,null,null,null,null,null,null,null,{"$f":"IF(ISNUMBER(SEARCH($B$9,P78)),MAX($O$8:O77)+1,0)","v":70},"B Roll through h/stand",null,null,{"$f":"IFERROR(VLOOKUP(ROWS($P$9:P78),$O$9:$P$158,2,0),\"\")","v":"B Roll through h/stand"},null,null,null,{"$f":"IF(ISNUMBER(SEARCH($B$10,X78)),MAX($W$8:W77)+1,0)","v":70},"B Roll through h/stand",null,null,{"$f":"IFERROR(VLOOKUP(ROWS($X$9:X78),$W$9:$X$158,2,0),\"\")","v":"B Roll through h/stand"},null,null,null,{"$f":"IF(ISNUMBER(SEARCH($B$11,AF78)),MAX($AE$8:AE77)+1,0)","v":70},"B Roll through h/stand",null,null,{"$f":"IFERROR(VLOOKUP(ROWS($AF$9:AF78),$AE$9:$AF$158,2,0),\"\")","v":"B Roll through h/stand"},null,null,null,{"$f":"IF(ISNUMBER(SEARCH($B$12,AN78)),MAX($AM$8:AM77)+1,0)","v":70},"B Roll through h/stand",null,null,{"$f":"IFERROR(VLOOKUP(ROWS($AN$9:AN78),$AM$9:$AN$158,2,0),\"\")","v":"B Roll through h/stand"},null,null,null,{"$f":"IF(ISNUMBER(SEARCH($B$13,AV78)),MAX($AU$8:AU77)+1,0)","v":70},"B Roll through h/stand",null,null,{"$f":"IFERROR(VLOOKUP(ROWS($AV$9:AV78),$AU$9:$AV$158,2,0),\"\")","v":"B Roll through h/stand"},null,null,null,{"$f":"IF(ISNUMBER(SEARCH($B$14,BD78)),MAX($BC$8:BC77)+1,0)","v":70},"B Roll through h/stand",null,null,{"$f":"IFERROR(VLOOKUP(ROWS($BD$9:BD78),$BC$9:$BD$158,2,0),\"\")","v":"B Roll through h/stand"},null,null,null,{"$f":"IF(ISNUMBER(SEARCH($B$15,BL78)),MAX($BK$8:BK77)+1,0)","v":70},"B Roll through h/stand",null,null,{"$f":"IFERROR(VLOOKUP(ROWS($BL$9:BL78),$BK$9:$BL$158,2,0),\"\")","v":"B Roll through h/stand"},null,null,null,{"$f":"IF(ISNUMBER(SEARCH($B$16,BT78)),MAX($BS$8:BS77)+1,0)","v":70},"B Roll through h/stand",null,null,{"$f":"IFERROR(VLOOKUP(ROWS($BT$9:BT78),$BS$9:$BT$158,2,0),\"\")","v":"B Roll through h/stand"},null,null,null,{"$f":"IF(ISNUMBER(SEARCH($B$17,CB78)),MAX($CA$8:CA77)+1,0)","v":70},"B Roll through h/stand",null,null,{"$f":"IFERROR(VLOOKUP(ROWS($CB$9:CB78),$CA$9:$CB$158,2,0),\"\")","v":"B Roll through h/stand"},null,null,null,{"$f":"IF(ISNUMBER(SEARCH($B$18,CJ78)),MAX($CI$8:CI77)+1,0)","v":70},"B Roll through h/stand",null,null,{"$f":"IFERROR(VLOOKUP(ROWS($CJ$9:CJ78),$CI$9:$CJ$158,2,0),\"\")","v":"B Roll through h/stand"}]
[null,null,null,null,null,null,null,null,null,null,null,null,null,null,{"$f":"IF(ISNUMBER(SEARCH($B$9,P79)),MAX($O$8:O78)+1,0)","v":71},"Handstand full pirouette",null,null,{"$f":"IFERROR(VLOOKUP(ROWS($P$9:P79),$O$9:$P$158,2,0),\"\")","v":"Handstand full pirouette"},null,null,null,{"$f":"IF(ISNUMBER(SEARCH($B$10,X79)),MAX($W$8:W78)+1,0)","v":71},"Handstand full pirouette",null,null,{"$f":"IFERROR(VLOOKUP(ROWS($X$9:X79),$W$9:$X$158,2,0),\"\")","v":"Handstand full pirouette"},null,null,null,{"$f":"IF(ISNUMBER(SEARCH($B$11,AF79)),MAX($AE$8:AE78)+1,0)","v":71},"Handstand full pirouette",null,null,{"$f":"IFERROR(VLOOKUP(ROWS($AF$9:AF79),$AE$9:$AF$158,2,0),\"\")","v":"Handstand full pirouette"},null,null,null,{"$f":"IF(ISNUMBER(SEARCH($B$12,AN79)),MAX($AM$8:AM78)+1,0)","v":71},"Handstand full pirouette",null,null,{"$f":"IFERROR(VLOOKUP(ROWS($AN$9:AN79),$AM$9:$AN$158,2,0),\"\")","v":"Handstand full pirouette"},null,null,null,{"$f":"IF(ISNUMBER(SEARCH($B$13,AV79)),MAX($AU$8:AU78)+1,0)","v":71},"Handstand full pirouette",null,null,{"$f":"IFERROR(VLOOKUP(ROWS($AV$9:AV79),$AU$9:$AV$158,2,0),\"\")","v":"Handstand full pirouette"},null,null,null,{"$f":"IF(ISNUMBER(SEARCH($B$14,BD79)),MAX($BC$8:BC78)+1,0)","v":71},"Handstand full pirouette",null,null,{"$f":"IFERROR(VLOOKUP(ROWS($BD$9:BD79),$BC$9:$BD$158,2,0),\"\")","v":"Handstand full pirouette"},null,null,null,{"$f":"IF(ISNUMBER(SEARCH($B$15,BL79)),MAX($BK$8:BK78)+1,0)","v":71},"Handstand full pirouette",null,null,{"$f":"IFERROR(VLOOKUP(ROWS($BL$9:BL79),$BK$9:$BL$158,2,0),\"\")","v":"Handstand full pirouette"},null,null,null,{"$f":"IF(ISNUMBER(SEARCH($B$16,BT79)),MAX($BS$8:BS78)+1,0)","v":71},"Handstand full pirouette",null,null,{"$f":"IFERROR(VLOOKUP(ROWS($BT$9:BT79),$BS$9:$BT$158,2,0),\"\")","v":"Handstand full pirouette"},null,null,null,{"$f":"IF(ISNUMBER(SEARCH($B$17,CB79)),MAX($CA$8:CA78)+1,0)","v":71},"Handstand full pirouette",null,null,{"$f":"IFERROR(VLOOKUP(ROWS($CB$9:CB79),$CA$9:$CB$158,2,0),\"\")","v":"Handstand full pirouette"},null,null,null,{"$f":"IF(ISNUMBER(SEARCH($B$18,CJ79)),MAX($CI$8:CI78)+1,0)","v":71},"Handstand full pirouette",null,null,{"$f":"IFERROR(VLOOKUP(ROWS($CJ$9:CJ79),$CI$9:$CJ$158,2,0),\"\")","v":"Handstand full pirouette"}]
[null,null,null,null,null,null,null,null,null,null,null,null,null,null,{"$f":"IF(ISNUMBER(SEARCH($B$9,P80)),MAX($O$8:O79)+1,0)","v":72},"Pike Bunny Hop to Handstand - ",null,null,{"$f":"IFERROR(VLOOKUP(ROWS($P$9:P80),$O$9:$P$158,2,0),\"\")","v":"Pike Bunny Hop to Handstand - "},null,null,null,{"$f":"IF(ISNUMBER(SEARCH($B$10,X80)),MAX($W$8:W79)+1,0)","v":72},"Pike Bunny Hop to Handstand - ",null,null,{"$f":"IFERROR(VLOOKUP(ROWS($X$9:X80),$W$9:$X$158,2,0),\"\")","v":"Pike Bunny Hop to Handstand - "},null,null,null,{"$f":"IF(ISNUMBER(SEARCH($B$11,AF80)),MAX($AE$8:AE79)+1,0)","v":72},"Pike Bunny Hop to Handstand - ",null,null,{"$f":"IFERROR(VLOOKUP(ROWS($AF$9:AF80),$AE$9:$AF$158,2,0),\"\")","v":"Pike Bunny Hop to Handstand - "},null,null,null,{"$f":"IF(ISNUMBER(SEARCH($B$12,AN80)),MAX($AM$8:AM79)+1,0)","v":72},"Pike Bunny Hop to Handstand - ",null,null,{"$f":"IFERROR(VLOOKUP(ROWS($AN$9:AN80),$AM$9:$AN$158,2,0),\"\")","v":"Pike Bunny Hop to Handstand - "},null,null,null,{"$f":"IF(ISNUMBER(SEARCH($B$13,AV80)),MAX($AU$8:AU79)+1,0)","v":72},"Pike Bunny Hop to Handstand - ",null,null,{"$f":"IFERROR(VLOOKUP(ROWS($AV$9:AV80),$AU$9:$AV$158,2,0),\"\")","v":"Pike Bunny Hop to Handstand - "},null,null,null,{"$f":"IF(ISNUMBER(SEARCH($B$14,BD80)),MAX($BC$8:BC79)+1,0)","v":72},"Pike Bunny Hop to Handstand - ",null,null,{"$f":"IFERROR(VLOOKUP(ROWS($BD$9:BD80),$BC$9:$BD$158,2,0),\"\")","v":"Pike Bunny Hop to Handstand - "},null,null,null,{"$f":"IF(ISNUMBER(SEARCH($B$15,BL80)),MAX($BK$8:BK79)+1,0)","v":72},"Pike Bunny Hop to Handstand - ",null,null,{"$f":"IFERROR(VLOOKUP(ROWS($BL$9:BL80),$BK$9:$BL$158,2,0),\"\")","v":"Pike Bunny Hop to Handstand - "},null,null,null,{"$f":"IF(ISNUMBER(SEARCH($B$16,BT80)),MAX($BS$8:BS79)+1,0)","v":72},"Pike Bunny Hop to Handstand - ",null,null,{"$f":"IFERROR(VLOOKUP(ROWS($BT$9:BT80),$BS$9:$BT$158,2,0),\"\")","v":"Pike Bunny Hop to Handstand - "},null,null,null,{"$f":"IF(ISNUMBER(SEARCH($B$17,CB80)),MAX($CA$8:CA79)+1,0)","v":72},"Pike Bunny Hop to Handstand - ",null,null,{"$f":"IFERROR(VLOOKUP(ROWS($CB$9:CB80),$CA$9:$CB$158,2,0),\"\")","v":"Pike Bunny Hop to Handstand - "},null,null,null,{"$f":"IF(ISNUMBER(SEARCH($B$18,CJ80)),MAX($CI$8:CI79)+1,0)","v":72},"Pike Bunny Hop to Handstand - ",null,null,{"$f":"IFERROR(VLOOKUP(ROWS($CJ$9:CJ80),$CI$9:$CJ$158,2,0),\"\")","v":"Pike Bunny Hop to Handstand - "}]
[null,null,null,null,null,null,null,null,null,null,null,null,null,null,{"$f":"IF(ISNUMBER(SEARCH($B$9,P81)),MAX($O$8:O80)+1,0)","v":73},"Half Double Leg Circle",null,null,{"$f":"IFERROR(VLOOKUP(ROWS($P$9:P81),$O$9:$P$158,2,0),\"\")","v":"Half Double Leg Circle"},null,null,null,{"$f":"IF(ISNUMBER(SEARCH($B$10,X81)),MAX($W$8:W80)+1,0)","v":73},"Half Double Leg Circle",null,null,{"$f":"IFERROR(VLOOKUP(ROWS($X$9:X81),$W$9:$X$158,2,0),\"\")","v":"Half Double Leg Circle"},null,null,null,{"$f":"IF(ISNUMBER(SEARCH($B$11,AF81)),MAX($AE$8:AE80)+1,0)","v":73},"Half Double Leg Circle",null,null,{"$f":"IFERROR(VLOOKUP(ROWS($AF$9:AF81),$AE$9:$AF$158,2,0),\"\")","v":"Half Double Leg Circle"},null,null,null,{"$f":"IF(ISNUMBER(SEARCH($B$12,AN81)),MAX($AM$8:AM80)+1,0)","v":73},"Half Double Leg Circle",null,null,{"$f":"IFERROR(VLOOKUP(ROWS($AN$9:AN81),$AM$9:$AN$158,2,0),\"\")","v":"Half Double Leg Circle"},null,null,null,{"$f":"IF(ISNUMBER(SEARCH($B$13,AV81)),MAX($AU$8:AU80)+1,0)","v":73},"Half Double Leg Circle",null,null,{"$f":"IFERROR(VLOOKUP(ROWS($AV$9:AV81),$AU$9:$AV$158,2,0),\"\")","v":"Half Double Leg Circle"},null,null,null,{"$f":"IF(ISNUMBER(SEARCH($B$14,BD81)),MAX($BC$8:BC80)+1,0)","v":73},"Half Double Leg Circle",null,null,{"$f":"IFERROR(VLOOKUP(ROWS($BD$9:BD81),$BC$9:$BD$158,2,0),\"\")","v":"Half Double Leg Circle"},null,null,null,{"$f":"IF(ISNUMBER(SEARCH($B$15,BL81)),MAX($BK$8:BK80)+1,0)","v":73},"Half Double Leg Circle",null,null,{"$f":"IFERROR(VLOOKUP(ROWS($BL$9:BL81),$BK$9:$BL$158,2,0),\"\")","v":"Half Double Leg Circle"},null,null,null,{"$f":"IF(ISNUMBER(SEARCH($B$16,BT81)),MAX($BS$8:BS80)+1,0)","v":73},"Half Double Leg Circle",null,null,{"$f":"IFERROR(VLOOKUP(ROWS($BT$9:BT81),$BS$9:$BT$158,2,0),\"\")","v":"Half Double Leg Circle"},null,null,null,{"$f":"IF(ISNUMBER(SEARCH($B$17,CB81)),MAX($CA$8:CA80)+1,0)","v":73},"Half Double Leg Circle",null,null,{"$f":"IFERROR(VLOOKUP(ROWS($CB$9:CB81),$CA$9:$CB$158,2,0),\"\")","v":"Half Double Leg Circle"},null,null,null,{"$f":"IF(ISNUMBER(SEARCH($B$18,CJ81)),MAX($CI$8:CI80)+1,0)","v":73},"Half Double Leg Circle",null,null,{"$f":"IFERROR(VLOOKUP(ROWS($CJ$9:CJ81),$CI$9:$CJ$158,2,0),\"\")","v":"Half Double Leg Circle"}]
[null,null,null,null,null,null,null,null,null,null,null,null,null,null,{"$f":"IF(ISNUMBER(SEARCH($B$9,P82)),MAX($O$8:O81)+1,0)","v":74},"Forward walkover",null,null,{"$f":"IFERROR(VLOOKUP(ROWS($P$9:P82),$O$9:$P$158,2,0),\"\")","v":"Forward walkover"},null,null,null,{"$f":"IF(ISNUMBER(SEARCH($B$10,X82)),MAX($W$8:W81)+1,0)","v":74},"Forward walkover",null,null,{"$f":"IFERROR(VLOOKUP(ROWS($X$9:X82),$W$9:$X$158,2,0),\"\")","v":"Forward walkover"},null,null,null,{"$f":"IF(ISNUMBER(SEARCH($B$11,AF82)),MAX($AE$8:AE81)+1,0)","v":74},"Forward walkover",null,null,{"$f":"IFERROR(VLOOKUP(ROWS($AF$9:AF82),$AE$9:$AF$158,2,0),\"\")","v":"Forward walkover"},null,null,null,{"$f":"IF(ISNUMBER(SEARCH($B$12,AN82)),MAX($AM$8:AM81)+1,0)","v":74},"Forward walkover",null,null,{"$f":"IFERROR(VLOOKUP(ROWS($AN$9:AN82),$AM$9:$AN$158,2,0),\"\")","v":"Forward walkover"},null,null,null,{"$f":"IF(ISNUMBER(SEARCH($B$13,AV82)),MAX($AU$8:AU81)+1,0)","v":74},"Forward walkover",null,null,{"$f":"IFERROR(VLOOKUP(ROWS($AV$9:AV82),$AU$9:$AV$158,2,0),\"\")","v":"Forward walkover"},null,null,null,{"$f":"IF(ISNUMBER(SEARCH($B$14,BD82)),MAX($BC$8:BC81)+1,0)","v":74},"Forward walkover",null,null,{"$f":"IFERROR(VLOOKUP(ROWS($BD$9:BD82),$BC$9:$BD$158,2,0),\"\")","v":"Forward walkover"},null,null,null,{"$f":"IF(ISNUMBER(SEARCH($B$15,BL82)),MAX($BK$8:BK81)+1,0)","v":74},"Forward walkover",null,null,{"$f":"IFERROR(VLOOKUP(ROWS($BL$9:BL82),$BK$9:$BL$158,2,0),\"\")","v":"Forward walkover"},null,null,null,{"$f":"IF(ISNUMBER(SEARCH($B$16,BT82)),MAX($BS$8:BS81)+1,0)","v":74},"Forward walkover",null,null,{"$f":"IFERROR(VLOOKUP(ROWS($BT$9:BT82),$BS$9:$BT$158,2,0),\"\")","v":"Forward walkover"},null,null,null,{"$f":"IF(ISNUMBER(SEARCH($B$17,CB82)),MAX($CA$8:CA81)+1,0)","v":74},"Forward walkover",null,null,{"$f":"IFERROR(VLOOKUP(ROWS($CB$9:CB82),$CA$9:$CB$158,2,0),\"\")","v":"Forward walkover"},null,null,null,{"$f":"IF(ISNUMBER(SEARCH($B$18,CJ82)),MAX($CI$8:CI81)+1,0)","v":74},"Forward walkover",null,null,{"$f":"IFERROR(VLOOKUP(ROWS($CJ$9:CJ82),$CI$9:$CJ$158,2,0),\"\")","v":"Forward walkover"}]
[null,null,null,null,null,null,null,null,null,null,null,null,null,null,{"$f":"IF(ISNUMBER(SEARCH($B$9,P83)),MAX($O$8:O82)+1,0)","v":75},"Bunny Hop / Jump - (Long)",null,null,{"$f":"IFERROR(VLOOKUP(ROWS($P$9:P83),$O$9:$P$158,2,0),\"\")","v":"Bunny Hop / Jump - (Long)"},null,null,null,{"$f":"IF(ISNUMBER(SEARCH($B$10,X83)),MAX($W$8:W82)+1,0)","v":75},"Bunny Hop / Jump - (Long)",null,null,{"$f":"IFERROR(VLOOKUP(ROWS($X$9:X83),$W$9:$X$158,2,0),\"\")","v":"Bunny Hop / Jump - (Long)"},null,null,null,{"$f":"IF(ISNUMBER(SEARCH($B$11,AF83)),MAX($AE$8:AE82)+1,0)","v":75},"Bunny Hop / Jump - (Long)",null,null,{"$f":"IFERROR(VLOOKUP(ROWS($AF$9:AF83),$AE$9:$AF$158,2,0),\"\")","v":"Bunny Hop / Jump - (Long)"},null,null,null,{"$f":"IF(ISNUMBER(SEARCH($B$12,AN83)),MAX($AM$8:AM82)+1,0)","v":75},"Bunny Hop / Jump - (Long)",null,null,{"$f":"IFERROR(VLOOKUP(ROWS($AN$9:AN83),$AM$9:$AN$158,2,0),\"\")","v":"Bunny Hop / Jump - (Long)"},null,null,null,{"$f":"IF(ISNUMBER(SEARCH($B$13,AV83)),MAX($AU$8:AU82)+1,0)","v":75},"Bunny Hop / Jump - (Long)",null,null,{"$f":"IFERROR(VLOOKUP(ROWS($AV$9:AV83),$AU$9:$AV$158,2,0),\"\")","v":"Bunny Hop / Jump - (Long)"},null,null,null,{"$f":"IF(ISNUMBER(SEARCH($B$14,BD83)),MAX($BC$8:BC82)+1,0)","v":75},"Bunny Hop / Jump - (Long)",null,null,{"$f":"IFERROR(VLOOKUP(ROWS($BD$9:BD83),$BC$9:$BD$158,2,0),\"\")","v":"Bunny Hop / Jump - (Long)"},null,null,null,{"$f":"IF(ISNUMBER(SEARCH($B$15,BL83)),MAX($BK$8:BK82)+1,0)","v":75},"Bunny Hop / Jump - (Long)",null,null,{"$f":"IFERROR(VLOOKUP(ROWS($BL$9:BL83),$BK$9:$BL$158,2,0),\"\")","v":"Bunny Hop / Jump - (Long)"},null,null,null,{"$f":"IF(ISNUMBER(SEARCH($B$16,BT83)),MAX($BS$8:BS82)+1,0)","v":75},"Bunny Hop / Jump - (Long)",null,null,{"$f":"IFERROR(VLOOKUP(ROWS($BT$9:BT83),$BS$9:$BT$158,2,0),\"\")","v":"Bunny Hop / Jump - (Long)"},null,null,null,{"$f":"IF(ISNUMBER(SEARCH($B$17,CB83)),MAX($CA$8:CA82)+1,0)","v":75},"Bunny Hop / Jump - (Long)",null,null,{"$f":"IFERROR(VLOOKUP(ROWS($CB$9:CB83),$CA$9:$CB$158,2,0),\"\")","v":"Bunny Hop / Jump - (Long)"},null,null,null,{"$f":"IF(ISNUMBER(SEARCH($B$18,CJ83)),MAX($CI$8:CI82)+1,0)","v":75},"Bunny Hop / Jump - (Long)",null,null,{"$f":"IFERROR(VLOOKUP(ROWS($CJ$9:CJ83),$CI$9:$CJ$158,2,0),\"\")","v":"Bunny Hop / Jump - (Long)"}]
[null,null,null,null,null,null,null,null,null,null,null,null,null,null,{"$f":"IF(ISNUMBER(SEARCH($B$9,P84)),MAX($O$8:O83)+1,0)","v":76},"Bunny Hop / Jump - (High)",null,null,{"$f":"IFERROR(VLOOKUP(ROWS($P$9:P84),$O$9:$P$158,2,0),\"\")","v":"Bunny Hop / Jump - (High)"},null,null,null,{"$f":"IF(ISNUMBER(SEARCH($B$10,X84)),MAX($W$8:W83)+1,0)","v":76},"Bunny Hop / Jump - (High)",null,null,{"$f":"IFERROR(VLOOKUP(ROWS($X$9:X84),$W$9:$X$158,2,0),\"\")","v":"Bunny Hop / Jump - (High)"},null,null,null,{"$f":"IF(ISNUMBER(SEARCH($B$11,AF84)),MAX($AE$8:AE83)+1,0)","v":76},"Bunny Hop / Jump - (High)",null,null,{"$f":"IFERROR(VLOOKUP(ROWS($AF$9:AF84),$AE$9:$AF$158,2,0),\"\")","v":"Bunny Hop / Jump - (High)"},null,null,null,{"$f":"IF(ISNUMBER(SEARCH($B$12,AN84)),MAX($AM$8:AM83)+1,0)","v":76},"Bunny Hop / Jump - (High)",null,null,{"$f":"IFERROR(VLOOKUP(ROWS($AN$9:AN84),$AM$9:$AN$158,2,0),\"\")","v":"Bunny Hop / Jump - (High)"},null,null,null,{"$f":"IF(ISNUMBER(SEARCH($B$13,AV84)),MAX($AU$8:AU83)+1,0)","v":76},"Bunny Hop / Jump - (High)",null,null,{"$f":"IFERROR(VLOOKUP(ROWS($AV$9:AV84),$AU$9:$AV$158,2,0),\"\")","v":"Bunny Hop / Jump - (High)"},null,null,null,{"$f":"IF(ISNUMBER(SEARCH($B$14,BD84)),MAX($BC$8:BC83)+1,0)","v":76},"Bunny Hop / Jump - (High)",null,null,{"$f":"IFERROR(VLOOKUP(ROWS($BD$9:BD84),$BC$9:$BD$158,2,0),\"\")","v":"Bunny Hop / Jump - (High)"},null,null,null,{"$f":"IF(ISNUMBER(SEARCH($B$15,BL84)),MAX($BK$8:BK83)+1,0)","v":76},"Bunny Hop / Jump - (High)",null,null,{"$f":"IFERROR(VLOOKUP(ROWS($BL$9:BL84),$BK$9:$BL$158,2,0),\"\")","v":"Bunny Hop / Jump - (High)"},null,null,null,{"$f":"IF(ISNUMBER(SEARCH($B$16,BT84)),MAX($BS$8:BS83)+1,0)","v":76},"Bunny Hop / Jump - (High)",null,null,{"$f":"IFERROR(VLOOKUP(ROWS($BT$9:BT84),$BS$9:$BT$158,2,0),\"\")","v":"Bunny Hop / Jump - (High)"},null,null,null,{"$f":"IF(ISNUMBER(SEARCH($B$17,CB84)),MAX($CA$8:CA83)+1,0)","v":76},"Bunny Hop / Jump - (High)",null,null,{"$f":"IFERROR(VLOOKUP(ROWS($CB$9:CB84),$CA$9:$CB$158,2,0),\"\")","v":"Bunny Hop / Jump - (High)"},null,null,null,{"$f":"IF(ISNUMBER(SEARCH($B$18,CJ84)),MAX($CI$8:CI83)+1,0)","v":76},"Bunny Hop / Jump - (High)",null,null,{"$f":"IFERROR(VLOOKUP(ROWS($CJ$9:CJ84),$CI$9:$CJ$158,2,0),\"\")","v":"Bunny Hop / Jump - (High)"}]
[]
[]
[]
[]
[]
[]
[]
[]
[]
[]
[]
[]
[]
[]
[]
[]
[]
[]
[]
[]
[]
[]
[]
[]
[]
[]
[]
[]
[]
[]
[]
[]
[]
[]
[]
[]
[]
[]
[]
[]
[]
[]
[null,null,null,null,null,null,null,null,null,null,null,null,null,null,null,null,null,null,null,null,null,null,null,null,null,null,null,null,null,null,null,null,null,null,null,null,null,null,null,null,null,null,null,null,null,null,null,null,null,null,null,null,null,null,null,null,null,null,null,null,null,null,null,null,null,null,null,null,null,null,null,null,null,null,null,null,null,null,null,null,null,null,null,null,null,null,null,null,null,null,{"$f":"IFERROR(VLOOKUP(ROWS($CJ$9:CJ127),$CI$9:$CJ$158,2,0),\"\")","v":""}]
[null,null,null,null,null,null,null,null,null,null,null,null,null,null,null,null,null,null,null,null,null,null,null,null,null,null,null,null,null,null,null,null,null,null,null,null,null,null,null,null,null,null,null,null,null,null,null,null,null,null,null,null,null,null,null,null,null,null,null,null,null,null,null,null,null,null,null,null,null,null,null,null,null,null,null,null,null,null,null,null,null,null,null,null,null,null,null,null,null,null,{"$f":"IFERROR(VLOOKUP(ROWS($CJ$9:CJ128),$CI$9:$CJ$158,2,0),\"\")","v":""}]
[null,null,null,null,null,null,null,null,null,null,null,null,null,null,null,null,null,null,null,null,null,null,null,null,null,null,null,null,null,null,null,null,null,null,null,null,null,null,null,null,null,null,null,null,null,null,null,null,null,null,null,null,null,null,null,null,null,null,null,null,null,null,null,null,null,null,null,null,null,null,null,null,null,null,null,null,null,null,null,null,null,null,null,null,null,null,null,null,null,null,{"$f":"IFERROR(VLOOKUP(ROWS($CJ$9:CJ129),$CI$9:$CJ$158,2,0),\"\")","v":""}]
[null,null,null,null,null,null,null,null,null,null,null,null,null,null,null,null,null,null,null,null,null,null,null,null,null,null,null,null,null,null,null,null,null,null,null,null,null,null,null,null,null,null,null,null,null,null,null,null,null,null,null,null,null,null,null,null,null,null,null,null,null,null,null,null,null,null,null,null,null,null,null,null,null,null,null,null,null,null,null,null,null,null,null,null,null,null,null,null,null,null,{"$f":"IFERROR(VLOOKUP(ROWS($CJ$9:CJ130),$CI$9:$CJ$158,2,0),\"\")","v":""}]
[null,null,null,null,null,null,null,null,null,null,null,null,null,null,null,null,null,null,null,null,null,null,null,null,null,null,null,null,null,null,null,null,null,null,null,null,null,null,null,null,null,null,null,null,null,null,null,null,null,null,null,null,null,null,null,null,null,null,null,null,null,null,null,null,null,null,null,null,null,null,null,null,null,null,null,null,null,null,null,null,null,null,null,null,null,null,null,null,null,null,{"$f":"IFERROR(VLOOKUP(ROWS($CJ$9:CJ131),$CI$9:$CJ$158,2,0),\"\")","v":""}]
[null,null,null,null,null,null,null,null,null,null,null,null,null,null,null,null,null,null,null,null,null,null,null,null,null,null,null,null,null,null,null,null,null,null,null,null,null,null,null,null,null,null,null,null,null,null,null,null,null,null,null,null,null,null,null,null,null,null,null,null,null,null,null,null,null,null,null,null,null,null,null,null,null,null,null,null,null,null,null,null,null,null,null,null,null,null,null,null,null,null,{"$f":"IFERROR(VLOOKUP(ROWS($CJ$9:CJ132),$CI$9:$CJ$158,2,0),\"\")","v":""}]
[null,null,null,null,null,null,null,null,null,null,null,null,null,null,null,null,null,null,null,null,null,null,null,null,null,null,null,null,null,null,null,null,null,null,null,null,null,null,null,null,null,null,null,null,null,null,null,null,null,null,null,null,null,null,null,null,null,null,null,null,null,null,null,null,null,null,null,null,null,null,null,null,null,null,null,null,null,null,null,null,null,null,null,null,null,null,null,null,null,null,{"$f":"IFERROR(VLOOKUP(ROWS($CJ$9:CJ133),$CI$9:$CJ$158,2,0),\"\")","v":""}]
[null,null,null,null,null,null,null,null,null,null,null,null,null,null,null,null,null,null,null,null,null,null,null,null,null,null,null,null,null,null,null,null,null,null,null,null,null,null,null,null,null,null,null,null,null,null,null,null,null,null,null,null,null,null,null,null,null,null,null,null,null,null,null,null,null,null,null,null,null,null,null,null,null,null,null,null,null,null,null,null,null,null,null,null,null,null,null,null,null,null,{"$f":"IFERROR(VLOOKUP(ROWS($CJ$9:CJ134),$CI$9:$CJ$158,2,0),\"\")","v":""}]
[null,null,null,null,null,null,null,null,null,null,null,null,null,null,null,null,null,null,null,null,null,null,null,null,null,null,null,null,null,null,null,null,null,null,null,null,null,null,null,null,null,null,null,null,null,null,null,null,null,null,null,null,null,null,null,null,null,null,null,null,null,null,null,null,null,null,null,null,null,null,null,null,null,null,null,null,null,null,null,null,null,null,null,null,null,null,null,null,null,null,{"$f":"IFERROR(VLOOKUP(ROWS($CJ$9:CJ135),$CI$9:$CJ$158,2,0),\"\")","v":""}]
[null,null,null,null,null,null,null,null,null,null,null,null,null,null,null,null,null,null,null,null,null,null,null,null,null,null,null,null,null,null,null,null,null,null,null,null,null,null,null,null,null,null,null,null,null,null,null,null,null,null,null,null,null,null,null,null,null,null,null,null,null,null,null,null,null,null,null,null,null,null,null,null,null,null,null,null,null,null,null,null,null,null,null,null,null,null,null,null,null,null,{"$f":"IFERROR(VLOOKUP(ROWS($CJ$9:CJ136),$CI$9:$CJ$158,2,0),\"\")","v":""}]
[null,null,null,null,null,null,null,null,null,null,null,null,null,null,null,null,null,null,null,null,null,null,null,null,null,null,null,null,null,null,null,null,null,null,null,null,null,null,null,null,null,null,null,null,null,null,null,null,null,null,null,null,null,null,null,null,null,null,null,null,null,null,null,null,null,null,null,null,null,null,null,null,null,null,null,null,null,null,null,null,null,null,null,null,null,null,null,null,null,null,{"$f":"IFERROR(VLOOKUP(ROWS($CJ$9:CJ137),$CI$9:$CJ$158,2,0),\"\")","v":""}]
[null,null,null,null,null,null,null,null,null,null,null,null,null,null,null,null,null,null,null,null,null,null,null,null,null,null,null,null,null,null,null,null,null,null,null,null,null,null,null,null,null,null,null,null,null,null,null,null,null,null,null,null,null,null,null,null,null,null,null,null,null,null,null,null,null,null,null,null,null,null,null,null,null,null,null,null,null,null,null,null,null,null,null,null,null,null,null,null,null,null,{"$f":"IFERROR(VLOOKUP(ROWS($CJ$9:CJ138),$CI$9:$CJ$158,2,0),\"\")","v":""}]
[null,null,null,null,null,null,null,null,null,null,null,null,null,null,null,null,null,null,null,null,null,null,null,null,null,null,null,null,null,null,null,null,null,null,null,null,null,null,null,null,null,null,null,null,null,null,null,null,null,null,null,null,null,null,null,null,null,null,null,null,null,null,null,null,null,null,null,null,null,null,null,null,null,null,null,null,null,null,null,null,null,null,null,null,null,null,null,null,null,null,{"$f":"IFERROR(VLOOKUP(ROWS($CJ$9:CJ139),$CI$9:$CJ$158,2,0),\"\")","v":""}]
[null,null,null,null,null,null,null,null,null,null,null,null,null,null,null,null,null,null,null,null,null,null,null,null,null,null,null,null,null,null,null,null,null,null,null,null,null,null,null,null,null,null,null,null,null,null,null,null,null,null,null,null,null,null,null,null,null,null,null,null,null,null,null,null,null,null,null,null,null,null,null,null,null,null,null,null,null,null,null,null,null,null,null,null,null,null,null,null,null,null,{"$f":"IFERROR(VLOOKUP(ROWS($CJ$9:CJ140),$CI$9:$CJ$158,2,0),\"\")","v":""}]
[null,null,null,null,null,null,null,null,null,null,null,null,null,null,null,null,null,null,null,null,null,null,null,null,null,null,null,null,null,null,null,null,null,null,null,null,null,null,null,null,null,null,null,null,null,null,null,null,null,null,null,null,null,null,null,null,null,null,null,null,null,null,null,null,null,null,null,null,null,null,null,null,null,null,null,null,null,null,null,null,null,null,null,null,null,null,null,null,null,null,{"$f":"IFERROR(VLOOKUP(ROWS($CJ$9:CJ141),$CI$9:$CJ$158,2,0),\"\")","v":""}]
[null,null,null,null,null,null,null,null,null,null,null,null,null,null,null,null,null,null,null,null,null,null,null,null,null,null,null,null,null,null,null,null,null,null,null,null,null,null,null,null,null,null,null,null,null,null,null,null,null,null,null,null,null,null,null,null,null,null,null,null,null,null,null,null,null,null,null,null,null,null,null,null,null,null,null,null,null,null,null,null,null,null,null,null,null,null,null,null,null,null,{"$f":"IFERROR(VLOOKUP(ROWS($CJ$9:CJ142),$CI$9:$CJ$158,2,0),\"\")","v":""}]
[null,null,null,null,null,null,null,null,null,null,null,null,null,null,null,null,null,null,null,null,null,null,null,null,null,null,null,null,null,null,null,null,null,null,null,null,null,null,null,null,null,null,null,null,null,null,null,null,null,null,null,null,null,null,null,null,null,null,null,null,null,null,null,null,null,null,null,null,null,null,null,null,null,null,null,null,null,null,null,null,null,null,null,null,null,null,null,null,null,null,{"$f":"IFERROR(VLOOKUP(ROWS($CJ$9:CJ143),$CI$9:$CJ$158,2,0),\"\")","v":""}]
[null,null,null,null,null,null,null,null,null,null,null,null,null,null,null,null,null,null,null,null,null,null,null,null,null,null,null,null,null,null,null,null,null,null,null,null,null,null,null,null,null,null,null,null,null,null,null,null,null,null,null,null,null,null,null,null,null,null,null,null,null,null,null,null,null,null,null,null,null,null,null,null,null,null,null,null,null,null,null,null,null,null,null,null,null,null,null,null,null,null,{"$f":"IFERROR(VLOOKUP(ROWS($CJ$9:CJ144),$CI$9:$CJ$158,2,0),\"\")","v":""}]
[null,null,null,null,null,null,null,null,null,null,null,null,null,null,null,null,null,null,null,null,null,null,null,null,null,null,null,null,null,null,null,null,null,null,null,null,null,null,null,null,null,null,null,null,null,null,null,null,null,null,null,null,null,null,null,null,null,null,null,null,null,null,null,null,null,null,null,null,null,null,null,null,null,null,null,null,null,null,null,null,null,null,null,null,null,null,null,null,null,null,{"$f":"IFERROR(VLOOKUP(ROWS($CJ$9:CJ145),$CI$9:$CJ$158,2,0),\"\")","v":""}]
[null,null,null,null,null,null,null,null,null,null,null,null,null,null,null,null,null,null,null,null,null,null,null,null,null,null,null,null,null,null,null,null,null,null,null,null,null,null,null,null,null,null,null,null,null,null,null,null,null,null,null,null,null,null,null,null,null,null,null,null,null,null,null,null,null,null,null,null,null,null,null,null,null,null,null,null,null,null,null,null,null,null,null,null,null,null,null,null,null,null,{"$f":"IFERROR(VLOOKUP(ROWS($CJ$9:CJ146),$CI$9:$CJ$158,2,0),\"\")","v":""}]
[null,null,null,null,null,null,null,null,null,null,null,null,null,null,null,null,null,null,null,null,null,null,null,null,null,null,null,null,null,null,null,null,null,null,null,null,null,null,null,null,null,null,null,null,null,null,null,null,null,null,null,null,null,null,null,null,null,null,null,null,null,null,null,null,null,null,null,null,null,null,null,null,null,null,null,null,null,null,null,null,null,null,null,null,null,null,null,null,null,null,{"$f":"IFERROR(VLOOKUP(ROWS($CJ$9:CJ147),$CI$9:$CJ$158,2,0),\"\")","v":""}]
[null,null,null,null,null,null,null,null,null,null,null,null,null,null,null,null,null,null,null,null,null,null,null,null,null,null,null,null,null,null,null,null,null,null,null,null,null,null,null,null,null,null,null,null,null,null,null,null,null,null,null,null,null,null,null,null,null,null,null,null,null,null,null,null,null,null,null,null,null,null,null,null,null,null,null,null,null,null,null,null,null,null,null,null,null,null,null,null,null,null,{"$f":"IFERROR(VLOOKUP(ROWS($CJ$9:CJ148),$CI$9:$CJ$158,2,0),\"\")","v":""}]
[null,null,null,null,null,null,null,null,null,null,null,null,null,null,null,null,null,null,null,null,null,null,null,null,null,null,null,null,null,null,null,null,null,null,null,null,null,null,null,null,null,null,null,null,null,null,null,null,null,null,null,null,null,null,null,null,null,null,null,null,null,null,null,null,null,null,null,null,null,null,null,null,null,null,null,null,null,null,null,null,null,null,null,null,null,null,null,null,null,null,{"$f":"IFERROR(VLOOKUP(ROWS($CJ$9:CJ149),$CI$9:$CJ$158,2,0),\"\")","v":""}]
[null,null,null,null,null,null,null,null,null,null,null,null,null,null,null,null,null,null,null,null,null,null,null,null,null,null,null,null,null,null,null,null,null,null,null,null,null,null,null,null,null,null,null,null,null,null,null,null,null,null,null,null,null,null,null,null,null,null,null,null,null,null,null,null,null,null,null,null,null,null,null,null,null,null,null,null,null,null,null,null,null,null,null,null,null,null,null,null,null,null,{"$f":"IFERROR(VLOOKUP(ROWS($CJ$9:CJ150),$CI$9:$CJ$158,2,0),\"\")","v":""}]
[null,null,null,null,null,null,null,null,null,null,null,null,null,null,null,null,null,null,null,null,null,null,null,null,null,null,null,null,null,null,null,null,null,null,null,null,null,null,null,null,null,null,null,null,null,null,null,null,null,null,null,null,null,null,null,null,null,null,null,null,null,null,null,null,null,null,null,null,null,null,null,null,null,null,null,null,null,null,null,null,null,null,null,null,null,null,null,null,null,null,{"$f":"IFERROR(VLOOKUP(ROWS($CJ$9:CJ151),$CI$9:$CJ$158,2,0),\"\")","v":""}]
[null,null,null,null,null,null,null,null,null,null,null,null,null,null,null,null,null,null,null,null,null,null,null,null,null,null,null,null,null,null,null,null,null,null,null,null,null,null,null,null,null,null,null,null,null,null,null,null,null,null,null,null,null,null,null,null,null,null,null,null,null,null,null,null,null,null,null,null,null,null,null,null,null,null,null,null,null,null,null,null,null,null,null,null,null,null,null,null,null,null,{"$f":"IFERROR(VLOOKUP(ROWS($CJ$9:CJ152),$CI$9:$CJ$158,2,0),\"\")","v":""}]
[null,null,null,null,null,null,null,null,null,null,null,null,null,null,null,null,null,null,null,null,null,null,null,null,null,null,null,null,null,null,null,null,null,null,null,null,null,null,null,null,null,null,null,null,null,null,null,null,null,null,null,null,null,null,null,null,null,null,null,null,null,null,null,null,null,null,null,null,null,null,null,null,null,null,null,null,null,null,null,null,null,null,null,null,null,null,null,null,null,null,{"$f":"IFERROR(VLOOKUP(ROWS($CJ$9:CJ153),$CI$9:$CJ$158,2,0),\"\")","v":""}]
[null,null,null,null,null,null,null,null,null,null,null,null,null,null,null,null,null,null,null,null,null,null,null,null,null,null,null,null,null,null,null,null,null,null,null,null,null,null,null,null,null,null,null,null,null,null,null,null,null,null,null,null,null,null,null,null,null,null,null,null,null,null,null,null,null,null,null,null,null,null,null,null,null,null,null,null,null,null,null,null,null,null,null,null,null,null,null,null,null,null,{"$f":"IFERROR(VLOOKUP(ROWS($CJ$9:CJ154),$CI$9:$CJ$158,2,0),\"\")","v":""}]
[null,null,null,null,null,null,null,null,null,null,null,null,null,null,null,null,null,null,null,null,null,null,null,null,null,null,null,null,null,null,null,null,null,null,null,null,null,null,null,null,null,null,null,null,null,null,null,null,null,null,null,null,null,null,null,null,null,null,null,null,null,null,null,null,null,null,null,null,null,null,null,null,null,null,null,null,null,null,null,null,null,null,null,null,null,null,null,null,null,null,{"$f":"IFERROR(VLOOKUP(ROWS($CJ$9:CJ155),$CI$9:$CJ$158,2,0),\"\")","v":""}]
[null,null,null,null,null,null,null,null,null,null,null,null,null,null,null,null,null,null,null,null,null,null,null,null,null,null,null,null,null,null,null,null,null,null,null,null,null,null,null,null,null,null,null,null,null,null,null,null,null,null,null,null,null,null,null,null,null,null,null,null,null,null,null,null,null,null,null,null,null,null,null,null,null,null,null,null,null,null,null,null,null,null,null,null,null,null,null,null,null,null,{"$f":"IFERROR(VLOOKUP(ROWS($CJ$9:CJ156),$CI$9:$CJ$158,2,0),\"\")","v":""}]
[null,null,null,null,null,null,null,null,null,null,null,null,null,null,null,null,null,null,null,null,null,null,null,null,null,null,null,null,null,null,null,null,null,null,null,null,null,null,null,null,null,null,null,null,null,null,null,null,null,null,null,null,null,null,null,null,null,null,null,null,null,null,null,null,null,null,null,null,null,null,null,null,null,null,null,null,null,null,null,null,null,null,null,null,null,null,null,null,null,null,{"$f":"IFERROR(VLOOKUP(ROWS($CJ$9:CJ157),$CI$9:$CJ$158,2,0),\"\")","v":""}]
[null,null,null,null,null,null,null,null,null,null,null,null,null,null,null,null,null,null,null,null,null,null,null,null,null,null,null,null,null,null,null,null,null,null,null,null,null,null,null,null,null,null,null,null,null,null,null,null,null,null,null,null,null,null,null,null,null,null,null,null,null,null,null,null,null,null,null,null,null,null,null,null,null,null,null,null,null,null,null,null,null,null,null,null,null,null,null,null,null,null,{"$f":"IFERROR(VLOOKUP(ROWS($CJ$9:CJ158),$CI$9:$CJ$158,2,0),\"\")","v":""}]

{"sheet":"Moves","index":1,"n_rows":151,"n_cols":99,"rows_kept":151,"cut":false,"hidden":true,"merged":[]}
["Straight jump","A",1,"Leap/Hop"]
["Jump ½ turn ","A",1,"Leap/Hop"]
["Star jump ","A",1,"Leap/Hop"]
["Tuck jump","A",1,"Leap/Hop"]
["2 x dynamic 1/2 turns on knees","A",1,"Leap/Hop"]
["1 leg balance ","A",2]
["Splits (F or S) ","A",2]
["Japana (up to 45⁰ chest)","A",2]
["D Shape","A",2,null,null,null,null,null,null,null,null,null,null,null,null,null,null,null,null,null,null,null,null,null,null,null,null,null,null,null,null,null,null,null,null,null,null,null,null,null,null,null,null,null,null,null,null,null,null,null,null,null,null,null,null,null,null,null,null,null,null,null,null,null,null,null,null,null,null,null,null,null,null,null,null,null,null,null,null,null,null,null,null,null,null,null,null,null,null,null,null,null,null,null,null,null,null,null,{"$f":"IF(M9<>$M$40,\"\")","v":false}]
["Bridge","A",2]
["F or B support (lower or push up) ","A",2]
["F Support turn to B Support","A",2]
["Piked V sit (hand supp.)","A",2]
["½ lever (1 foot on floor)","A",2]
["Headstand  (leg optional)","A",2]
["Shoulder stand (hip supp)","A",2]
["Forward Roll ","A",3]
["Back Roll & to straddle","A",3]
["Circle (‘teddy bear’) roll","A",3]
["Side Roll (various shapes)","A",3]
["Egg roll (leg shape optional)","A",3]
["Tuck Bunny Hop to Handstand ","A",3]
["Handstand return to feet","A",4]
["Cartwheel","A",4]
["Bunny Hop / Jump - (Long)","A",4]
["Bunny Hop / Jump - (High)","A",4]
["Split leap / jump (120° )","B",1,"Leap/Hop"]
["Stag leap or jump ","B",1,"Leap/Hop"]
["Cat leap","B",1,"Leap/Hop"]
["Jump full turn ","B",1,"Leap/Hop"]
["Scissor jump ","B",1,"Leap/Hop"]
["W jump","B",1,"Leap/Hop"]
["Arabesque","B",2]
["Japana (flat back, chest to floor)","B",2]
["Fall to prone push to Front Support","B",2]
["Swedish Fall","B",2]
["Piked V sit (no supp.)","B",2]
["1/2 lever shown (straight or straddled) ","B",2]
["Shoulder stand (no support)","B",2]
["F Roll to straddle stand","B",3]
["Handstand F roll ","B",3]
["B Roll to pike stand","B",3]
["Handstand ½ turn","B",3]
["Straddle Bunny Hop to Handstand","B",3]
["Single Leg Circle","B",3]
["Backward walkover","B",3]
["Cartwheel ¼ turn in (Front to Back)↓","B",4]
["Cartwheel ¼ turn out","B",4]
["1 Arm Cartwheel ","B",4]
["2 x side C/wheels (opt. entry / exit)","B",4]
["Dive C/wheel (must show flight)","B",4,"FS"]
["Roundoff","B",4,"FS"]
["Roundoff jump (optional shape)","B",4,"FS"]
["Split leap or jump (150°)","C",1,"Leap/Hop"]
["Fouette Turn","C",1,"Leap/Hop"]
["Cat leap ½ turn","C",1,"Leap/Hop"]
["Jump 1 ½  turn ","C",1,"Leap/Hop"]
["Straddle jump","C",1,"Leap/Hop"]
["Tuck jump ½ turn","C",1,"Leap/Hop"]
["Full Spin","C",1,"Leap/Hop"]
["Y scale (leg above waist height) ","C",2]
["2 way Splits","C",2]
["Japana Swim Through","C",2]
["Fall to Prone Jump to Straddle Stand","C",2]
["F Supp jump legs through straddle -","C",2]
["Tuck ‘Russian’ Lever","C",2]
["Tucked hold (press off knees)","C",2]
["1/2 lever held 2 secs (pike / straddle)","C",2]
["Straddle stand press to h/stand","C",2]
["Forward roll with straight legs","C",3]
["H/stand F Roll straight arms","C",3]
["B Roll through h/stand","C",3]
["Handstand full pirouette","C",3]
["Pike Bunny Hop to Handstand - ","C",3]
["Half Double Leg Circle","C",3]
["Forward walkover","C",3]
["Standing Flic to 2 feet","C",4,"FS"]
["Standing Flic to 1 foot","C",4,"FS"]
["Standing Flic to Front Support","C",4,"AFS"]
["Back Walkover, Flick (1or2 feet)","C",4,"AFS"]
["Cartwheel, Flick","C",4,"AFS"]
["Roundoff, Flic to 1 foot","C",4,"AFS2"]
["Roundoff, Flic to 2 feet","C",4,"AFS2"]
["Roundoff, Flic, Flic","C",4,"AFS2"]
["Handspring to 2 feet","C",4,"FS"]
["Handspring to 1 foot","C",4,"FS"]
["2 Handsprings 1 – 2 feet","C",4,"AFS2"]
["Handspring, Roundoff, Flic","C",4,"AFS2"]
["Split leap or jump (180° split)","D",1,"Leap/Hop"]
["Change leg split leap or jump ↓(180° split)","D",1,"Leap/Hop"]
["Sissone","D",1,"Leap/Hop"]
["Cat leap full turn","D",1,"Leap/Hop"]
["Jump double turn  ","D",1,"Leap/Hop"]
["Jump to Prone","D",1,"Leap/Hop"]
["Straddle jump (feet hip high)","D",1,"Leap/Hop"]
["Tuck jump full turn","D",1,"Leap/Hop"]
["1½  Spin","D",1,"Leap/Hop"]
["Y Scale (leg at  shoulder height)","D",2]
["3 way Splits ","D",2]
["F Supp jump legs through straddle -","D",2]
["Straddle 'Russian' Lever","D",2]
["Straddle 1/2 Lever lift to Stand","D",2]
["H/stand from straddle stand full turn","D",2]
["H/stand lower to Straddle 1/2 Lever","D",2]
["Chest Roll to Bent Arms Handstand","D",2]
["H/stand FR piked exit (straight arms)","D",3]
["B Roll to h/stand (straight arms)","D",3]
["Handstand 1½ pirouette","D",3]
["Tic toc","D",3]
["Flyspring","D",4,"FS"]
["Tucked Front Salto","D",4,"FS"]
["Free Cartwheel","D",4,"FS"]
["Free Cartwheel Flick","D",4,"AFS2"]
["Front Salto, R/O, flic","D",4,"AFS2"]
["F Salto step out, R/O, B Salto","D",4,"AFS2"]
["R/O Tuck Back Salto","D",4,"AFS2"]
["R/O, Flic, Tuck Back Salto","D",4,"AFS2"]
["Handspring Flyspring","D",4,"AFS2"]
["Handspring, Front Salto","D",4,"AFS2"]
["Split leap - sissone","E",1,"Leap/Hop"]
["Split leap - cat leap full turn","E",1,"Leap/Hop"]
["Change leg split leap - split leap","E",1,"Leap/Hop"]
["Split leap - W jump","E",1,"Leap/Hop"]
["Full turn jump - straddle jump","E",1,"Leap/Hop"]
["Jump 1/2 Turn to Prone","E",1,"Leap/Hop"]
["Straddle jump Shushunova","E",1,"Leap/Hop"]
["Straddle jump - pike jump","E",1,"Leap/Hop"]
["Double spin","E",1,"Leap/Hop"]
["Full spin 1 leg extended, min 45 deg","E",1,"Leap/Hop"]
["From Splits position lift to H/stand ","E",2]
["Full V ‘Russian’ lever","E",2]
["Tucked top planchě (held)","E",2]
["Straddle lever to handstand","E",2]
["Straddle lever to h/stand full turn ","E",2]
["Chest Roll to Handstand","E",2]
["B Roll to h/stand, 1/2 or full turn","E",3]
["Handstand double pirouette","E",3]
["Double Leg Circle","E",3]
["Valdez","E",3]
["Flyspring Front Salto","E",4,"AFS2"]
["Dive Forward Roll (with flight)","E",4,"FS"]
["Pike Front Salto","E",4,"FS"]
["Straight Front Salto","E",4,"FS"]
["F Salto step out, R/O, Flic, B Salto","E",4,"AFS2"]
["R/O, Flic, Pike/ Straight B Salto","E",4,"AFS2"]
["R/O, Flic, B Salto with ½ twist","E",4,"AFS2"]
["R/O, Flic, B Salto with 1/1  twist","E",4,"AFS2"]
["R/O, 2 Flics, straight Back Salto","E",4,"AFS2"]
["R/O Flick Arabian","E",4,"AFS2"]
["H/spring to 1, H/spring to 2, F Salto","E",4,"AFS2"]
["Headspring","E",4,"FS"]